Workbook

Sheet Inputs
A1: Am I Diversified? An Exercise for Finance Students
A2: Developed by Bill Reese and Russ Robins
A4: Today's date | B4: =TODAY() -> 2025-01-30 | C4: Place the ticker symbols for the 30 stocks you select in the cells C15-C44 and click the "Download" cell. This spreadsheet will do the rest.
A5: Start date | B5: =DATE(YEAR(B4)-5,MONTH(B4)-1,1) -> 2019-12-01 | C5: The adjusted closing prices for those 30 stocks and for the S&P 500 will be downloaded from Yahoo! Finance for the most recent 61 months.
A6: End date | B6: =DATE(YEAR(B4), MONTH(B4)-1,28) -> 2024-12-28 | C6: The program will calculate the standard deviations of the monthly returns, build a correlation matrix, and a variance/covariance matrix.
C7: The standard deviations for 30 different equally-weighted portfolios will be calculated and graphed against the number of stocks in each portfolio.
C8: The solid black line on the graph is the standard deviation of the S&P 500.
C14: Ticker Symbol
B15: 1 | C15: rcl
B16: 2 | C16: tsla
B17: 3 | C17: ual
B18: 4 | C18: ba
B19: 5 | C19: nvda
B20: 6 | C20: hog
B21: 7 | C21: f
B22: 8 | C22: meta
B23: 9 | C23: pzza
B24: 10 | C24: xom
B25: 11 | C25: cmg
B26: 12 | C26: pru
B27: 13 | C27: cat
B28: 14 | C28: lly
B29: 15 | C29: aapl
B30: 16 | C30: jpm
B31: 17 | C31: mmm
B32: 18 | C32: ma
B33: 19 | C33: googl
B34: 20 | C34: pfe
B35: 21 | C35: yum
B36: 22 | C36: grmn
B37: 23 | C37: hd
B38: 24 | C38: ibm
B39: 25 | C39: kr
B40: 26 | C40: t
B41: 27 | C41: msft
B42: 28 | C42: mcd
B43: 29 | C43: wmt
B44: 30 | C44: ko
... 2 more rows

Sheet price data
A1: Date | B1: =Inputs!C15 -> rcl | C1: =Inputs!C16 -> tsla | D1: =Inputs!C17 -> ual | E1: =Inputs!C18 -> ba | F1: =Inputs!C19 -> nvda | G1: =Inputs!C20 -> hog | H1: =Inputs!C21 -> f | I1: =Inputs!C22 -> meta | J1: =Inputs!C23 -> pzza | K1: =Inputs!C24 -> xom | L1: =Inputs!C25 -> cmg | M1: =Inputs!C26 -> pru | N1: =Inputs!C27 -> cat | O1: =Inputs!C28 -> lly | P1: =Inputs!C29 -> aapl | Q1: =Inputs!C30 -> jpm | R1: =Inputs!C31 -> mmm | S1: =Inputs!C32 -> ma | T1: =Inputs!C33 -> googl | U1: =Inputs!C34 -> pfe | V1: =Inputs!C35 -> yum | W1: =Inputs!C36 -> grmn | X1: =Inputs!C37 -> hd | Y1: =Inputs!C38 -> ibm | Z1: =Inputs!C39 -> kr | AA1: =Inputs!C40 -> t | AB1: =Inputs!C41 -> msft | AC1: =Inputs!C42 -> mcd | AD1: =Inputs!C43 -> wmt | AE1: =Inputs!C44 -> ko | AF1: IVV
A2: =D65 -> 2019-12-01 | B2: =_xlfn.STOCKHISTORY(B1,$D$65,$D$66,2,0,1) -> 133.51 | C2: =_xlfn.STOCKHISTORY(C1,$D$65,$D$66,2,0,1) -> 27.8884 | D2: =_xlfn.STOCKHISTORY(D1,$D$65,$D$66,2,0,1) -> 88.09 | E2: =_xlfn.STOCKHISTORY(E1,$D$65,$D$66,2,0,1) -> 325.76 | F2: =_xlfn.STOCKHISTORY(F1,$D$65,$D$66,2,0,1) -> 5.8825 | G2: =_xlfn.STOCKHISTORY(G1,$D$65,$D$66,2,0,1) -> 37.19 | H2: =_xlfn.STOCKHISTORY(H1,$D$65,$D$66,2,0,1) -> 9.3 | I2: =_xlfn.STOCKHISTORY(I1,$D$65,$D$66,2,0,1) -> 205.25 | J2: =_xlfn.STOCKHISTORY(J1,$D$65,$D$66,2,0,1) -> 63.15 | K2: =_xlfn.STOCKHISTORY(K1,$D$65,$D$66,2,0,1) -> 69.78 | L2: =_xlfn.STOCKHISTORY(L1,$D$65,$D$66,2,0,1) -> 16.7422 | M2: =_xlfn.STOCKHISTORY(M1,$D$65,$D$66,2,0,1) -> 93.74 | N2: =_xlfn.STOCKHISTORY(N1,$D$65,$D$66,2,0,1) -> 147.68 | O2: =_xlfn.STOCKHISTORY(O1,$D$65,$D$66,2,0,1) -> 131.43 | P2: =_xlfn.STOCKHISTORY(P1,$D$65,$D$66,2,0,1) -> 73.4125 | Q2: =_xlfn.STOCKHISTORY(Q1,$D$65,$D$66,2,0,1) -> 139.4 | R2: =_xlfn.STOCKHISTORY(R1,$D$65,$D$66,2,0,1) -> 147.5012 | S2: =_xlfn.STOCKHISTORY(S1,$D$65,$D$66,2,0,1) -> 298.59 | T2: =_xlfn.STOCKHISTORY(T1,$D$65,$D$66,2,0,1) -> 66.9695 | U2: =_xlfn.STOCKHISTORY(U1,$D$65,$D$66,2,0,1) -> 37.1407 | V2: =_xlfn.STOCKHISTORY(V1,$D$65,$D$66,2,0,1) -> 100.73 | W2: =_xlfn.STOCKHISTORY(W1,$D$65,$D$66,2,0,1) -> 97.56 | X2: =_xlfn.STOCKHISTORY(X1,$D$65,$D$66,2,0,1) -> 218.38 | Y2: =_xlfn.STOCKHISTORY(Y1,$D$65,$D$66,2,0,1) -> 134.04 | Z2: =_xlfn.STOCKHISTORY(Z1,$D$65,$D$66,2,0,1) -> 28.99 | AA2: =_xlfn.STOCKHISTORY(AA1,$D$65,$D$66,2,0,1) -> 29.5124 | AB2: =_xlfn.STOCKHISTORY(AB1,$D$65,$D$66,2,0,1) -> 157.7 | AC2: =_xlfn.STOCKHISTORY(AC1,$D$65,$D$66,2,0,1) -> 197.61 | AD2: =_xlfn.STOCKHISTORY(AD1,$D$65,$D$66,2,0,1) -> 39.6129 | AE2: =_xlfn.STOCKHISTORY(AE1,$D$65,$D$66,2,0,1) -> 55.35 | AF2: =_xlfn.STOCKHISTORY(AF1,$D$65,$D$66,2,0,1) -> 323.24
A3: =EDATE(A2,1) -> 2020-01-01 | B3: 117.08 | C3: 43.3709 | D3: 74.8 | E3: 318.27 | F3: 5.9108 | G3: 33.4 | H3: 8.82 | I3: 201.91 | J3: 64.78 | K3: 62.12 | L3: 17.3352 | M3: 91.06 | N3: 131.35 | O3: 139.64 | P3: 77.3775 | Q3: 132.36 | R3: 132.6525 | S3: 315.94 | T3: 71.639 | U3: 35.3017 | V3: 105.77 | W3: 96.95 | X3: 228.1 | Y3: 143.73 | Z3: 26.86 | AA3: 28.4099 | AB3: 170.23 | AC3: 213.97 | AD3: 38.163 | AE3: 58.4 | AF3: 323.24
A4: =EDATE(A3,1) -> 2020-02-01 | B4: 80.41 | C4: 44.5322 | D4: 61.59 | E4: 275.11 | F4: 6.7518 | G4: 30.47 | H4: 6.96 | I4: 192.47 | J4: 57.61 | K4: 51.44 | L4: 15.4716 | M4: 75.45 | N4: 124.24 | O4: 126.13 | P4: 68.34 | Q4: 116.11 | R4: 124.7766 | S4: 290.25 | T4: 66.9625 | U4: 31.6805 | V4: 89.25 | W4: 88.39 | X4: 217.84 | Y4: 130.15 | Z4: 28.13 | AA4: 26.5974 | AB4: 162.01 | AC4: 194.17 | AD4: 35.893 | AE4: 53.49 | AF4: 295.91
A5: 2020-03-01 | B5: 32.17 | C5: 34.933 | D5: 31.55 | E5: 149.14 | F5: 6.59 | G5: 18.93 | H5: 4.83 | I5: 166.8 | J5: 53.37 | K5: 37.97 | L5: 13.088 | M5: 52.14 | N5: 116.04 | O5: 138.72 | P5: 63.5725 | Q5: 90.03 | R5: 114.1333 | S5: 241.56 | T5: 58.0975 | U5: 30.9411 | V5: 68.53 | W5: 74.96 | X5: 186.71 | Y5: 110.93 | Z5: 30.12 | AA5: 22.0135 | AB5: 157.71 | AC5: 165.35 | AD5: 37.873 | AE5: 44.25 | AF5: 258.4
A6: =EDATE(A5,1) -> 2020-04-01 | B6: 46.77 | C6: 52.1248 | D6: 29.58 | E6: 141.02 | F6: 7.307 | G6: 21.83 | H6: 5.09 | I6: 204.71 | J6: 71.92 | K6: 46.47 | L6: 17.571 | M6: 62.37 | N6: 116.38 | O6: 154.64 | P6: 73.45 | Q6: 95.76 | R6: 127.0173 | S6: 274.97 | T6: 67.335 | U6: 36.3634 | V6: 86.43 | W6: 81.16 | X6: 219.83 | Y6: 125.56 | Z6: 31.61 | AA6: 23.0103 | AB6: 179.21 | AC6: 187.56 | AD6: 40.5163 | AE6: 45.89 | AF6: 291.16
A7: 2020-05-01 | B7: 51.87 | C7: 55.6661 | D7: 28.04 | E7: 145.85 | F7: 8.8755 | G7: 21.34 | H7: 5.71 | I7: 225.09 | J7: 77.89 | K7: 45.47 | L7: 20.0782 | M7: 60.96 | N7: 120.13 | O7: 152.95 | P7: 79.485 | Q7: 97.31 | R7: 130.7964 | S7: 300.89 | T7: 71.676 | U7: 36.2022 | V7: 89.73 | W7: 90.17 | X7: 248.48 | Y7: 124.9 | Z7: 32.62 | AA7: 23.3049 | AB7: 183.25 | AC7: 186.32 | AD7: 41.3529 | AE7: 46.68 | AF7: 305.18
A8: 2020-06-01 | B8: 50.3 | C8: 71.9866 | D8: 34.61 | E8: 183.3 | F8: 9.4978 | G8: 23.77 | H8: 6.08 | I8: 227.07 | J8: 79.41 | K8: 44.72 | L8: 21.0472 | M8: 60.9 | N8: 126.5 | O8: 164.18 | P8: 91.2 | Q8: 94.06 | R8: 130.4201 | S8: 295.7 | T8: 70.9025 | U8: 30.998 | V8: 86.91 | W8: 97.5 | X8: 250.51 | Y8: 120.77 | Z8: 33.85 | AA8: 22.8291 | AB8: 203.51 | AC8: 184.47 | AD8: 39.9263 | AE8: 44.68 | AF8: 309.69
A9: 2020-07-01 | B9: 48.71 | C9: 95.383 | D9: 31.38 | E9: 158 | F9: 10.6148 | G9: 26.03 | H9: 6.61 | I9: 253.67 | J9: 94.67 | K9: 42.08 | L9: 23.1032 | M9: 63.37 | N9: 132.88 | O9: 150.29 | P9: 106.26 | Q9: 96.64 | R9: 125.805 | S9: 308.53 | T9: 74.3975 | U9: 36.4771 | V9: 91.05 | W9: 98.59 | X9: 265.49 | Y9: 122.94 | Z9: 34.79 | AA9: 22.3382 | AB9: 205.01 | AC9: 194.28 | AD9: 43.1329 | AE9: 47.24 | AF9: 327.82
A10: 2020-08-01 | B10: 68.84 | C10: 166.105 | D10: 36 | E10: 171.82 | F10: 13.3745 | G10: 27.71 | H10: 6.82 | I10: 293.2 | J10: 98.29 | K10: 39.94 | L10: 26.2056 | M10: 67.77 | N10: 142.31 | O10: 148.39 | P10: 129.04 | Q10: 100.19 | R10: 136.2978 | S10: 358.19 | T10: 81.4765 | U10: 35.823 | V10: 95.85 | W10: 103.61 | X10: 285.04 | Y10: 123.31 | Z10: 35.68 | AA10: 22.5119 | AB10: 225.53 | AC10: 213.52 | AD10: 46.2829 | AE10: 49.53 | AF10: 350.77
A11: 2020-09-01 | B11: 64.73 | C11: 143.0019 | D11: 34.75 | E11: 165.26 | F11: 13.5305 | G11: 24.54 | H11: 6.66 | I11: 261.9 | J11: 82.28 | K11: 34.33 | L11: 24.8742 | M11: 63.52 | N11: 149.15 | O11: 148.02 | P11: 115.81 | Q11: 96.27 | R11: 133.9233 | S11: 338.17 | T11: 73.28 | U11: 34.7898 | V11: 91.3 | W11: 94.86 | X11: 277.71 | Y11: 121.67 | Z11: 33.91 | AA11: 21.5302 | AB11: 210.33 | AC11: 219.49 | AD11: 46.6362 | AE11: 49.37 | AF11: 336.06
A12: 2020-10-01 | B12: 56.42 | C12: 129.3454 | D12: 33.86 | E12: 144.39 | F12: 12.534 | G12: 32.88 | H12: 7.73 | I12: 263.11 | J12: 76.6 | K12: 32.62 | L12: 24.0296 | M12: 64.02 | N12: 157.05 | O12: 130.46 | P12: 108.86 | Q12: 98.04 | R12: 133.7394 | S12: 288.64 | T12: 80.8055 | U12: 33.6333 | V12: 93.33 | W12: 104.02 | X12: 266.71 | Y12: 111.66 | Z12: 32.21 | AA12: 20.405 | AB12: 202.47 | AC12: 213 | AD12: 46.2495 | AE12: 48.06 | AF12: 327.62
A13: 2020-11-01 | B13: 78.81 | C13: 189.1981 | D13: 45.05 | E13: 210.71 | F13: 13.4015 | G13: 40.29 | H13: 9.08 | I13: 276.97 | J13: 80.36 | K13: 38.13 | L13: 25.7886 | M13: 75.62 | N13: 173.59 | O13: 145.65 | P13: 119.05 | Q13: 117.88 | R13: 144.4161 | S13: 336.51 | T13: 87.72 | U13: 38.31 | V13: 105.8 | W13: 116.76 | X13: 277.41 | Y13: 123.52 | Z13: 33 | AA13: 21.7114 | AB13: 214.07 | AC13: 217.44 | AD13: 50.9295 | AE13: 51.6 | AF13: 363.32
A14: 2020-12-01 | B14: 74.69 | C14: 235.221 | D14: 43.25 | E14: 214.06 | F14: 13.055 | G14: 36.7 | H14: 8.79 | I14: 273.16 | J14: 84.85 | K14: 41.22 | L14: 27.7342 | M14: 78.07 | N14: 182.02 | O14: 168.84 | P14: 132.69 | Q14: 127.07 | R14: 146.1384 | S14: 356.94 | T14: 87.632 | U14: 36.81 | V14: 108.56 | W14: 119.66 | X14: 265.62 | Y14: 125.88 | Z14: 31.76 | AA14: 21.719 | AB14: 222.42 | AC14: 214.58 | AD14: 48.0495 | AE14: 54.84 | AF14: 375.39
A15: 2021-01-01 | B15: 65 | C15: 264.5074 | D15: 39.99 | E15: 194.19 | F15: 12.9898 | G15: 40.09 | H15: 10.53 | I15: 258.33 | J15: 102.28 | K15: 44.84 | L15: 29.6 | M15: 78.28 | N15: 182.84 | O15: 207.97 | P15: 131.96 | Q15: 128.67 | R15: 146.8658 | S15: 316.29 | T15: 91.368 | U15: 35.9 | V15: 101.49 | W15: 114.86 | X15: 270.82 | Y15: 119.11 | Z15: 34.5 | AA15: 21.6208 | AB15: 231.96 | AC15: 207.84 | AD15: 46.8295 | AE15: 48.15 | AF15: 371.52
A16: 2021-02-01 | B16: 93.27 | C16: 225.1644 | D16: 52.68 | E16: 212.01 | F16: 13.7145 | G16: 35.67 | H16: 11.7 | I16: 257.62 | J16: 90.19 | K16: 54.37 | L16: 28.84 | M16: 86.72 | N16: 215.88 | O16: 204.89 | P16: 121.26 | Q16: 147.17 | R16: 146.3642 | S16: 353.85 | T16: 101.0955 | U16: 33.49 | V16: 103.53 | W16: 124.02 | X16: 258.34 | Y16: 118.93 | Z16: 32.21 | AA16: 21.062 | AB16: 232.38 | AC16: 206.14 | AD16: 43.3062 | AE16: 48.99 | AF16: 381.77
A17: 2021-03-01 | B17: 85.61 | C17: 222.6411 | D17: 57.54 | E17: 254.72 | F17: 13.3483 | G17: 40.1 | H17: 12.25 | I17: 294.53 | J17: 88.64 | K17: 55.83 | L17: 28.4164 | M17: 91.1 | N17: 231.87 | O17: 186.82 | P17: 122.15 | Q17: 152.23 | R17: 161.0959 | S17: 356.05 | T17: 103.126 | U17: 36.23 | V17: 108.18 | W17: 131.85 | X17: 305.25 | Y17: 133.26 | Z17: 35.99 | AA17: 22.8593 | AB17: 235.77 | AC17: 224.14 | AD17: 45.2762 | AE17: 52.71 | AF17: 397.82
A18: 2021-04-01 | B18: 86.95 | C18: 236.4776 | D18: 54.4 | E18: 234.31 | F18: 15.0095 | G18: 48.37 | H18: 11.54 | I18: 325.08 | J18: 96.72 | K18: 57.24 | L18: 29.8406 | M18: 100.36 | N18: 228.11 | O18: 182.77 | P18: 131.46 | Q18: 153.81 | R18: 164.8248 | S18: 382.06 | T18: 117.675 | U18: 38.65 | V18: 119.52 | W18: 137.24 | X18: 323.67 | Y18: 141.88 | Z18: 36.54 | AA18: 23.7202 | AB18: 252.18 | AC18: 236.08 | AD18: 46.6362 | AE18: 53.98 | AF18: 418.88
A19: 2021-05-01 | B19: 93.27 | C19: 208.4046 | D19: 58.35 | E19: 247.02 | F19: 16.2445 | G19: 48.47 | H19: 14.53 | I19: 328.73 | J19: 93.95 | K19: 58.37 | L19: 27.4396 | M19: 106.97 | N19: 241.08 | O19: 199.74 | P19: 124.61 | Q19: 164.24 | R19: 169.7577 | S19: 360.58 | T19: 117.8425 | U19: 38.73 | V19: 119.97 | W19: 142.24 | X19: 318.91 | Y19: 143.74 | Z19: 36.98 | AA19: 22.2249 | AB19: 249.68 | AC19: 233.89 | AD19: 47.3429 | AE19: 55.29 | AF19: 421.65
A20: 2021-06-01 | B20: 85.28 | C20: 226.5644 | D20: 52.29 | E20: 239.56 | F20: 20.0025 | G20: 45.82 | H20: 14.86 | I20: 347.71 | J20: 104.44 | K20: 63.08 | L20: 31.0068 | M20: 102.47 | N20: 217.63 | O20: 229.52 | P20: 136.96 | Q20: 155.54 | R20: 166.0706 | S20: 365.09 | T20: 122.0895 | U20: 39.16 | V20: 115.03 | W20: 144.64 | X20: 318.89 | Y20: 146.59 | Z20: 38.31 | AA20: 21.7341 | AB20: 270.9 | AC20: 230.99 | AD20: 47.0062 | AE20: 54.11 | AF20: 429.92
A21: 2021-07-01 | B21: 76.87 | C21: 229.0644 | D21: 46.72 | E21: 226.48 | F21: 19.499 | G21: 39.62 | H21: 13.95 | I21: 356.3 | J21: 114.12 | K21: 57.57 | L21: 37.2688 | M21: 100.28 | N21: 206.75 | O21: 243.5 | P21: 145.86 | Q21: 151.78 | R21: 165.4937 | S21: 385.94 | T21: 134.7265 | U21: 42.81 | V21: 131.39 | W21: 157.2 | X21: 328.19 | Y21: 140.96 | Z21: 40.7 | AA21: 21.1828 | AB21: 284.91 | AC21: 242.71 | AD21: 47.5162 | AE21: 57.03 | AF21: 440.4
A22: 2021-08-01 | B22: 82.73 | C22: 245.2375 | D22: 46.51 | E22: 219.5 | F22: 22.385 | G22: 39.53 | H22: 13.03 | I22: 379.38 | J22: 127.53 | K22: 54.52 | L22: 38.0666 | M22: 105.88 | N22: 210.87 | O22: 258.29 | P22: 151.83 | Q22: 159.95 | R22: 162.8182 | S22: 346.23 | T22: 144.6975 | U22: 46.07 | V22: 131.03 | W22: 174.43 | X22: 326.18 | Y22: 140.34 | Z22: 46.03 | AA22: 20.707 | AB22: 301.88 | AC22: 237.46 | AD22: 49.3662 | AE22: 56.31 | AF22: 453.71
A23: 2021-09-01 | B23: 88.95 | C23: 258.4907 | D23: 47.57 | E23: 219.94 | F23: 20.716 | G23: 36.61 | H23: 14.16 | I23: 339.39 | J23: 126.99 | K23: 58.82 | L23: 36.3504 | M23: 105.2 | N23: 191.97 | O23: 231.05 | P23: 141.5 | Q23: 163.69 | R23: 146.6652 | S23: 347.68 | T23: 133.676 | U23: 43.01 | V23: 122.31 | W23: 155.46 | X23: 328.26 | Y23: 138.93 | Z23: 40.43 | AA23: 20.3974 | AB23: 281.92 | AC23: 241.11 | AD23: 46.4595 | AE23: 52.47 | AF23: 430.82
A24: 2021-10-01 | B24: 84.43 | C24: 371.3296 | D24: 46.14 | E24: 207.03 | F24: 25.567 | G24: 36.49 | H24: 17.08 | I24: 323.57 | J24: 124.08 | K24: 64.47 | L24: 35.5806 | M24: 110.05 | N24: 204.01 | O24: 254.76 | P24: 149.8 | Q24: 169.89 | R24: 149.3908 | S24: 335.52 | T24: 148.046 | U24: 43.74 | V24: 124.94 | W24: 143.6 | X24: 371.74 | Y24: 125.1 | Z24: 40.02 | AA24: 19.0758 | AB24: 331.62 | AC24: 245.55 | AD24: 49.8062 | AE24: 56.37 | AF24: 460.99
A25: 2021-11-01 | B25: 69.82 | C25: 381.5829 | D25: 42.26 | E25: 197.85 | F25: 32.676 | G25: 36.63 | H25: 19.19 | I25: 324.46 | J25: 121.92 | K25: 59.84 | L25: 32.8682 | M25: 102.26 | N25: 193.35 | O25: 248.04 | P25: 165.3 | Q25: 158.83 | R25: 142.167 | S25: 314.92 | T25: 141.8975 | U25: 53.73 | V25: 122.84 | W25: 133.54 | X25: 400.61 | Y25: 117.1 | Z25: 41.53 | AA25: 17.2408 | AB25: 330.59 | AC25: 244.6 | AD25: 46.8762 | AE25: 52.45 | AF25: 457.63
A26: 2021-12-01 | B26: 76.9 | C26: 352.2565 | D26: 43.78 | E26: 201.32 | F26: 29.411 | G26: 37.69 | H26: 20.77 | I26: 336.35 | J26: 133.47 | K26: 61.19 | L26: 34.965 | M26: 108.24 | N26: 206.74 | O26: 276.22 | P26: 177.57 | Q26: 158.35 | R26: 148.5129 | S26: 359.32 | T26: 144.852 | U26: 59.05 | V26: 138.86 | W26: 136.17 | X26: 415.01 | Y26: 133.66 | Z26: 45.26 | AA26: 18.5774 | AB26: 336.32 | AC26: 268.07 | AD26: 48.2295 | AE26: 59.21 | AF26: 476.99
A27: 2022-01-01 | B27: 77.81 | C27: 312.2369 | D27: 42.88 | E27: 200.24 | F27: 24.486 | G27: 34.57 | H27: 20.3 | I27: 313.26 | J27: 123.45 | K27: 75.96 | L27: 29.7116 | M27: 111.57 | N27: 201.56 | O27: 245.39 | P27: 174.78 | Q27: 148.6 | R27: 138.806 | S27: 386.38 | T27: 135.3035 | U27: 52.69 | V27: 125.17 | W27: 124.42 | X27: 366.98 | Y27: 133.57 | Z27: 43.59 | AA27: 19.2571 | AB27: 310.98 | AC27: 259.45 | AD27: 46.6029 | AE27: 61.01 | AF27: 451.77
A28: 2022-02-01 | B28: 80.72 | C28: 290.1404 | D28: 44.4 | E28: 205.34 | F28: 24.385 | G28: 41.3 | H28: 17.56 | I28: 211.03 | J28: 106.82 | K28: 78.42 | L28: 30.467 | M28: 111.66 | N28: 187.58 | O28: 249.95 | P28: 165.12 | Q28: 141.8 | R28: 124.2833 | S28: 360.82 | T28: 135.057 | U28: 46.94 | V28: 122.58 | W28: 110.44 | X28: 315.83 | Y28: 122.51 | Z28: 46.8 | AA28: 17.8902 | AB28: 298.79 | AC28: 244.77 | AD28: 45.0529 | AE28: 62.24 | AF28: 438.72
A29: 2022-03-01 | B29: 83.78 | C29: 359.1964 | D29: 46.36 | E29: 191.5 | F29: 27.286 | G29: 39.4 | H29: 16.91 | I29: 222.36 | J29: 105.28 | K29: 82.59 | L29: 31.6406 | M29: 118.17 | N29: 222.82 | O29: 286.37 | P29: 174.61 | Q29: 136.32 | R29: 124.4756 | S29: 357.38 | T29: 139.0675 | U29: 51.77 | V29: 118.53 | W29: 118.61 | X29: 299.33 | Y29: 130.02 | Z29: 57.37 | AA29: 17.8449 | AB29: 308.31 | AC29: 247.28 | AD29: 49.6395 | AE29: 62 | AF29: 453.69
A30: 2022-04-01 | B30: 77.73 | C30: 290.2504 | D30: 50.5 | E30: 148.84 | F30: 18.547 | G30: 36.45 | H30: 14.16 | I30: 200.47 | J30: 91.05 | K30: 85.25 | L30: 29.1122 | M30: 108.51 | N30: 210.54 | O30: 292.13 | P30: 157.65 | Q30: 119.36 | R30: 120.5795 | S30: 363.38 | T30: 114.1095 | U30: 49.07 | V30: 117.01 | W30: 109.74 | X30: 300.4 | Y30: 132.21 | Z30: 53.96 | AA30: 18.86 | AB30: 277.52 | AC30: 249.16 | AD30: 50.9962 | AE30: 64.61 | AF30: 413.56
A31: 2022-05-01 | B31: 58.07 | C31: 252.7508 | D31: 47.63 | E31: 131.4 | F31: 18.672 | G31: 35.18 | H31: 13.68 | I31: 193.64 | J31: 88.01 | K31: 96 | L31: 28.051 | M31: 106.25 | N31: 215.85 | O31: 313.44 | P31: 148.84 | Q31: 132.23 | R31: 124.8184 | S31: 357.87 | T31: 113.762 | U31: 53.04 | V31: 121.47 | W31: 105.62 | X31: 302.75 | Y31: 138.84 | Z31: 52.97 | AA31: 21.29 | AB31: 271.87 | AC31: 252.21 | AD31: 42.8762 | AE31: 63.38 | AF31: 414.87
A32: 2022-06-01 | B32: 34.91 | C32: 224.4711 | D32: 35.42 | E32: 136.72 | F32: 15.159 | G32: 31.66 | H32: 11.13 | I32: 161.25 | J32: 83.52 | K32: 85.64 | L32: 26.1452 | M32: 95.68 | N32: 178.76 | O32: 324.23 | P32: 136.72 | Q32: 112.61 | R32: 108.1971 | S32: 315.48 | T32: 108.963 | U32: 52.43 | V32: 113.51 | W32: 98.25 | X32: 274.27 | Y32: 141.19 | Z32: 47.33 | AA32: 20.96 | AB32: 256.83 | AC32: 246.88 | AD32: 40.5263 | AE32: 62.91 | AF32: 379.15
A33: 2022-07-01 | B33: 38.71 | C33: 297.147 | D33: 36.75 | E33: 159.31 | F33: 18.163 | G33: 37.81 | H33: 14.69 | I33: 159.1 | J33: 95.89 | K33: 96.93 | L33: 31.2844 | M33: 99.99 | N33: 198.25 | O33: 329.69 | P33: 162.51 | Q33: 115.36 | R33: 119.7601 | S33: 353.79 | T33: 116.32 | U33: 50.51 | V33: 122.54 | W33: 97.62 | X33: 300.94 | Y33: 130.79 | Z33: 46.44 | AA33: 18.78 | AB33: 280.74 | AC33: 263.37 | AD33: 44.0162 | AE33: 64.17 | AF33: 414.28
A34: 2022-08-01 | B34: 40.85 | C34: 275.61 | D34: 35.01 | E34: 160.25 | F34: 15.094 | G34: 38.57 | H34: 15.24 | I34: 162.93 | J34: 80.83 | K34: 95.59 | L34: 31.936 | M34: 95.75 | N34: 184.71 | O34: 301.23 | P34: 157.22 | Q34: 113.73 | R34: 103.9665 | S34: 324.37 | T34: 108.22 | U34: 45.23 | V34: 111.24 | W34: 88.49 | X34: 288.42 | Y34: 128.45 | Z34: 47.94 | AA34: 17.54 | AB34: 261.47 | AC34: 252.28 | AD34: 44.1829 | AE34: 61.71 | AF34: 397.18
A35: 2022-09-01 | B35: 37.9 | C35: 265.25 | D35: 32.53 | E35: 121.08 | F35: 12.139 | G35: 34.88 | H35: 11.2 | I35: 135.68 | J35: 70.01 | K35: 87.31 | L35: 30.0552 | M35: 85.78 | N35: 164.08 | O35: 323.35 | P35: 138.2 | Q35: 104.5 | R35: 92.3868 | S35: 284.34 | T35: 95.65 | U35: 43.76 | V35: 106.34 | W35: 80.31 | X35: 275.94 | Y35: 118.81 | Z35: 43.75 | AA35: 15.34 | AB35: 232.9 | AC35: 230.74 | AD35: 43.2329 | AE35: 56.02 | AF35: 358.65
A36: 2022-10-01 | B36: 53.38 | C36: 227.54 | D36: 43.08 | E36: 142.51 | F36: 13.497 | G36: 43 | H36: 13.37 | I36: 93.16 | J36: 72.63 | K36: 110.81 | L36: 29.9666 | M36: 105.19 | N36: 216.46 | O36: 362.09 | P36: 153.34 | Q36: 125.88 | R36: 105.1705 | S36: 328.18 | T36: 94.51 | U36: 46.55 | V36: 118.25 | W36: 88.04 | X36: 296.13 | Y36: 138.29 | Z36: 47.29 | AA36: 18.23 | AB36: 232.13 | AC36: 272.66 | AD36: 47.4429 | AE36: 59.85 | AF36: 387.79
A37: 2022-11-01 | B37: 59.93 | C37: 194.7 | D37: 44.17 | E37: 178.88 | F37: 16.923 | G37: 47.13 | H37: 13.9 | I37: 118.1 | J37: 83.26 | K37: 111.34 | L37: 32.5392 | M37: 108.03 | N37: 236.41 | O37: 371.08 | P37: 148.03 | Q37: 138.18 | R37: 105.321 | S37: 356.4 | T37: 100.99 | U37: 50.13 | V37: 128.66 | W37: 92.99 | X37: 323.99 | Y37: 148.9 | Z37: 49.19 | AA37: 19.28 | AB37: 255.14 | AC37: 272.79 | AD37: 50.8062 | AE37: 63.61 | AF37: 409.32
A38: 2022-12-01 | B38: 49.43 | C38: 123.18 | D38: 37.7 | E38: 190.49 | F38: 14.614 | G38: 41.6 | H38: 11.63 | I38: 120.34 | J38: 82.31 | K38: 110.3 | L38: 27.7498 | M38: 99.46 | N38: 239.56 | O38: 365.84 | P38: 129.93 | Q38: 134.1 | R38: 100.2627 | S38: 347.73 | T38: 88.23 | U38: 51.24 | V38: 128.08 | W38: 92.29 | X38: 315.86 | Y38: 140.89 | Z38: 44.58 | AA38: 18.41 | AB38: 239.82 | AC38: 263.53 | AD38: 47.2629 | AE38: 63.61 | AF38: 384.21
A39: 2023-01-01 | B39: 64.94 | C39: 173.22 | D39: 48.96 | E39: 213 | F39: 19.537 | G39: 46.03 | H39: 13.51 | I39: 148.97 | J39: 89.69 | K39: 116.01 | L39: 32.9276 | M39: 104.94 | N39: 252.29 | O39: 344.15 | P39: 144.29 | Q39: 139.96 | R39: 96.2161 | S39: 370.6 | T39: 98.84 | U39: 44.16 | V39: 130.51 | W39: 98.88 | X39: 324.17 | Y39: 134.73 | Z39: 44.63 | AA39: 20.37 | AB39: 247.81 | AC39: 267.4 | AD39: 47.9562 | AE39: 61.32 | AF39: 408.31
A40: 2023-02-01 | B40: 70.64 | C40: 205.71 | D40: 51.96 | E40: 201.55 | F40: 23.216 | G40: 47.55 | H40: 12.07 | I40: 174.94 | J40: 83.95 | K40: 109.91 | L40: 29.8216 | M40: 100 | N40: 239.55 | O40: 311.22 | P40: 147.41 | Q40: 143.35 | R40: 90.0793 | S40: 355.29 | T40: 90.06 | U40: 40.57 | V40: 127.16 | W40: 98.13 | X40: 296.54 | Y40: 129.3 | Z40: 43.14 | AA40: 18.91 | AB40: 249.42 | AC40: 263.91 | AD40: 47.3762 | AE40: 59.51 | AF40: 397.97
A41: 2023-03-01 | B41: 65.3 | C41: 207.46 | D41: 44.25 | E41: 212.43 | F41: 27.777 | G41: 37.97 | H41: 12.6 | I41: 211.94 | J41: 74.93 | K41: 109.66 | L41: 34.1658 | M41: 82.74 | N41: 228.84 | O41: 343.42 | P41: 164.9 | Q41: 130.31 | R41: 87.8804 | S41: 363.41 | T41: 103.73 | U41: 40.8 | V41: 132.08 | W41: 100.92 | X41: 295.12 | Y41: 131.09 | Z41: 49.37 | AA41: 19.25 | AB41: 288.3 | AC41: 279.61 | AD41: 49.1495 | AE41: 62.03 | AF41: 411.08
A42: 2023-04-01 | B42: 65.43 | C42: 164.31 | D42: 43.8 | E42: 206.78 | F42: 27.749 | G42: 37.1 | H42: 11.88 | I42: 240.32 | J42: 74.79 | K42: 118.34 | L42: 41.3524 | M42: 87 | N42: 218.8 | O42: 395.86 | P42: 169.68 | Q42: 138.24 | R42: 88.8084 | S42: 380.03 | T42: 107.34 | U42: 38.89 | V42: 140.58 | W42: 98.17 | X42: 300.54 | Y42: 126.41 | Z42: 48.63 | AA42: 17.67 | AB42: 307.26 | AC42: 295.75 | AD42: 50.3228 | AE42: 64.15 | AF42: 417.66
A43: 2023-05-01 | B43: 80.97 | C43: 203.93 | D43: 47.465 | E43: 205.7 | F43: 37.834 | G43: 31.11 | H43: 12 | I43: 264.72 | J43: 70.11 | K43: 102.18 | L43: 41.5298 | M43: 78.69 | N43: 205.75 | O43: 429.46 | P43: 177.25 | Q43: 135.71 | R43: 78.0146 | S43: 365.02 | T43: 122.87 | U43: 38.02 | V43: 128.69 | W43: 103.15 | X43: 283.45 | Y43: 128.59 | Z43: 45.33 | AA43: 15.73 | AB43: 328.39 | AC43: 285.11 | AD43: 48.9562 | AE43: 59.66 | AF43: 419.43
A44: 2023-06-01 | B44: 103.74 | C44: 261.77 | D44: 54.87 | E44: 211.16 | F44: 42.302 | G44: 35.21 | H44: 15.13 | I44: 286.98 | J44: 73.83 | K44: 107.25 | L44: 42.78 | M44: 88.22 | N44: 246.05 | O44: 468.98 | P44: 193.97 | Q44: 145.44 | R44: 83.6832 | S44: 393.3 | T44: 119.7 | U44: 36.68 | V44: 138.55 | W44: 104.29 | X44: 310.64 | Y44: 133.81 | Z44: 47 | AA44: 15.95 | AB44: 340.54 | AC44: 298.41 | AD44: 52.3928 | AE44: 60.22 | AF44: 445.71
A45: 2023-07-01 | B45: 109.11 | C45: 267.43 | D45: 54.31 | E45: 238.85 | F45: 46.729 | G45: 38.61 | H45: 13.21 | I45: 318.6 | J45: 82.7 | K45: 107.24 | L45: 39.2456 | M45: 96.49 | N45: 265.17 | O45: 454.55 | P45: 196.45 | Q45: 157.96 | R45: 93.2229 | S45: 394.28 | T45: 132.72 | U45: 36.06 | V45: 137.67 | W45: 105.89 | X45: 333.84 | Y45: 144.18 | Z45: 48.64 | AA45: 14.52 | AB45: 335.92 | AC45: 293.2 | AD45: 53.2861 | AE45: 61.93 | AF45: 460.18
A46: 2023-08-01 | B46: 98.94 | C46: 258.08 | D46: 49.81 | E46: 224.03 | F46: 49.355 | G46: 33.75 | H46: 12.13 | I46: 295.89 | J46: 75.7 | K46: 111.19 | L46: 38.5328 | M46: 94.67 | N46: 281.13 | O46: 554.2 | P46: 187.87 | Q46: 146.33 | R46: 89.1847 | S46: 412.64 | T46: 136.17 | U46: 35.38 | V46: 129.38 | W46: 106.02 | X46: 330.3 | Y46: 146.83 | Z46: 46.39 | AA46: 14.79 | AB46: 327.76 | AC46: 281.15 | AD46: 54.2028 | AE46: 59.83 | AF46: 452.69
A47: 2023-09-01 | B47: 92.14 | C47: 250.22 | D47: 42.3 | E47: 191.68 | F47: 43.499 | G47: 33.06 | H47: 12.42 | I47: 300.21 | J47: 68.22 | K47: 117.58 | L47: 36.6366 | M47: 94.89 | N47: 273 | O47: 537.13 | P47: 171.21 | Q47: 145.02 | R47: 78.2738 | S47: 395.91 | T47: 130.86 | U47: 33.17 | V47: 124.94 | W47: 105.2 | X47: 302.16 | Y47: 140.3 | Z47: 44.75 | AA47: 15.02 | AB47: 315.75 | AC47: 263.44 | AD47: 53.3095 | AE47: 55.98 | AF47: 429.43
A48: 2023-10-01 | B48: 84.73 | C48: 200.84 | D48: 35.01 | E48: 186.82 | F48: 40.78 | G48: 26.85 | H48: 9.75 | I48: 301.27 | J48: 65.02 | K48: 105.85 | L48: 38.844 | M48: 91.44 | N48: 226.05 | O48: 553.93 | P48: 170.77 | Q48: 139.06 | R48: 76.0415 | S48: 376.35 | T48: 124.08 | U48: 30.56 | V48: 120.86 | W48: 102.53 | X48: 284.69 | Y48: 144.64 | Z48: 45.37 | AA48: 15.4 | AB48: 338.11 | AC48: 262.17 | AD48: 54.4695 | AE48: 56.49 | AF48: 419.94
A49: 2023-11-01 | B49: 107.46 | C49: 240.08 | D49: 39.4 | E49: 231.63 | F49: 46.77 | G49: 29.99 | H49: 10.26 | I49: 327.15 | J49: 65.24 | K49: 102.74 | L49: 44.045 | M49: 97.78 | N49: 250.72 | O49: 591.04 | P49: 189.95 | Q49: 156.08 | R49: 82.8304 | S49: 413.83 | T49: 132.53 | U49: 30.47 | V49: 125.55 | W49: 122.24 | X49: 313.49 | Y49: 158.56 | Z49: 44.27 | AA49: 16.57 | AB49: 378.91 | AC49: 281.84 | AD49: 51.8961 | AE49: 58.44 | AF49: 458.42
A50: 2023-12-01 | B50: 129.49 | C50: 248.48 | D50: 41.26 | E50: 260.66 | F50: 49.522 | G50: 36.84 | H50: 12.19 | I50: 353.96 | J50: 76.23 | K50: 99.98 | L50: 45.7392 | M50: 103.71 | N50: 295.67 | O50: 582.92 | P50: 192.53 | Q50: 170.1 | R50: 91.4003 | S50: 426.51 | T50: 139.69 | U50: 28.79 | V50: 130.66 | W50: 128.54 | X50: 346.55 | Y50: 163.55 | Z50: 45.71 | AA50: 16.78 | AB50: 376.04 | AC50: 296.51 | AD50: 52.5495 | AE50: 58.93 | AF50: 477.63
A51: 2024-01-01 | B51: 127.5 | C51: 187.29 | D51: 41.38 | E51: 211.04 | F51: 61.527 | G51: 32.45 | H51: 11.72 | I51: 390.14 | J51: 73.48 | K51: 102.81 | L51: 48.1754 | M51: 104.93 | N51: 300.31 | O51: 645.61 | P51: 184.4 | Q51: 174.36 | R51: 78.8841 | S51: 449.23 | T51: 140.1 | U51: 27.08 | V51: 129.49 | W51: 119.49 | X51: 352.96 | Y51: 183.66 | Z51: 46.14 | AA51: 17.69 | AB51: 397.58 | AC51: 292.72 | AD51: 55.0828 | AE51: 59.49 | AF51: 485.2
A52: 2024-02-01 | B52: 123.35 | C52: 201.88 | D52: 45.49 | E52: 203.72 | F52: 79.112 | G52: 36.27 | H52: 12.44 | I52: 490.13 | J52: 71.89 | K52: 104.52 | L52: 53.7754 | M52: 108.99 | N52: 333.96 | O52: 753.68 | P52: 180.75 | Q52: 186.06 | R52: 77.0197 | S52: 474.76 | T52: 138.46 | U52: 26.56 | V52: 138.42 | W52: 137.35 | X52: 380.61 | Y52: 185.03 | Z52: 49.61 | AA52: 16.93 | AB52: 413.64 | AC52: 292.28 | AD52: 58.61 | AE52: 60.02 | AF52: 510.45
A53: 2024-03-01 | B53: 139.01 | C53: 175.79 | D53: 47.88 | E53: 192.99 | F53: 90.356 | G53: 43.74 | H53: 13.28 | I53: 485.58 | J53: 66.6 | K53: 116.24 | L53: 58.1354 | M53: 117.4 | N53: 366.43 | O53: 777.96 | P53: 171.48 | Q53: 200.3 | R53: 88.683 | S53: 481.57 | T53: 150.93 | U53: 27.75 | V53: 138.65 | W53: 148.87 | X53: 383.6 | Y53: 190.96 | Z53: 57.13 | AA53: 17.6 | AB53: 420.72 | AC53: 281.95 | AD53: 60.17 | AE53: 61.18 | AF53: 525.73
A54: 2024-04-01 | B54: 139.63 | C54: 183.28 | D54: 51.46 | E54: 167.84 | F54: 86.402 | G54: 34.39 | H54: 12.15 | I54: 430.17 | J54: 61.69 | K54: 118.27 | L54: 63.192 | M54: 110.48 | N54: 334.57 | O54: 781.1 | P54: 170.33 | Q54: 191.74 | R54: 96.51 | S54: 451.2 | T54: 162.78 | U54: 25.62 | V54: 141.25 | W54: 144.47 | X54: 334.22 | Y54: 166.2 | Z54: 55.38 | AA54: 16.89 | AB54: 389.33 | AC54: 273.04 | AD54: 59.35 | AE54: 61.77 | AF54: 504.44
A55: 2024-05-01 | B55: 147.68 | C55: 178.08 | D55: 52.99 | E55: 177.61 | F55: 109.633 | G55: 35.88 | H55: 12.13 | I55: 466.83 | J55: 46.46 | K55: 117.26 | L55: 62.5904 | M55: 120.35 | N55: 338.52 | O55: 820.34 | P55: 192.25 | Q55: 202.63 | R55: 100.14 | S55: 447.07 | T55: 172.5 | U55: 28.66 | V55: 137.43 | W55: 163.85 | X55: 334.87 | Y55: 166.85 | Z55: 52.37 | AA55: 18.22 | AB55: 415.13 | AC55: 258.89 | AD55: 65.76 | AE55: 62.93 | AF55: 529.96
A56: 2024-06-01 | B56: 159.43 | C56: 197.88 | D56: 48.66 | E56: 182.01 | F56: 123.54 | G56: 33.54 | H56: 12.54 | I56: 504.22 | J56: 46.98 | K56: 115.12 | L56: 62.65 | M56: 117.19 | N56: 333.1 | O56: 905.38 | P56: 210.62 | Q56: 202.26 | R56: 102.19 | S56: 441.16 | T56: 182.15 | U56: 27.98 | V56: 132.46 | W56: 162.92 | X56: 344.24 | Y56: 172.95 | Z56: 49.93 | AA56: 19.11 | AB56: 446.95 | AC56: 254.84 | AD56: 67.71 | AE56: 63.65 | AF56: 547.23
A57: 2024-07-01 | B57: 156.72 | C57: 232.07 | D57: 45.42 | E57: 190.6 | F57: 117.02 | G57: 37.5 | H57: 10.82 | I57: 474.83 | J57: 44.23 | K57: 118.59 | L57: 54.32 | M57: 125.32 | N57: 346.2 | O57: 804.27 | P57: 222.08 | Q57: 212.8 | R57: 127.55 | S57: 463.71 | T57: 171.54 | U57: 30.54 | V57: 132.83 | W57: 171.25 | X57: 368.16 | Y57: 192.14 | Z57: 54.5 | AA57: 19.25 | AB57: 418.35 | AC57: 265.4 | AD57: 68.64 | AE57: 66.74 | AF57: 553.32
A58: 2024-08-01 | B58: 164.62 | C58: 214.11 | D58: 44.04 | E58: 173.74 | F58: 119.37 | G58: 37.44 | H58: 11.19 | I58: 521.31 | J58: 47.37 | K58: 117.94 | L58: 56.08 | M58: 121.16 | N58: 356.1 | O58: 960.02 | P58: 229 | Q58: 224.8 | R58: 134.69 | S58: 483.34 | T58: 163.38 | U58: 29.01 | V58: 134.92 | W58: 183.29 | X58: 368.5 | Y58: 202.13 | Z58: 53.21 | AA58: 19.9 | AB58: 417.14 | AC58: 288.66 | AD58: 77.23 | AE58: 72.47 | AF58: 566.75
A59: 2024-09-01 | B59: 177.36 | C59: 261.63 | D59: 57.06 | E59: 152.04 | F59: 121.44 | G59: 38.53 | H59: 10.56 | I59: 572.44 | J59: 53.87 | K59: 117.22 | L59: 57.62 | M59: 121.1 | N59: 391.12 | O59: 885.94 | P59: 233 | Q59: 210.86 | R59: 136.7 | S59: 493.8 | T59: 165.85 | U59: 28.94 | V59: 139.71 | W59: 176.03 | X59: 405.2 | Y59: 221.08 | Z59: 57.3 | AA59: 22 | AB59: 430.3 | AC59: 304.51 | AD59: 80.75 | AE59: 71.86 | AF59: 576.82
A60: 2024-10-01 | B60: 206.35 | C60: 249.85 | D60: 78.26 | E60: 149.31 | F60: 132.76 | G60: 31.95 | H60: 10.29 | I60: 567.58 | J60: 52.39 | K60: 116.78 | L60: 55.77 | M60: 122.48 | N60: 376.2 | O60: 829.74 | P60: 225.91 | Q60: 221.92 | R60: 128.47 | S60: 499.59 | T60: 171.11 | U60: 28.3 | V60: 131.16 | W60: 198.35 | X60: 393.75 | Y60: 206.72 | Z60: 55.77 | AA60: 22.54 | AB60: 406.35 | AC60: 292.11 | AD60: 81.95 | AE60: 65.31 | AF60: 571.24
A61: 2024-11-01 | B61: 244.06 | C61: 345.16 | D61: 96.83 | E61: 155.44 | F61: 138.25 | G61: 33.63 | H61: 11.13 | I61: 574.32 | J61: 49.83 | K61: 117.96 | L61: 61.52 | M61: 129.41 | N61: 406.11 | O61: 795.35 | P61: 237.33 | Q61: 249.72 | R61: 133.53 | S61: 532.94 | T61: 168.95 | U61: 26.21 | V61: 138.94 | W61: 212.6 | X61: 429.13 | Y61: 227.41 | Z61: 61.08 | AA61: 23.16 | AB61: 423.46 | AC61: 296.01 | AD61: 92.5 | AE61: 64.08 | AF61: 605.07
A62: 2024-12-01 | B62: 230.69 | C62: 403.84 | D62: 97.1 | E62: 177 | F62: 134.29 | G62: 30.13 | H62: 9.9 | I62: 585.51 | J62: 41.07 | K62: 107.57 | L62: 60.3 | M62: 118.53 | N62: 362.76 | O62: 772 | P62: 250.42 | Q62: 239.71 | R62: 129.09 | S62: 526.57 | T62: 189.3 | U62: 26.53 | V62: 134.16 | W62: 206.26 | X62: 388.99 | Y62: 219.83 | Z62: 61.15 | AA62: 22.77 | AB62: 421.5 | AC62: 289.89 | AD62: 90.35 | AE62: 62.26 | AF62: 588.68
D65: =startDate -> 2019-12-01
D66: =endDate -> 2024-12-28

Sheet Returns & Stand Dev
B1: _1 | D1: _2 | F1: _3 | H1: _4 | J1: _5 | L1: _6 | N1: _7 | P1: _8 | R1: _9 | T1: _10 | V1: _11 | X1: _12 | Z1: _13 | AB1: _14 | AD1: _15 | AF1: _16 | AH1: _17 | AJ1: _18 | AL1: _19 | AN1: _20 | AP1: _21 | AR1: _22 | AT1: _23 | AV1: _24 | AX1: _25 | AZ1: _26 | BB1: _27 | BD1: _28 | BF1: _29 | BH1: _30 | BK1: Adj Close
B2: ='price data'!B1 -> rcl | D2: ='price data'!C1 -> tsla | F2: ='price data'!D1 -> ual | H2: ='price data'!E1 -> ba | J2: ='price data'!F1 -> nvda | L2: ='price data'!G1 -> hog | N2: ='price data'!H1 -> f | P2: ='price data'!I1 -> meta | R2: ='price data'!J1 -> pzza | T2: ='price data'!K1 -> xom | V2: ='price data'!L1 -> cmg | X2: ='price data'!M1 -> pru | Z2: ='price data'!N1 -> cat | AB2: ='price data'!O1 -> lly | AD2: ='price data'!P1 -> aapl | AF2: ='price data'!Q1 -> jpm | AH2: ='price data'!R1 -> mmm | AJ2: ='price data'!S1 -> ma | AL2: ='price data'!T1 -> googl | AN2: ='price data'!U1 -> pfe | AP2: ='price data'!V1 -> yum | AR2: ='price data'!W1 -> grmn | AT2: ='price data'!X1 -> hd | AV2: ='price data'!Y1 -> ibm | AX2: ='price data'!Z1 -> kr | AZ2: ='price data'!AA1 -> t | BB2: ='price data'!AB1 -> msft | BD2: ='price data'!AC1 -> mcd | BF2: ='price data'!AD1 -> wmt | BH2: ='price data'!AE1 -> ko | BJ2: ='price data'!AF1 -> IVV
A3: Date | B3: Adj. Close* | C3: Return | D3: Adj. Close* | E3: Return | F3: Adj. Close* | G3: Return | H3: Adj. Close* | I3: Return | J3: Adj. Close* | K3: Return | L3: Adj. Close* | M3: Return | N3: Adj. Close* | O3: Return | P3: Adj. Close* | Q3: Return | R3: Adj. Close* | S3: Return | T3: Adj. Close* | U3: Return | V3: Adj. Close* | W3: Return | X3: Adj. Close* | Y3: Return | Z3: Adj. Close* | AA3: Return | AB3: Adj. Close* | AC3: Return | AD3: Adj. Close* | AE3: Return | AF3: Adj. Close* | AG3: Return | AH3: Adj. Close* | AI3: Return | AJ3: Adj. Close* | AK3: Return | AL3: Adj. Close* | AM3: Return | AN3: Adj. Close* | AO3: Return | AP3: Adj. Close* | AQ3: Return | AR3: Adj. Close* | AS3: Return | AT3: Adj. Close* | AU3: Return | AV3: Adj. Close* | AW3: Return | AX3: Adj. Close* | AY3: Return | AZ3: Adj. Close* | BA3: Return | BB3: Adj. Close* | BC3: Return | BD3: Adj. Close* | BE3: Return | BF3: Adj. Close* | BG3: Return | BH3: Adj. Close* | BI3: Return | BK3: Adj Close | BL3: Return
A4: ='price data'!D65 -> 2019-12-01 | B4: ='price data'!B2 -> 133.51 | D4: ='price data'!C2 -> 27.8884 | F4: ='price data'!D2 -> 88.09 | H4: ='price data'!E2 -> 325.76 | J4: ='price data'!F2 -> 5.8825 | L4: ='price data'!G2 -> 37.19 | N4: ='price data'!H2 -> 9.3 | P4: ='price data'!I2 -> 205.25 | R4: ='price data'!J2 -> 63.15 | T4: ='price data'!K2 -> 69.78 | V4: ='price data'!L2 -> 16.7422 | X4: ='price data'!M2 -> 93.74 | Z4: ='price data'!N2 -> 147.68 | AB4: ='price data'!O2 -> 131.43 | AD4: ='price data'!P2 -> 73.4125 | AF4: ='price data'!Q2 -> 139.4 | AH4: ='price data'!R2 -> 147.5012 | AJ4: ='price data'!S2 -> 298.59 | AL4: ='price data'!T2 -> 66.9695 | AN4: ='price data'!U2 -> 37.1407 | AP4: ='price data'!V2 -> 100.73 | AR4: ='price data'!W2 -> 97.56 | AT4: ='price data'!X2 -> 218.38 | AV4: ='price data'!Y2 -> 134.04 | AX4: ='price data'!Z2 -> 28.99 | AZ4: ='price data'!AA2 -> 29.5124 | BB4: ='price data'!AB2 -> 157.7 | BD4: ='price data'!AC2 -> 197.61 | BF4: ='price data'!AD2 -> 39.6129 | BH4: ='price data'!AE2 -> 55.35 | BK4: ='price data'!AF2 -> 323.24
A5: =EDATE(A4,1) -> 2020-01-01 | B5: ='price data'!B3 -> 117.08 | C5: =LN(B5/B4) -> -0.1313189196 | D5: ='price data'!C3 -> 43.3709 | E5: =LN(D5/D4) -> 0.4415778775 | F5: ='price data'!D3 -> 74.8 | G5: =LN(F5/F4) -> -0.1635411341 | H5: ='price data'!E3 -> 318.27 | I5: =LN(H5/H4) -> -0.02326083478 | J5: ='price data'!F3 -> 5.9108 | K5: =LN(J5/J4) -> 0.004799344428 | L5: ='price data'!G3 -> 33.4 | M5: =LN(L5/L4) -> -0.107484008 | N5: ='price data'!H3 -> 8.82 | O5: =LN(N5/N4) -> -0.05299253014 | P5: ='price data'!I3 -> 201.91 | Q5: =LN(P5/P4) -> -0.01640669477 | R5: ='price data'!J3 -> 64.78 | S5: =LN(R5/R4) -> 0.02548406495 | T5: ='price data'!K3 -> 62.12 | U5: =LN(T5/T4) -> -0.1162794375 | V5: ='price data'!L3 -> 17.3352 | W5: =LN(V5/V4) -> 0.03480663825 | X5: ='price data'!M3 -> 91.06 | Y5: =LN(X5/X4) -> -0.02900636259 | Z5: ='price data'!N3 -> 131.35 | AA5: =LN(Z5/Z4) -> -0.1171822546 | AB5: ='price data'!O3 -> 139.64 | AC5: =LN(AB5/AB4) -> 0.06059329174 | AD5: ='price data'!P3 -> 77.3775 | AE5: =LN(AD5/AD4) -> 0.05260181981 | AF5: ='price data'!Q3 -> 132.36 | AG5: =LN(AF5/AF4) -> -0.05182201527 | AH5: ='price data'!R3 -> 132.6525 | AI5: =LN(AH5/AH4) -> -0.1061033843 | AJ5: ='price data'!S3 -> 315.94 | AK5: =LN(AJ5/AJ4) -> 0.05648092721 | AL5: ='price data'!T3 -> 71.639 | AM5: =LN(AL5/AL4) -> 0.06740232655 | AN5: ='price data'!U3 -> 35.3017 | AO5: =LN(AN5/AN4) -> -0.05078228193 | AP5: ='price data'!V3 -> 105.77 | AQ5: =LN(AP5/AP4) -> 0.04882325539 | AR5: ='price data'!W3 -> 96.95 | AS5: =LN(AR5/AR4) -> -0.006272191659 | AT5: ='price data'!X3 -> 228.1 | AU5: =LN(AT5/AT4) -> 0.0435474647 | AV5: ='price data'!Y3 -> 143.73 | AW5: =LN(AV5/AV4) -> 0.06979827669 | AX5: ='price data'!Z3 -> 26.86 | AY5: =LN(AX5/AX4) -> -0.07631275184 | AZ5: ='price data'!AA3 -> 28.4099 | BA5: =LN(AZ5/AZ4) -> -0.03807283804 | BB5: ='price data'!AB3 -> 170.23 | BC5: =LN(BB5/BB4) -> 0.07645596986 | BD5: ='price data'!AC3 -> 213.97 | BE5: =LN(BD5/BD4) -> 0.07954042696 | BF5: ='price data'!AD3 -> 38.163 | BG5: =LN(BF5/BF4) -> -0.03728836295 | BH5: ='price data'!AE3 -> 58.4 | BI5: =LN(BH5/BH4) -> 0.05363923068 | BK5: ='price data'!AF3 -> 323.24 | BL5: =LN(BK5/BK4) -> 0
A6: =EDATE(A5,1) -> 2020-02-01 | B6: ='price data'!B4 -> 80.41 | C6: =LN(B6/B5) -> -0.3757189153 | D6: ='price data'!C4 -> 44.5322 | E6: 0.02642381371 | F6: ='price data'!D4 -> 61.59 | G6: -0.1943183653 | H6: ='price data'!E4 -> 275.11 | I6: -0.1457290615 | J6: ='price data'!F4 -> 6.7518 | K6: 0.13302795 | L6: ='price data'!G4 -> 30.47 | M6: -0.09181330699 | N6: ='price data'!H4 -> 6.96 | O6: -0.2368423957 | P6: ='price data'!I4 -> 192.47 | Q6: -0.04788175614 | R6: ='price data'!J4 -> 57.61 | S6: -0.11730075 | T6: ='price data'!K4 -> 51.44 | U6: -0.1886519184 | V6: ='price data'!L4 -> 15.4716 | W6: -0.1137330312 | X6: ='price data'!M4 -> 75.45 | Y6: -0.1880484447 | Z6: ='price data'!N4 -> 124.24 | AA6: -0.05565033729 | AB6: ='price data'!O4 -> 126.13 | AC6: -0.1017545611 | AD6: ='price data'!P4 -> 68.34 | AE6: -0.124200794 | AF6: ='price data'!Q4 -> 116.11 | AG6: -0.1309874654 | AH6: ='price data'!R4 -> 124.7766 | AI6: -0.06120798864 | AJ6: ='price data'!S4 -> 290.25 | AK6: -0.08480970156 | AL6: ='price data'!T4 -> 66.9625 | AM6: -0.06750685721 | AN6: ='price data'!U4 -> 31.6805 | AO6: -0.1082297718 | AP6: ='price data'!V4 -> 89.25 | AQ6: -0.1698255047 | AR6: ='price data'!W4 -> 88.39 | AS6: -0.09243654062 | AT6: ='price data'!X4 -> 217.84 | AU6: -0.04602328092 | AV6: ='price data'!Y4 -> 130.15 | AW6: -0.09924890812 | AX6: ='price data'!Z4 -> 28.13 | AY6: 0.04619843141 | AZ6: ='price data'!AA4 -> 26.5974 | BA6: -0.06592420932 | BB6: ='price data'!AB4 -> 162.01 | BC6: -0.0494924021 | BD6: ='price data'!AC4 -> 194.17 | BE6: -0.09710175427 | BF6: ='price data'!AD4 -> 35.893 | BG6: -0.06132416943 | BH6: ='price data'!AE4 -> 53.49 | BI6: -0.08782116929 | BK6: ='price data'!AF4 -> 295.91 | BL6: -0.08833972733
A7: 2020-03-01 | B7: ='price data'!B5 -> 32.17 | C7: -0.9161042053 | D7: ='price data'!C5 -> 34.933 | E7: -0.2427805818 | F7: ='price data'!D5 -> 31.55 | G7: -0.6689259307 | H7: ='price data'!E5 -> 149.14 | I7: -0.6122855556 | J7: ='price data'!F5 -> 6.59 | K7: -0.02425578749 | L7: ='price data'!G5 -> 18.93 | M7: -0.4759946278 | N7: ='price data'!H5 -> 4.83 | O7: -0.3653330067 | P7: ='price data'!I5 -> 166.8 | Q7: -0.1431448075 | R7: ='price data'!J5 -> 53.37 | S7: -0.0764473734 | T7: ='price data'!K5 -> 37.97 | U7: -0.3036197057 | V7: ='price data'!L5 -> 13.088 | W7: -0.1673103054 | X7: ='price data'!M5 -> 52.14 | Y7: -0.3695377767 | Z7: ='price data'!N5 -> 116.04 | AA7: -0.06828021959 | AB7: ='price data'!O5 -> 138.72 | AC7: 0.09514439193 | AD7: ='price data'!P5 -> 63.5725 | AE7: -0.07231425979 | AF7: ='price data'!Q5 -> 90.03 | AG7: -0.2543950695 | AH7: ='price data'!R5 -> 114.1333 | AI7: -0.08915787481 | AJ7: ='price data'!S5 -> 241.56 | AK7: -0.1836247311 | AL7: ='price data'!T5 -> 58.0975 | AM7: -0.1420101275 | AN7: ='price data'!U5 -> 30.9411 | AO7: -0.02361595245 | AP7: ='price data'!V5 -> 68.53 | AQ7: -0.2641698151 | AR7: ='price data'!W5 -> 74.96 | AS7: -0.1648042031 | AT7: ='price data'!X5 -> 186.71 | AU7: -0.1542042374 | AV7: ='price data'!Y5 -> 110.93 | AW7: -0.1597882597 | AX7: ='price data'!Z5 -> 30.12 | AY7: 0.06835278043 | AZ7: ='price data'!AA5 -> 22.0135 | BA7: -0.1891575651 | BB7: ='price data'!AB5 -> 157.71 | BC7: -0.02690015822 | BD7: ='price data'!AC5 -> 165.35 | BE7: -0.1606696246 | BF7: ='price data'!AD5 -> 37.873 | BG7: 0.05369616675 | BH7: ='price data'!AE5 -> 44.25 | BI7: -0.1896393491 | BK7: ='price data'!AF5 -> 258.4 | BL7: -0.1355465821
A8: 2020-04-01 | B8: ='price data'!B6 -> 46.77 | C8: 0.3742076305 | D8: ='price data'!C6 -> 52.1248 | E8: 0.400208902 | F8: ='price data'!D6 -> 29.58 | G8: -0.0644751317 | H8: ='price data'!E6 -> 141.02 | I8: -0.05598373782 | J8: ='price data'!F6 -> 7.307 | K8: 0.1032794443 | L8: ='price data'!G6 -> 21.83 | M8: 0.1425372053 | N8: ='price data'!H6 -> 5.09 | O8: 0.0524313629 | P8: ='price data'!I6 -> 204.71 | Q8: 0.2047988535 | R8: ='price data'!J6 -> 71.92 | S8: 0.2983055998 | T8: ='price data'!K6 -> 46.47 | U8: 0.2020105689 | V8: ='price data'!L6 -> 17.571 | W8: 0.2945540359 | X8: ='price data'!M6 -> 62.37 | Y8: 0.179151982 | Z8: ='price data'!N6 -> 116.38 | AA8: 0.002925739975 | AB8: ='price data'!O6 -> 154.64 | AC8: 0.1086423219 | AD8: ='price data'!P6 -> 73.45 | AE8: 0.1444239157 | AF8: ='price data'!Q6 -> 95.76 | AG8: 0.06170211313 | AH8: ='price data'!R6 -> 127.0173 | AI8: 0.1069562341 | AJ8: ='price data'!S6 -> 274.97 | AK8: 0.1295441114 | AL8: ='price data'!T6 -> 67.335 | AM8: 0.1475575272 | AN8: ='price data'!U6 -> 36.3634 | AO8: 0.1614773771 | AP8: ='price data'!V6 -> 86.43 | AQ8: 0.2320632322 | AR8: ='price data'!W6 -> 81.16 | AS8: 0.07946787703 | AT8: ='price data'!X6 -> 219.83 | AU8: 0.1632979094 | AV8: ='price data'!Y6 -> 125.56 | AW8: 0.1238843602 | AX8: ='price data'!Z6 -> 31.61 | AY8: 0.0482841233 | AZ8: ='price data'!AA6 -> 23.0103 | BA8: 0.04428604025 | BB8: ='price data'!AB6 -> 179.21 | BC8: 0.1278003991 | BD8: ='price data'!AC6 -> 187.56 | BE8: 0.1260343548 | BF8: ='price data'!AD6 -> 40.5163 | BG8: 0.06746590512 | BH8: ='price data'!AE6 -> 45.89 | BI8: 0.03639185695 | BK8: ='price data'!AF6 -> 291.16 | BL8: 0.1193641723
A9: 2020-05-01 | B9: ='price data'!B7 -> 51.87 | C9: 0.1034986166 | D9: ='price data'!C7 -> 55.6661 | E9: 0.06573050087 | F9: ='price data'!D7 -> 28.04 | G9: -0.05346639512 | H9: ='price data'!E7 -> 145.85 | I9: 0.03367697202 | J9: ='price data'!F7 -> 8.8755 | K9: 0.194461879 | L9: ='price data'!G7 -> 21.34 | M9: -0.02270192469 | N9: ='price data'!H7 -> 5.71 | O9: 0.1149411931 | P9: ='price data'!I7 -> 225.09 | Q9: 0.09490597877 | R9: ='price data'!J7 -> 77.89 | S9: 0.07974318477 | T9: ='price data'!K7 -> 45.47 | U9: -0.02175417526 | V9: ='price data'!L7 -> 20.0782 | W9: 0.1333848336 | X9: ='price data'!M7 -> 60.96 | Y9: -0.02286647916 | Z9: ='price data'!N7 -> 120.13 | AA9: 0.0317137905 | AB9: ='price data'!O7 -> 152.95 | AC9: -0.0109887643 | AD9: ='price data'!P7 -> 79.485 | AE9: 0.07896342199 | AF9: ='price data'!Q7 -> 97.31 | AG9: 0.01605669758 | AH9: ='price data'!R7 -> 130.7964 | AI9: 0.02931861805 | AJ9: ='price data'!S7 -> 300.89 | AK9: 0.09008274864 | AL9: ='price data'!T7 -> 71.676 | AM9: 0.06247580264 | AN9: ='price data'!U7 -> 36.2022 | AO9: -0.004442883823 | AP9: ='price data'!V7 -> 89.73 | AQ9: 0.03747032355 | AR9: ='price data'!W7 -> 90.17 | AS9: 0.1052742626 | AT9: ='price data'!X7 -> 248.48 | AU9: 0.122507839 | AV9: ='price data'!Y7 -> 124.9 | AW9: -0.005270314842 | AX9: ='price data'!Z7 -> 32.62 | AY9: 0.03145207097 | AZ9: ='price data'!AA7 -> 23.3049 | BA9: 0.01272169712 | BB9: ='price data'!AB7 -> 183.25 | BC9: 0.02229303821 | BD9: ='price data'!AC7 -> 186.32 | BE9: -0.006633168645 | BF9: ='price data'!AD7 -> 41.3529 | BG9: 0.02043818974 | BH9: ='price data'!AE7 -> 46.68 | BI9: 0.01706857901 | BK9: ='price data'!AF7 -> 305.18 | BL9: 0.04702882221
A10: 2020-06-01 | B10: ='price data'!B8 -> 50.3 | C10: -0.03073551126 | D10: ='price data'!C8 -> 71.9866 | E10: 0.2571086465 | F10: ='price data'!D8 -> 34.61 | G10: 0.2105105955 | H10: ='price data'!E8 -> 183.3 | I10: 0.2285454585 | J10: ='price data'!F8 -> 9.4978 | K10: 0.06776552104 | L10: ='price data'!G8 -> 23.77 | M10: 0.1078410355 | N10: ='price data'!H8 -> 6.08 | O10: 0.06278567231 | P10: ='price data'!I8 -> 227.07 | Q10: 0.008758017763 | R10: ='price data'!J8 -> 79.41 | S10: 0.01932672998 | T10: ='price data'!K8 -> 44.72 | U10: -0.01663193899 | V10: ='price data'!L8 -> 21.0472 | W10: 0.04713288528 | X10: ='price data'!M8 -> 60.9 | Y10: -0.0009847366625 | Z10: ='price data'!N8 -> 126.5 | AA10: 0.05166781843 | AB10: ='price data'!O8 -> 164.18 | AC10: 0.07085231632 | AD10: ='price data'!P8 -> 91.2 | AE10: 0.1374865725 | AF10: ='price data'!Q8 -> 94.06 | AG10: -0.03396888232 | AH10: ='price data'!R8 -> 130.4201 | AI10: -0.00288113699 | AJ10: ='price data'!S8 -> 295.7 | AK10: -0.01739932259 | AL10: ='price data'!T8 -> 70.9025 | AM10: -0.01085026969 | AN10: ='price data'!U8 -> 30.998 | AO10: -0.1551972042 | AP10: ='price data'!V8 -> 86.91 | AQ10: -0.03193206086 | AR10: ='price data'!W8 -> 97.5 | AS10: 0.07815560049 | AT10: ='price data'!X8 -> 250.51 | AU10: 0.008136480487 | AV10: ='price data'!Y8 -> 120.77 | AW10: -0.03362550684 | AX10: ='price data'!Z8 -> 33.85 | AY10: 0.03701340217 | AZ10: ='price data'!AA8 -> 22.8291 | BA10: -0.02062760094 | BB10: ='price data'!AB8 -> 203.51 | BC10: 0.104863803 | BD10: ='price data'!AC8 -> 184.47 | BE10: -0.009978776943 | BF10: ='price data'!AD8 -> 39.9263 | BG10: -0.0351072974 | BH10: ='price data'!AE8 -> 44.68 | BI10: -0.04378983322 | BK10: ='price data'!AF8 -> 309.69 | BL10: 0.01467003068
A11: 2020-07-01 | B11: ='price data'!B9 -> 48.71 | C11: -0.03212072929 | D11: ='price data'!C9 -> 95.383 | E11: 0.2814203749 | F11: ='price data'!D9 -> 31.38 | G11: -0.09797191034 | H11: ='price data'!E9 -> 158 | I11: -0.1485291218 | J11: ='price data'!F9 -> 10.6148 | K11: 0.1111890609 | L11: ='price data'!G9 -> 26.03 | M11: 0.09082543763 | N11: ='price data'!H9 -> 6.61 | O11: 0.08357895789 | P11: ='price data'!I9 -> 253.67 | Q11: 0.1107758697 | R11: ='price data'!J9 -> 94.67 | S11: 0.1757728552 | T11: ='price data'!K9 -> 42.08 | U11: -0.06084826042 | V11: ='price data'!L9 -> 23.1032 | W11: 0.09320360142 | X11: ='price data'!M9 -> 63.37 | Y11: 0.03975738862 | Z11: ='price data'!N9 -> 132.88 | AA11: 0.04920415714 | AB11: ='price data'!O9 -> 150.29 | AC11: -0.08839662597 | AD11: ='price data'!P9 -> 106.26 | AE11: 0.1528340239 | AF11: ='price data'!Q9 -> 96.64 | AG11: 0.02705985767 | AH11: ='price data'!R9 -> 125.805 | AI11: -0.03602768961 | AJ11: ='price data'!S9 -> 308.53 | AK11: 0.04247365649 | AL11: ='price data'!T9 -> 74.3975 | AM11: 0.04811664528 | AN11: ='price data'!U9 -> 36.4771 | AO11: 0.1627619802 | AP11: ='price data'!V9 -> 91.05 | AQ11: 0.04653570572 | AR11: ='price data'!W9 -> 98.59 | AS11: 0.01111745858 | AT11: ='price data'!X9 -> 265.49 | AU11: 0.0580783353 | AV11: ='price data'!Y9 -> 122.94 | AW11: 0.01780852119 | AX11: ='price data'!Z9 -> 34.79 | AY11: 0.02739098981 | AZ11: ='price data'!AA9 -> 22.3382 | BA11: -0.02173782052 | BB11: ='price data'!AB9 -> 205.01 | BC11: 0.007343614712 | BD11: ='price data'!AC9 -> 194.28 | BE11: 0.05181356884 | BF11: ='price data'!AD9 -> 43.1329 | BG11: 0.07725079236 | BH11: ='price data'!AE9 -> 47.24 | BI11: 0.05571501713 | BK11: ='price data'!AF9 -> 327.82 | BL11: 0.05689288012
A12: 2020-08-01 | B12: ='price data'!B10 -> 68.84 | C12: 0.3459006235 | D12: ='price data'!C10 -> 166.105 | E12: 0.554719753 | F12: ='price data'!D10 -> 36 | G12: 0.1373481912 | H12: ='price data'!E10 -> 171.82 | I12: 0.08385238418 | J12: ='price data'!F10 -> 13.3745 | K12: 0.2311006552 | L12: ='price data'!G10 -> 27.71 | M12: 0.06254363987 | N12: ='price data'!H10 -> 6.82 | O12: 0.03127581799 | P12: ='price data'!I10 -> 293.2 | Q12: 0.1448207603 | R12: ='price data'!J10 -> 98.29 | S12: 0.03752513244 | T12: ='price data'!K10 -> 39.94 | U12: -0.05219424044 | V12: ='price data'!L10 -> 26.2056 | W12: 0.1260019923 | X12: ='price data'!M10 -> 67.77 | Y12: 0.06712905581 | Z12: ='price data'!N10 -> 142.31 | AA12: 0.06856131139 | AB12: ='price data'!O10 -> 148.39 | AC12: -0.01272281793 | AD12: ='price data'!P10 -> 129.04 | AE12: 0.1942335128 | AF12: ='price data'!Q10 -> 100.19 | AG12: 0.03607564908 | AH12: ='price data'!R10 -> 136.2978 | AI12: 0.0801091086 | AJ12: ='price data'!S10 -> 358.19 | AK12: 0.1492444885 | AL12: ='price data'!T10 -> 81.4765 | AM12: 0.09089229599 | AN12: ='price data'!U10 -> 35.823 | AO12: -0.01809452121 | AP12: ='price data'!V10 -> 95.85 | AQ12: 0.05137566332 | AR12: ='price data'!W10 -> 103.61 | AS12: 0.04966401368 | AT12: ='price data'!X10 -> 285.04 | AU12: 0.07105234611 | AV12: ='price data'!Y10 -> 123.31 | AW12: 0.003005078404 | AX12: ='price data'!Z10 -> 35.68 | AY12: 0.02526031855 | AZ12: ='price data'!AA10 -> 22.5119 | BA12: 0.007745840855 | BB12: ='price data'!AB10 -> 225.53 | BC12: 0.09539442935 | BD12: ='price data'!AC10 -> 213.52 | BE12: 0.09443008762 | BF12: ='price data'!AD10 -> 46.2829 | BG12: 0.07048651544 | BH12: ='price data'!AE10 -> 49.53 | BI12: 0.04733755527 | BK12: ='price data'!AF10 -> 350.77 | BL12: 0.06766606077
A13: 2020-09-01 | B13: ='price data'!B11 -> 64.73 | C13: -0.06156019879 | D13: ='price data'!C11 -> 143.0019 | E13: -0.1497622016 | F13: ='price data'!D11 -> 34.75 | G13: -0.03533936645 | H13: ='price data'!E11 -> 165.26 | I13: -0.03892742594 | J13: ='price data'!F11 -> 13.5305 | K13: 0.01159648751 | L13: ='price data'!G11 -> 24.54 | M13: -0.1214889196 | N13: ='price data'!H11 -> 6.66 | O13: -0.0237399873 | P13: ='price data'!I11 -> 261.9 | Q13: -0.1128922185 | R13: ='price data'!J11 -> 82.28 | S13: -0.1777942278 | T13: ='price data'!K11 -> 34.33 | U13: -0.1513587205 | V13: ='price data'!L11 -> 24.8742 | W13: -0.05214200666 | X13: ='price data'!M11 -> 63.52 | Y13: -0.06476480221 | Z13: ='price data'!N11 -> 149.15 | AA13: 0.04694473427 | AB13: ='price data'!O11 -> 148.02 | AC13: -0.002496543249 | AD13: ='price data'!P11 -> 115.81 | AE13: -0.1081715166 | AF13: ='price data'!Q11 -> 96.27 | AG13: -0.03991163948 | AH13: ='price data'!R11 -> 133.9233 | AI13: -0.01757494969 | AJ13: ='price data'!S11 -> 338.17 | AK13: -0.05751484425 | AL13: ='price data'!T11 -> 73.28 | AM13: -0.1060269147 | AN13: ='price data'!U11 -> 34.7898 | AO13: -0.02926590485 | AP13: ='price data'!V11 -> 91.3 | AQ13: -0.04863368189 | AR13: ='price data'!W11 -> 94.86 | AS13: -0.08823172981 | AT13: ='price data'!X11 -> 277.71 | AU13: -0.02605211755 | AV13: ='price data'!Y11 -> 121.67 | AW13: -0.01338904808 | AX13: ='price data'!Z11 -> 33.91 | AY13: -0.05088035157 | AZ13: ='price data'!AA11 -> 21.5302 | BA13: -0.04458745759 | BB13: ='price data'!AB11 -> 210.33 | BC13: -0.0697754619 | BD13: ='price data'!AC11 -> 219.49 | BE13: 0.02757616829 | BF13: ='price data'!AD11 -> 46.6362 | BG13: 0.007604501175 | BH13: ='price data'!AE11 -> 49.37 | BI13: -0.003235594329 | BK13: ='price data'!AF11 -> 336.06 | BL13: -0.04284102258
A14: 2020-10-01 | B14: ='price data'!B12 -> 56.42 | C14: -0.137401067 | D14: ='price data'!C12 -> 129.3454 | E14: -0.1003715713 | F14: ='price data'!D12 -> 33.86 | G14: -0.02594519531 | H14: ='price data'!E12 -> 144.39 | I14: -0.1350020193 | J14: ='price data'!F12 -> 12.534 | K14: -0.07650144461 | L14: ='price data'!G12 -> 32.88 | M14: 0.2925601309 | N14: ='price data'!H12 -> 7.73 | O14: 0.148989378 | P14: ='price data'!I12 -> 263.11 | Q14: 0.004609444172 | R14: ='price data'!J12 -> 76.6 | S14: -0.07153098804 | T14: ='price data'!K12 -> 32.62 | U14: -0.05109401028 | V14: ='price data'!L12 -> 24.0296 | W14: -0.03454471797 | X14: ='price data'!M12 -> 64.02 | Y14: 0.007840717603 | Z14: ='price data'!N12 -> 157.05 | AA14: 0.05161171502 | AB14: ='price data'!O12 -> 130.46 | AC14: -0.1262807334 | AD14: ='price data'!P12 -> 108.86 | AE14: -0.06188826419 | AF14: ='price data'!Q12 -> 98.04 | AG14: 0.01821881487 | AH14: ='price data'!R12 -> 133.7394 | AI14: -0.001374117716 | AJ14: ='price data'!S12 -> 288.64 | AK14: -0.1583684907 | AL14: ='price data'!T12 -> 80.8055 | AM14: 0.09775731215 | AN14: ='price data'!U12 -> 33.6333 | AO14: -0.03380759276 | AP14: ='price data'!V12 -> 93.33 | AQ14: 0.02199081198 | AR14: ='price data'!W12 -> 104.02 | AS14: 0.0921810679 | AT14: ='price data'!X12 -> 266.71 | AU14: -0.04041547795 | AV14: ='price data'!Y12 -> 111.66 | AW14: -0.08585392192 | AX14: ='price data'!Z12 -> 32.21 | AY14: -0.05143299279 | AZ14: ='price data'!AA12 -> 20.405 | BA14: -0.05367663184 | BB14: ='price data'!AB12 -> 202.47 | BC14: -0.03808599846 | BD14: ='price data'!AC12 -> 213 | BE14: -0.03001450768 | BF14: ='price data'!AD12 -> 46.2495 | BG14: -0.008326410505 | BH14: ='price data'!AE12 -> 48.06 | BI14: -0.02689272196 | BK14: ='price data'!AF12 -> 327.62 | BL14: -0.02543531527
A15: 2020-11-01 | B15: ='price data'!B13 -> 78.81 | C15: 0.3342161868 | D15: ='price data'!C13 -> 189.1981 | E15: 0.3803082687 | F15: ='price data'!D13 -> 45.05 | G15: 0.2855386073 | H15: ='price data'!E13 -> 210.71 | I15: 0.3779648085 | J15: ='price data'!F13 -> 13.4015 | K15: 0.06692168919 | L15: ='price data'!G13 -> 40.29 | M15: 0.203238729 | N15: ='price data'!H13 -> 9.08 | O15: 0.16096533 | P15: ='price data'!I13 -> 276.97 | Q15: 0.05133700139 | R15: ='price data'!J13 -> 80.36 | S15: 0.0479194632 | T15: ='price data'!K13 -> 38.13 | U15: 0.1560757767 | V15: ='price data'!L13 -> 25.7886 | W15: 0.07064613006 | X15: ='price data'!M13 -> 75.62 | Y15: 0.1665252639 | Z15: ='price data'!N13 -> 173.59 | AA15: 0.1001319709 | AB15: ='price data'!O13 -> 145.65 | AC15: 0.110139817 | AD15: ='price data'!P13 -> 119.05 | AE15: 0.08948091993 | AF15: ='price data'!Q13 -> 117.88 | AG15: 0.1842915992 | AH15: ='price data'!R13 -> 144.4161 | AI15: 0.07680558579 | AJ15: ='price data'!S13 -> 336.51 | AK15: 0.1534476295 | AL15: ='price data'!T13 -> 87.72 | AM15: 0.08210489103 | AN15: ='price data'!U13 -> 38.31 | AO15: 0.1301943111 | AP15: ='price data'!V13 -> 105.8 | AQ15: 0.1254089198 | AR15: ='price data'!W13 -> 116.76 | AS15: 0.1155373576 | AT15: ='price data'!X13 -> 277.41 | AU15: 0.03933463046 | AV15: ='price data'!Y13 -> 123.52 | AW15: 0.1009445464 | AX15: ='price data'!Z13 -> 33 | AY15: 0.02423059812 | AZ15: ='price data'!AA13 -> 21.7114 | BA15: 0.06205749937 | BB15: ='price data'!AB13 -> 214.07 | BC15: 0.05571133692 | BD15: ='price data'!AC13 -> 217.44 | BE15: 0.02063078469 | BF15: ='price data'!AD13 -> 50.9295 | BG15: 0.09639167036 | BH15: ='price data'!AE13 -> 51.6 | BI15: 0.07107144218 | BK15: ='price data'!AF13 -> 363.32 | BL15: 0.1034295885
A16: 2020-12-01 | B16: ='price data'!B14 -> 74.69 | C16: -0.053693678 | D16: ='price data'!C14 -> 235.221 | E16: 0.2177308835 | F16: ='price data'!D14 -> 43.25 | G16: -0.04077575068 | H16: ='price data'!E14 -> 214.06 | I16: 0.01577356903 | J16: ='price data'!F14 -> 13.055 | K16: -0.02619543884 | L16: ='price data'!G14 -> 36.7 | M16: -0.09332654414 | N16: ='price data'!H14 -> 8.79 | O16: -0.03245948092 | P16: ='price data'!I14 -> 273.16 | Q16: -0.01385149298 | R16: ='price data'!J14 -> 84.85 | S16: 0.05436845173 | T16: ='price data'!K14 -> 41.22 | U16: 0.07792220159 | V16: ='price data'!L14 -> 27.7342 | W16: 0.07273377486 | X16: ='price data'!M14 -> 78.07 | Y16: 0.03188506167 | Z16: ='price data'!N14 -> 182.02 | AA16: 0.04742037427 | AB16: ='price data'!O14 -> 168.84 | AC16: 0.1477450375 | AD16: ='price data'!P14 -> 132.69 | AE16: 0.1084720076 | AF16: ='price data'!Q14 -> 127.07 | AG16: 0.07507095785 | AH16: ='price data'!R14 -> 146.1384 | AI16: 0.01185540181 | AJ16: ='price data'!S14 -> 356.94 | AK16: 0.0589398341 | AL16: ='price data'!T14 -> 87.632 | AM16: -0.001003695508 | AN16: ='price data'!U14 -> 36.81 | AO16: -0.03994141132 | AP16: ='price data'!V14 -> 108.56 | AQ16: 0.0257524961 | AR16: ='price data'!W14 -> 119.66 | AS16: 0.02453384198 | AT16: ='price data'!X14 -> 265.62 | AU16: -0.04342984029 | AV16: ='price data'!Y14 -> 125.88 | AW16: 0.01892598592 | AX16: ='price data'!Z14 -> 31.76 | AY16: -0.03829992509 | AZ16: ='price data'!AA14 -> 21.719 | BA16: 0.0003499852674 | BB16: ='price data'!AB14 -> 222.42 | BC16: 0.03826442205 | BD16: ='price data'!AC14 -> 214.58 | BE16: -0.01324032119 | BF16: ='price data'!AD14 -> 48.0495 | BG16: -0.05821059392 | BH16: ='price data'!AE14 -> 54.84 | BI16: 0.06089818221 | BK16: ='price data'!AF14 -> 375.39 | BL16: 0.03268149691
A17: 2021-01-01 | B17: ='price data'!B15 -> 65 | C17: -0.1389589445 | D17: ='price data'!C15 -> 264.5074 | E17: 0.1173437305 | F17: ='price data'!D15 -> 39.99 | G17: -0.07836781052 | H17: ='price data'!E15 -> 194.19 | I17: -0.09741928833 | J17: ='price data'!F15 -> 12.9898 | K17: -0.005006768046 | L17: ='price data'!G15 -> 40.09 | M17: 0.08835017159 | N17: ='price data'!H15 -> 10.53 | O17: 0.1806136144 | P17: ='price data'!I15 -> 258.33 | Q17: -0.05581986672 | R17: ='price data'!J15 -> 102.28 | S17: 0.1868291587 | T17: ='price data'!K15 -> 44.84 | U17: 0.08417702274 | V17: ='price data'!L15 -> 29.6 | W17: 0.06510805266 | X17: ='price data'!M15 -> 78.28 | Y17: 0.002686282396 | Z17: ='price data'!N15 -> 182.84 | AA17: 0.004494882314 | AB17: ='price data'!O15 -> 207.97 | AC17: 0.2084423176 | AD17: ='price data'!P15 -> 131.96 | AE17: -0.005516734188 | AF17: ='price data'!Q15 -> 128.67 | AG17: 0.01251287148 | AH17: ='price data'!R15 -> 146.8658 | AI17: 0.004965126741 | AJ17: ='price data'!S15 -> 316.29 | AK17: -0.1209081862 | AL17: ='price data'!T15 -> 91.368 | AM17: 0.04174907971 | AN17: ='price data'!U15 -> 35.9 | AO17: -0.0250322519 | AP17: ='price data'!V15 -> 101.49 | AQ17: -0.06734274407 | AR17: ='price data'!W15 -> 114.86 | AS17: -0.04094039253 | AT17: ='price data'!X15 -> 270.82 | AU17: 0.01938767758 | AV17: ='price data'!Y15 -> 119.11 | AW17: -0.0552816363 | AX17: ='price data'!Z15 -> 34.5 | AY17: 0.08275168766 | AZ17: ='price data'!AA15 -> 21.6208 | BA17: -0.004531639188 | BB17: ='price data'!AB15 -> 231.96 | BC17: 0.04199745662 | BD17: ='price data'!AC15 -> 207.84 | BE17: -0.03191407629 | BF17: ='price data'!AD15 -> 46.8295 | BG17: -0.02571838331 | BH17: ='price data'!AE15 -> 48.15 | BI17: -0.1300987164 | BK17: ='price data'!AF15 -> 371.52 | BL17: -0.01036278704
A18: 2021-02-01 | B18: ='price data'!B16 -> 93.27 | C18: 0.3611112428 | D18: ='price data'!C16 -> 225.1644 | E18: -0.1610384262 | F18: ='price data'!D16 -> 52.68 | G18: 0.275606454 | H18: ='price data'!E16 -> 212.01 | I18: 0.08779638215 | J18: ='price data'!F16 -> 13.7145 | K18: 0.05428923319 | L18: ='price data'!G16 -> 35.67 | M18: -0.1168169273 | N18: ='price data'!H16 -> 11.7 | O18: 0.1053605157 | P18: ='price data'!I16 -> 257.62 | Q18: -0.002752206408 | R18: ='price data'!J16 -> 90.19 | S18: -0.1257955942 | T18: ='price data'!K16 -> 54.37 | U18: 0.192711933 | V18: ='price data'!L16 -> 28.84 | W18: -0.02601104891 | X18: ='price data'!M16 -> 86.72 | Y18: 0.1023923952 | Z18: ='price data'!N16 -> 215.88 | AA18: 0.1661112443 | AB18: ='price data'!O16 -> 204.89 | AC18: -0.01492058877 | AD18: ='price data'!P16 -> 121.26 | AE18: -0.08456184572 | AF18: ='price data'!Q16 -> 147.17 | AG18: 0.134337394 | AH18: ='price data'!R16 -> 146.3642 | AI18: -0.003421208534 | AJ18: ='price data'!S16 -> 353.85 | AK18: 0.1122135803 | AL18: ='price data'!T16 -> 101.0955 | AM18: 0.1011703069 | AN18: ='price data'!U16 -> 33.49 | AO18: -0.06949040869 | AP18: ='price data'!V16 -> 103.53 | AQ18: 0.01990115432 | AR18: ='price data'!W16 -> 124.02 | AS18: 0.07672884749 | AT18: ='price data'!X16 -> 258.34 | AU18: -0.04717784675 | AV18: ='price data'!Y16 -> 118.93 | AW18: -0.001512351154 | AX18: ='price data'!Z16 -> 32.21 | AY18: -0.06868236069 | AZ18: ='price data'!AA16 -> 21.062 | BA18: -0.02618534534 | BB18: ='price data'!AB16 -> 232.38 | BC18: 0.001809019746 | BD18: ='price data'!AC16 -> 206.14 | BE18: -0.008213003314 | BF18: ='price data'!AD16 -> 43.3062 | BG18: -0.0782175344 | BH18: ='price data'!AE16 -> 48.99 | BI18: 0.01729505741 | BK18: ='price data'!AF16 -> 381.77 | BL18: 0.02721563452
A19: 2021-03-01 | B19: ='price data'!B17 -> 85.61 | C19: -0.08569641398 | D19: ='price data'!C17 -> 222.6411 | E19: -0.01126974415 | F19: ='price data'!D17 -> 57.54 | G19: 0.08824448125 | H19: ='price data'!E17 -> 254.72 | I19: 0.1835314593 | J19: ='price data'!F17 -> 13.3483 | K19: -0.02706463138 | L19: ='price data'!G17 -> 40.1 | M19: 0.1170663349 | N19: ='price data'!H17 -> 12.25 | O19: 0.04593709519 | P19: ='price data'!I17 -> 294.53 | Q19: 0.1338952345 | R19: ='price data'!J17 -> 88.64 | S19: -0.01733533318 | T19: ='price data'!K17 -> 55.83 | U19: 0.02649882816 | V19: ='price data'!L17 -> 28.4164 | W19: -0.01479686913 | X19: ='price data'!M17 -> 91.1 | Y19: 0.04927326657 | Z19: ='price data'!N17 -> 231.87 | AA19: 0.07145417204 | AB19: ='price data'!O17 -> 186.82 | AC19: -0.09232766331 | AD19: ='price data'!P17 -> 122.15 | AE19: 0.00731279706 | AF19: ='price data'!Q17 -> 152.23 | AG19: 0.0338041539 | AH19: ='price data'!R17 -> 161.0959 | AI19: 0.09590180372 | AJ19: ='price data'!S17 -> 356.05 | AK19: 0.006198075906 | AL19: ='price data'!T17 -> 103.126 | AM19: 0.01988592693 | AN19: ='price data'!U17 -> 36.23 | AO19: 0.0786406181 | AP19: ='price data'!V17 -> 108.18 | AQ19: 0.04393508067 | AR19: ='price data'!W17 -> 131.85 | AS19: 0.06122206988 | AT19: ='price data'!X17 -> 305.25 | AU19: 0.1668545662 | AV19: ='price data'!Y17 -> 133.26 | AW19: 0.1137670224 | AX19: ='price data'!Z17 -> 35.99 | AY19: 0.1109641587 | AZ19: ='price data'!AA17 -> 22.8593 | BA19: 0.08188756777 | BB19: ='price data'!AB17 -> 235.77 | BC19: 0.01448279079 | BD19: ='price data'!AC17 -> 224.14 | BE19: 0.08371530702 | BF19: ='price data'!AD17 -> 45.2762 | BG19: 0.04448569629 | BH19: ='price data'!AE17 -> 52.71 | BI19: 0.07318899522 | BK19: ='price data'!AF17 -> 397.82 | BL19: 0.04118130864
A20: 2021-04-01 | B20: ='price data'!B18 -> 86.95 | C20: 0.01553114205 | D20: ='price data'!C18 -> 236.4776 | E20: 0.06029243094 | F20: ='price data'!D18 -> 54.4 | G20: -0.05611620426 | H20: ='price data'!E18 -> 234.31 | I20: -0.08351987773 | J20: ='price data'!F18 -> 15.0095 | K20: 0.1172942981 | L20: ='price data'!G18 -> 48.37 | M20: 0.1875034525 | N20: ='price data'!H18 -> 11.54 | O20: -0.05970667591 | P20: ='price data'!I18 -> 325.08 | Q20: 0.09869044041 | R20: ='price data'!J18 -> 96.72 | S20: 0.08723698331 | T20: ='price data'!K18 -> 57.24 | U20: 0.02494159537 | V20: ='price data'!L18 -> 29.8406 | W20: 0.04890343908 | X20: ='price data'!M18 -> 100.36 | Y20: 0.09680591723 | Z20: ='price data'!N18 -> 228.11 | AA20: -0.01634890104 | AB20: ='price data'!O18 -> 182.77 | AC20: -0.02191705468 | AD20: ='price data'!P18 -> 131.46 | AE20: 0.07345282513 | AF20: ='price data'!Q18 -> 153.81 | AG20: 0.01032553939 | AH20: ='price data'!R18 -> 164.8248 | AI20: 0.02288325176 | AJ20: ='price data'!S18 -> 382.06 | AK20: 0.07050649391 | AL20: ='price data'!T18 -> 117.675 | AM20: 0.1319750457 | AN20: ='price data'!U18 -> 38.65 | AO20: 0.06465927013 | AP20: ='price data'!V18 -> 119.52 | AQ20: 0.09968721494 | AR20: ='price data'!W18 -> 137.24 | AS20: 0.04006630519 | AT20: ='price data'!X18 -> 323.67 | AU20: 0.05859336524 | AV20: ='price data'!Y18 -> 141.88 | AW20: 0.06267952277 | AX20: ='price data'!Z18 -> 36.54 | AY20: 0.01516642886 | AZ20: ='price data'!AA18 -> 23.7202 | BA20: 0.03696896907 | BB20: ='price data'!AB18 -> 252.18 | BC20: 0.0672863647 | BD20: ='price data'!AC18 -> 236.08 | BE20: 0.05189987401 | BF20: ='price data'!AD18 -> 46.6362 | BG20: 0.02959555548 | BH20: ='price data'!AE18 -> 53.98 | BI20: 0.02380841672 | BK20: ='price data'!AF18 -> 418.88 | BL20: 0.05158484104
A21: 2021-05-01 | B21: ='price data'!B19 -> 93.27 | C21: 0.07016527194 | D21: ='price data'!C19 -> 208.4046 | E21: -0.1263721063 | F21: ='price data'!D19 -> 58.35 | G21: 0.07009520487 | H21: ='price data'!E19 -> 247.02 | I21: 0.05282428008 | J21: ='price data'!F19 -> 16.2445 | K21: 0.07907105598 | L21: ='price data'!G19 -> 48.47 | M21: 0.002065263022 | N21: ='price data'!H19 -> 14.53 | O21: 0.2303962165 | P21: ='price data'!I19 -> 328.73 | Q21: 0.01116543925 | R21: ='price data'!J19 -> 93.95 | S21: -0.02905748045 | T21: ='price data'!K19 -> 58.37 | U21: 0.01954910453 | V21: ='price data'!L19 -> 27.4396 | W21: -0.08388265688 | X21: ='price data'!M19 -> 106.97 | Y21: 0.06378469982 | Z21: ='price data'!N19 -> 241.08 | AA21: 0.05530085986 | AB21: ='price data'!O19 -> 199.74 | AC21: 0.08878798905 | AD21: ='price data'!P19 -> 124.61 | AE21: -0.05351376288 | AF21: ='price data'!Q19 -> 164.24 | AG21: 0.06561069825 | AH21: ='price data'!R19 -> 169.7577 | AI21: 0.02948903464 | AJ21: ='price data'!S19 -> 360.58 | AK21: -0.05786381822 | AL21: ='price data'!T19 -> 117.8425 | AM21: 0.001422399849 | AN21: ='price data'!U19 -> 38.73 | AO21: 0.002067718493 | AP21: ='price data'!V19 -> 119.97 | AQ21: 0.003757990142 | AR21: ='price data'!W19 -> 142.24 | AS21: 0.03578455378 | AT21: ='price data'!X19 -> 318.91 | AU21: -0.01481554691 | AV21: ='price data'!Y19 -> 143.74 | AW21: 0.01302448213 | AX21: ='price data'!Z19 -> 36.98 | AY21: 0.01196967501 | AZ21: ='price data'!AA19 -> 22.2249 | BA21: -0.06511372384 | BB21: ='price data'!AB19 -> 249.68 | BC21: -0.009963020283 | BD21: ='price data'!AC19 -> 233.89 | BE21: -0.009319811272 | BF21: ='price data'!AD19 -> 47.3429 | BG21: 0.01503979759 | BH21: ='price data'!AE19 -> 55.29 | BI21: 0.02397845276 | BK21: ='price data'!AF19 -> 421.65 | BL21: 0.006591103299
A22: 2021-06-01 | B22: ='price data'!B20 -> 85.28 | C22: -0.08955855232 | D22: ='price data'!C20 -> 226.5644 | E22: 0.08354784865 | F22: ='price data'!D20 -> 52.29 | G22: -0.1096542105 | H22: ='price data'!E20 -> 239.56 | I22: -0.03066539761 | J22: ='price data'!F20 -> 20.0025 | K22: 0.2081028758 | L22: ='price data'!G20 -> 45.82 | M22: -0.05622437283 | N22: ='price data'!H20 -> 14.86 | O22: 0.02245756171 | P22: ='price data'!I20 -> 347.71 | Q22: 0.05613205389 | R22: ='price data'!J20 -> 104.44 | S22: 0.105850018 | T22: ='price data'!K20 -> 63.08 | U22: 0.07760170288 | V22: ='price data'!L20 -> 31.0068 | W22: 0.1222193098 | X22: ='price data'!M20 -> 102.47 | Y22: -0.04297834851 | Z22: ='price data'!N20 -> 217.63 | AA22: -0.1023324555 | AB22: ='price data'!O20 -> 229.52 | AC22: 0.1389736509 | AD22: ='price data'!P20 -> 136.96 | AE22: 0.09450005244 | AF22: ='price data'!Q20 -> 155.54 | AG22: -0.05442583944 | AH22: ='price data'!R20 -> 166.0706 | AI22: -0.02195912709 | AJ22: ='price data'!S20 -> 365.09 | AK22: 0.01243005242 | AL22: ='price data'!T20 -> 122.0895 | AM22: 0.0354053952 | AN22: ='price data'!U20 -> 39.16 | AO22: 0.01104132414 | AP22: ='price data'!V20 -> 115.03 | AQ22: -0.04204874762 | AR22: ='price data'!W20 -> 144.64 | AS22: 0.01673212488 | AT22: ='price data'!X20 -> 318.89 | AU22: -6.271558484e-05 | AV22: ='price data'!Y20 -> 146.59 | AW22: 0.01963346226 | AX22: ='price data'!Z20 -> 38.31 | AY22: 0.03533373275 | AZ22: ='price data'!AA20 -> 21.7341 | BA22: -0.02233082624 | BB22: ='price data'!AB20 -> 270.9 | BC22: 0.08156965113 | BD22: ='price data'!AC20 -> 230.99 | BE22: -0.01247649982 | BF22: ='price data'!AD20 -> 47.0062 | BG22: -0.007137353284 | BH22: ='price data'!AE20 -> 54.11 | BI22: -0.0215730487 | BK22: ='price data'!AF20 -> 429.92 | BL22: 0.01942355885
A23: 2021-07-01 | B23: ='price data'!B21 -> 76.87 | C23: -0.1038242771 | D23: ='price data'!C21 -> 229.0644 | E23: 0.01097395551 | F23: ='price data'!D21 -> 46.72 | G23: -0.1126328097 | H23: ='price data'!E21 -> 226.48 | I23: -0.05614726659 | J23: ='price data'!F21 -> 19.499 | K23: -0.02549408354 | L23: ='price data'!G21 -> 39.62 | M23: -0.1453866358 | N23: ='price data'!H21 -> 13.95 | O23: -0.06319353102 | P23: ='price data'!I21 -> 356.3 | Q23: 0.02440427359 | R23: ='price data'!J21 -> 114.12 | S23: 0.08863778251 | T23: ='price data'!K21 -> 57.57 | U23: -0.09140216341 | V23: ='price data'!L21 -> 37.2688 | W23: 0.1839499802 | X23: ='price data'!M21 -> 100.28 | Y23: -0.02160379952 | Z23: ='price data'!N21 -> 206.75 | AA23: -0.05128603922 | AB23: ='price data'!O21 -> 243.5 | AC23: 0.05912677085 | AD23: ='price data'!P21 -> 145.86 | AE23: 0.06295834516 | AF23: ='price data'!Q21 -> 151.78 | AG23: -0.02447082929 | AH23: ='price data'!R21 -> 165.4937 | AI23: -0.003479871519 | AJ23: ='price data'!S21 -> 385.94 | AK23: 0.05553801844 | AL23: ='price data'!T21 -> 134.7265 | AM23: 0.09849241522 | AN23: ='price data'!U21 -> 42.81 | AO23: 0.08911590249 | AP23: ='price data'!V21 -> 131.39 | AQ23: 0.1329770357 | AR23: ='price data'!W21 -> 157.2 | AS23: 0.08327098335 | AT23: ='price data'!X21 -> 328.19 | AU23: 0.02874649323 | AV23: ='price data'!Y21 -> 140.96 | AW23: -0.03916341211 | AX23: ='price data'!Z21 -> 40.7 | AY23: 0.06051713374 | AZ23: ='price data'!AA21 -> 21.1828 | BA23: -0.02569292409 | BB23: ='price data'!AB21 -> 284.91 | BC23: 0.05042359183 | BD23: ='price data'!AC21 -> 242.71 | BE23: 0.04949289547 | BF23: ='price data'!AD21 -> 47.5162 | BG23: 0.01079119762 | BH23: ='price data'!AE21 -> 57.03 | BI23: 0.05255843351 | BK23: ='price data'!AF21 -> 440.4 | BL23: 0.02408425998
A24: 2021-08-01 | B24: ='price data'!B22 -> 82.73 | C24: 0.07346660984 | D24: ='price data'!C22 -> 245.2375 | E24: 0.06822394202 | F24: ='price data'!D22 -> 46.51 | G24: -0.004504995284 | H24: ='price data'!E22 -> 219.5 | I24: -0.03130440829 | J24: ='price data'!F22 -> 22.385 | K24: 0.1380279095 | L24: ='price data'!G22 -> 39.53 | M24: -0.002274163962 | N24: ='price data'!H22 -> 13.03 | O24: -0.06822511713 | P24: ='price data'!I22 -> 379.38 | Q24: 0.06276526869 | R24: ='price data'!J22 -> 127.53 | S24: 0.1111011047 | T24: ='price data'!K22 -> 54.52 | U24: -0.05443399186 | V24: ='price data'!L22 -> 38.0666 | W24: 0.02118074174 | X24: ='price data'!M22 -> 105.88 | Y24: 0.05434010407 | Z24: ='price data'!N22 -> 210.87 | AA24: 0.01973149595 | AB24: ='price data'!O22 -> 258.29 | AC24: 0.05896604216 | AD24: ='price data'!P22 -> 151.83 | AE24: 0.04011421634 | AF24: ='price data'!Q22 -> 159.95 | AG24: 0.05242916242 | AH24: ='price data'!R22 -> 162.8182 | AI24: -0.0162988867 | AJ24: ='price data'!S22 -> 346.23 | AK24: -0.1085786229 | AL24: ='price data'!T22 -> 144.6975 | AM24: 0.07139855881 | AN24: ='price data'!U22 -> 46.07 | AO24: 0.07339025879 | AP24: ='price data'!V22 -> 131.03 | AQ24: -0.002743695037 | AR24: ='price data'!W22 -> 174.43 | AS24: 0.104004635 | AT24: ='price data'!X22 -> 326.18 | AU24: -0.006143332737 | AV24: ='price data'!Y22 -> 140.34 | AW24: -0.004408112364 | AX24: ='price data'!Z22 -> 46.03 | AY24: 0.1230652654 | AZ24: ='price data'!AA22 -> 20.707 | BA24: -0.02271772427 | BB24: ='price data'!AB22 -> 301.88 | BC24: 0.05785624649 | BD24: ='price data'!AC22 -> 237.46 | BE24: -0.02186812678 | BF24: ='price data'!AD22 -> 49.3662 | BG24: 0.03819527396 | BH24: ='price data'!AE22 -> 56.31 | BI24: -0.0127053059 | BK24: ='price data'!AF22 -> 453.71 | BL24: 0.02977482257
A25: 2021-09-01 | B25: ='price data'!B23 -> 88.95 | C25: 0.07249212091 | D25: ='price data'!C23 -> 258.4907 | E25: 0.05263258777 | F25: ='price data'!D23 -> 47.57 | G25: 0.02253496721 | H25: ='price data'!E23 -> 219.94 | I25: 0.002002549368 | J25: ='price data'!F23 -> 20.716 | K25: -0.07748474313 | L25: ='price data'!G23 -> 36.61 | M25: -0.07673845018 | N25: ='price data'!H23 -> 14.16 | O25: 0.08316669713 | P25: ='price data'!I23 -> 339.39 | Q25: -0.1113884527 | R25: ='price data'!J23 -> 126.99 | S25: -0.004243287838 | T25: ='price data'!K23 -> 58.82 | U25: 0.0759143263 | V25: ='price data'!L23 -> 36.3504 | W25: -0.04613204919 | X25: ='price data'!M23 -> 105.2 | Y25: -0.006443077055 | Z25: ='price data'!N23 -> 191.97 | AA25: -0.09390272004 | AB25: ='price data'!O23 -> 231.05 | AC25: -0.1114488474 | AD25: ='price data'!P23 -> 141.5 | AE25: -0.07046175681 | AF25: ='price data'!Q23 -> 163.69 | AG25: 0.02311312876 | AH25: ='price data'!R23 -> 146.6652 | AI25: -0.1044818027 | AJ25: ='price data'!S23 -> 347.68 | AK25: 0.004179222408 | AL25: ='price data'!T23 -> 133.676 | AM25: -0.07922639473 | AN25: ='price data'!U23 -> 43.01 | AO25: -0.06872933215 | AP25: ='price data'!V23 -> 122.31 | AQ25: -0.06886749912 | AR25: ='price data'!W23 -> 155.46 | AS25: -0.1151350512 | AT25: ='price data'!X23 -> 328.26 | AU25: 0.006356601075 | AV25: ='price data'!Y23 -> 138.93 | AW25: -0.01009784066 | AX25: ='price data'!Z23 -> 40.43 | AY25: -0.1297212742 | AZ25: ='price data'!AA23 -> 20.3974 | BA25: -0.01506436561 | BB25: ='price data'!AB23 -> 281.92 | BC25: -0.06840624467 | BD25: ='price data'!AC23 -> 241.11 | BE25: 0.01525407266 | BF25: ='price data'!AD23 -> 46.4595 | BG25: -0.06068501415 | BH25: ='price data'!AE23 -> 52.47 | BI25: -0.07063056157 | BK25: ='price data'!AF23 -> 430.82 | BL25: -0.05176785796
A26: 2021-10-01 | B26: ='price data'!B24 -> 84.43 | C26: -0.05215162543 | D26: ='price data'!C24 -> 371.3296 | E26: 0.3622303614 | F26: ='price data'!D24 -> 46.14 | G26: -0.0305220577 | H26: ='price data'!E24 -> 207.03 | I26: -0.06049107158 | J26: ='price data'!F24 -> 25.567 | K26: 0.2103961089 | L26: ='price data'!G24 -> 36.49 | M26: -0.003283176684 | N26: ='price data'!H24 -> 17.08 | O26: 0.1874871001 | P26: ='price data'!I24 -> 323.57 | Q26: -0.04773441477 | R26: ='price data'!J24 -> 124.08 | S26: -0.02318182433 | T26: ='price data'!K24 -> 64.47 | U26: 0.0917180662 | V26: ='price data'!L24 -> 35.5806 | W26: -0.02140466254 | X26: ='price data'!M24 -> 110.05 | Y26: 0.04507150767 | Z26: ='price data'!N24 -> 204.01 | AA26: 0.06082990243 | AB26: ='price data'!O24 -> 254.76 | AC26: 0.09768778819 | AD26: ='price data'!P24 -> 149.8 | AE26: 0.057001354 | AF26: ='price data'!Q24 -> 169.89 | AG26: 0.03717677364 | AH26: ='price data'!R24 -> 149.3908 | AI26: 0.01841325296 | AJ26: ='price data'!S24 -> 335.52 | AK26: -0.03560094935 | AL26: ='price data'!T24 -> 148.046 | AM26: 0.1021040746 | AN26: ='price data'!U24 -> 43.74 | AO26: 0.01683036845 | AP26: ='price data'!V24 -> 124.94 | AQ26: 0.02127481657 | AR26: ='price data'!W24 -> 143.6 | AS26: -0.07935680719 | AT26: ='price data'!X24 -> 371.74 | AU26: 0.1243887079 | AV26: ='price data'!Y24 -> 125.1 | AW26: -0.1048567917 | AX26: ='price data'!Z24 -> 40.02 | AY26: -0.0101927545 | AZ26: ='price data'!AA24 -> 19.0758 | BA26: -0.06698692574 | BB26: ='price data'!AB24 -> 331.62 | BC26: 0.1623663923 | BD26: ='price data'!AC24 -> 245.55 | BE26: 0.01824733159 | BF26: ='price data'!AD24 -> 49.8062 | BG26: 0.06955850893 | BH26: ='price data'!AE24 -> 56.37 | BI26: 0.07169552439 | BK26: ='price data'!AF24 -> 460.99 | BL26: 0.06768598133
A27: 2021-11-01 | B27: ='price data'!B25 -> 69.82 | C27: -0.190002287 | D27: ='price data'!C25 -> 381.5829 | E27: 0.02723804934 | F27: ='price data'!D25 -> 42.26 | G27: -0.08783924056 | H27: ='price data'!E25 -> 197.85 | I27: -0.04535454247 | J27: ='price data'!F25 -> 32.676 | K27: 0.245338406 | L27: ='price data'!G25 -> 36.63 | M27: 0.003829326342 | N27: ='price data'!H25 -> 19.19 | O27: 0.1164811217 | P27: ='price data'!I25 -> 324.46 | Q27: 0.002746788141 | R27: ='price data'!J25 -> 121.92 | S27: -0.01756142693 | T27: ='price data'!K25 -> 59.84 | U27: -0.07452566566 | V27: ='price data'!L25 -> 32.8682 | W27: -0.07929492051 | X27: ='price data'!M25 -> 102.26 | Y27: -0.07341621832 | Z27: ='price data'!N25 -> 193.35 | AA27: -0.0536669942 | AB27: ='price data'!O25 -> 248.04 | AC27: -0.02673190202 | AD27: ='price data'!P25 -> 165.3 | AE27: 0.09846093374 | AF27: ='price data'!Q25 -> 158.83 | AG27: -0.06731672095 | AH27: ='price data'!R25 -> 142.167 | AI27: -0.04956326822 | AJ27: ='price data'!S25 -> 314.92 | AK27: -0.06336292884 | AL27: ='price data'!T25 -> 141.8975 | AM27: -0.04241807031 | AN27: ='price data'!U25 -> 53.73 | AO27: 0.2057084895 | AP27: ='price data'!V25 -> 122.84 | AQ27: -0.01695092649 | AR27: ='price data'!W25 -> 133.54 | AS27: -0.07263059818 | AT27: ='price data'!X25 -> 400.61 | AU27: 0.0747937003 | AV27: ='price data'!Y25 -> 117.1 | AW27: -0.06608514687 | AX27: ='price data'!Z25 -> 41.53 | AY27: 0.03703672849 | AZ27: ='price data'!AA25 -> 17.2408 | BA27: -0.1011418481 | BB27: ='price data'!AB25 -> 330.59 | BC27: -0.003110798178 | BD27: ='price data'!AC25 -> 244.6 | BE27: -0.003876369232 | BF27: ='price data'!AD25 -> 46.8762 | BG27: -0.06062939031 | BH27: ='price data'!AE25 -> 52.45 | BI27: -0.07207676725 | BK27: ='price data'!AF25 -> 457.63 | BL27: -0.00731535343
A28: 2021-12-01 | B28: ='price data'!B26 -> 76.9 | C28: 0.09658537483 | D28: ='price data'!C26 -> 352.2565 | E28: -0.07996852384 | F28: ='price data'!D26 -> 43.78 | G28: 0.03533607991 | H28: ='price data'!E26 -> 201.32 | I28: 0.01738651408 | J28: ='price data'!F26 -> 29.411 | K28: -0.1052721095 | L28: ='price data'!G26 -> 37.69 | M28: 0.02852723049 | N28: ='price data'!H26 -> 20.77 | O28: 0.07912032787 | P28: ='price data'!I26 -> 336.35 | Q28: 0.03599002249 | R28: ='price data'!J26 -> 133.47 | S28: 0.09051164155 | T28: ='price data'!K26 -> 61.19 | U28: 0.02230944381 | V28: ='price data'!L26 -> 34.965 | W28: 0.06184193616 | X28: ='price data'!M26 -> 108.24 | Y28: 0.05683239421 | Z28: ='price data'!N26 -> 206.74 | AA28: 0.06695994709 | AB28: ='price data'!O26 -> 276.22 | AC28: 0.1076076262 | AD28: ='price data'!P26 -> 177.57 | AE28: 0.07160289254 | AF28: ='price data'!Q26 -> 158.35 | AG28: -0.003026674862 | AH28: ='price data'!R26 -> 148.5129 | AI28: 0.04366940023 | AJ28: ='price data'!S26 -> 359.32 | AK28: 0.131894718 | AL28: ='price data'!T26 -> 144.852 | AM28: 0.02060756554 | AN28: ='price data'!U26 -> 59.05 | AO28: 0.0944130379 | AP28: ='price data'!V26 -> 138.86 | AQ28: 0.1225835358 | AR28: ='price data'!W26 -> 136.17 | AS28: 0.01950304671 | AT28: ='price data'!X26 -> 415.01 | AU28: 0.03531423085 | AV28: ='price data'!Y26 -> 133.66 | AW28: 0.1322709915 | AX28: ='price data'!Z26 -> 45.26 | AY28: 0.08600758256 | AZ28: ='price data'!AA26 -> 18.5774 | BA28: 0.07466712031 | BB28: ='price data'!AB26 -> 336.32 | BC28: 0.01718415079 | BD28: ='price data'!AC26 -> 268.07 | BE28: 0.09162391718 | BF28: ='price data'!AD26 -> 48.2295 | BG28: 0.02846078307 | BH28: ='price data'!AE26 -> 59.21 | BI28: 0.1212301117 | BK28: ='price data'!AF26 -> 476.99 | BL28: 0.04143452895
A29: 2022-01-01 | B29: ='price data'!B27 -> 77.81 | C29: 0.01176408112 | D29: ='price data'!C27 -> 312.2369 | E29: -0.1205974088 | F29: ='price data'!D27 -> 42.88 | G29: -0.02077157533 | H29: ='price data'!E27 -> 200.24 | I29: -0.005379034785 | J29: ='price data'!F27 -> 24.486 | K29: -0.1832672284 | L29: ='price data'!G27 -> 34.57 | M29: -0.08640855335 | N29: ='price data'!H27 -> 20.3 | O29: -0.02288875184 | P29: ='price data'!I27 -> 313.26 | Q29: -0.07111876782 | R29: ='price data'!J27 -> 123.45 | S29: -0.07804051769 | T29: ='price data'!K27 -> 75.96 | U29: 0.2162231085 | V29: ='price data'!L27 -> 29.7116 | W29: -0.1628100192 | X29: ='price data'!M27 -> 111.57 | Y29: 0.03030121274 | Z29: ='price data'!N27 -> 201.56 | AA29: -0.02537486133 | AB29: ='price data'!O27 -> 245.39 | AC29: -0.118348868 | AD29: ='price data'!P27 -> 174.78 | AE29: -0.01583685717 | AF29: ='price data'!Q27 -> 148.6 | AG29: -0.0635496407 | AH29: ='price data'!R27 -> 138.806 | AI29: -0.06759454835 | AJ29: ='price data'!S27 -> 386.38 | AK29: 0.0726079848 | AL29: ='price data'!T27 -> 135.3035 | AM29: -0.06819212822 | AN29: ='price data'!U27 -> 52.69 | AO29: -0.1139588584 | AP29: ='price data'!V27 -> 125.17 | AQ29: -0.103793418 | AR29: ='price data'!W27 -> 124.42 | AS29: -0.09024116605 | AT29: ='price data'!X27 -> 366.98 | AU29: -0.1229952657 | AV29: ='price data'!Y27 -> 133.57 | AW29: -0.0006735770939 | AX29: ='price data'!Z27 -> 43.59 | AY29: -0.03759587396 | AZ29: ='price data'!AA27 -> 19.2571 | BA29: 0.03593403572 | BB29: ='price data'!AB27 -> 310.98 | BC29: -0.07833448626 | BD29: ='price data'!AC27 -> 259.45 | BE29: -0.03268413462 | BF29: ='price data'!AD27 -> 46.6029 | BG29: -0.03430809608 | BH29: ='price data'!AE27 -> 61.01 | BI29: 0.02994733862 | BK29: ='price data'!AF27 -> 451.77 | BL29: -0.05432232554
A30: 2022-02-01 | B30: ='price data'!B28 -> 80.72 | C30: 0.03671641842 | D30: ='price data'!C28 -> 290.1404 | E30: -0.07339725081 | F30: ='price data'!D28 -> 44.4 | G30: 0.03483395268 | H30: ='price data'!E28 -> 205.34 | I30: 0.02515049475 | J30: ='price data'!F28 -> 24.385 | K30: -0.00413333649 | L30: ='price data'!G28 -> 41.3 | M30: 0.177876246 | N30: ='price data'!H28 -> 17.56 | O30: -0.1449972978 | P30: ='price data'!I28 -> 211.03 | Q30: -0.3950332132 | R30: ='price data'!J28 -> 106.82 | S30: -0.1446910409 | T30: ='price data'!K28 -> 78.42 | U30: 0.03187211092 | V30: ='price data'!L28 -> 30.467 | W30: 0.02510658871 | X30: ='price data'!M28 -> 111.66 | Y30: 0.0008063432771 | Z30: ='price data'!N28 -> 187.58 | AA30: -0.07188168273 | AB30: ='price data'!O28 -> 249.95 | AC30: 0.01841211621 | AD30: ='price data'!P28 -> 165.12 | AE30: -0.05685555791 | AF30: ='price data'!Q28 -> 141.8 | AG30: -0.04684051819 | AH30: ='price data'!R28 -> 124.2833 | AI30: -0.1105136377 | AJ30: ='price data'!S28 -> 360.82 | AK30: -0.06844212214 | AL30: ='price data'!T28 -> 135.057 | AM30: -0.001823491733 | AN30: ='price data'!U28 -> 46.94 | AO30: -0.1155554938 | AP30: ='price data'!V28 -> 122.58 | AQ30: -0.02090893528 | AR30: ='price data'!W28 -> 110.44 | AS30: -0.119190552 | AT30: ='price data'!X28 -> 315.83 | AU30: -0.1501032565 | AV30: ='price data'!Y28 -> 122.51 | AW30: -0.08643302568 | AX30: ='price data'!Z28 -> 46.8 | AY30: 0.07105543667 | AZ30: ='price data'!AA28 -> 17.8902 | BA30: -0.07362674701 | BB30: ='price data'!AB28 -> 298.79 | BC30: -0.03998761593 | BD30: ='price data'!AC28 -> 244.77 | BE30: -0.0582450117 | BF30: ='price data'!AD28 -> 45.0529 | BG30: -0.03382541605 | BH30: ='price data'!AE28 -> 62.24 | BI30: 0.01996009471 | BK30: ='price data'!AF28 -> 438.72 | BL30: -0.02931180439
A31: 2022-03-01 | B31: ='price data'!B29 -> 83.78 | C31: 0.03720793947 | D31: ='price data'!C29 -> 359.1964 | E31: 0.2135043704 | F31: ='price data'!D29 -> 46.36 | G31: 0.04319754903 | H31: ='price data'!E29 -> 191.5 | I31: -0.06977933325 | J31: ='price data'!F29 -> 27.286 | K31: 0.112405561 | L31: ='price data'!G29 -> 39.4 | M31: -0.04709668366 | N31: ='price data'!H29 -> 16.91 | O31: -0.0377184253 | P31: ='price data'!I29 -> 222.36 | Q31: 0.05229738662 | R31: ='price data'!J29 -> 105.28 | S31: -0.01452170733 | T31: ='price data'!K29 -> 82.59 | U31: 0.05180961096 | V31: ='price data'!L29 -> 31.6406 | W31: 0.03779697541 | X31: ='price data'!M29 -> 118.17 | Y31: 0.05666572577 | Z31: ='price data'!N29 -> 222.82 | AA31: 0.1721588496 | AB31: ='price data'!O29 -> 286.37 | AC31: 0.1360237831 | AD31: ='price data'!P29 -> 174.61 | AE31: 0.05588243324 | AF31: ='price data'!Q29 -> 136.32 | AG31: -0.03941255102 | AH31: ='price data'!R29 -> 124.4756 | AI31: 0.001546075644 | AJ31: ='price data'!S29 -> 357.38 | AK31: -0.009579577574 | AL31: ='price data'!T29 -> 139.0675 | AM31: 0.02926251522 | AN31: ='price data'!U29 -> 51.77 | AO31: 0.09794064049 | AP31: ='price data'!V29 -> 118.53 | AQ31: -0.03359778497 | AR31: ='price data'!W29 -> 118.61 | AS31: 0.07136841298 | AT31: ='price data'!X29 -> 299.33 | AU31: -0.05365745043 | AV31: ='price data'!Y29 -> 130.02 | AW31: 0.05949562547 | AX31: ='price data'!Z29 -> 57.37 | AY31: 0.2036383157 | AZ31: ='price data'!AA29 -> 17.8449 | BA31: -0.002535323772 | BB31: ='price data'!AB29 -> 308.31 | BC31: 0.03136478481 | BD31: ='price data'!AC29 -> 247.28 | BE31: 0.01020230372 | BF31: ='price data'!AD29 -> 49.6395 | BG31: 0.09694953286 | BH31: ='price data'!AE29 -> 62 | BI31: -0.003863494825 | BK31: ='price data'!AF29 -> 453.69 | BL31: 0.03355274906
A32: 2022-04-01 | B32: ='price data'!B30 -> 77.73 | C32: -0.07495303228 | D32: ='price data'!C30 -> 290.2504 | E32: -0.2131253154 | F32: ='price data'!D30 -> 50.5 | G32: 0.08553631781 | H32: ='price data'!E30 -> 148.84 | I32: -0.2520159051 | J32: ='price data'!F30 -> 18.547 | K32: -0.3860656992 | L32: ='price data'!G30 -> 36.45 | M32: -0.07782435785 | N32: ='price data'!H30 -> 14.16 | O32: -0.1774840746 | P32: ='price data'!I30 -> 200.47 | Q32: -0.1036330805 | R32: ='price data'!J30 -> 91.05 | S32: -0.1452146614 | T32: ='price data'!K30 -> 85.25 | U32: 0.03169950834 | V32: ='price data'!L30 -> 29.1122 | W32: -0.08328377575 | X32: ='price data'!M30 -> 108.51 | Y32: -0.08528193102 | Z32: ='price data'!N30 -> 210.54 | AA32: -0.05668861181 | AB32: ='price data'!O30 -> 292.13 | AC32: 0.01991422768 | AD32: ='price data'!P30 -> 157.65 | AE32: -0.1021775295 | AF32: ='price data'!Q30 -> 119.36 | AG32: -0.1328609266 | AH32: ='price data'!R30 -> 120.5795 | AI32: -0.03180042633 | AJ32: ='price data'!S30 -> 363.38 | AK32: 0.01664947722 | AL32: ='price data'!T30 -> 114.1095 | AM32: -0.1978009131 | AN32: ='price data'!U30 -> 49.07 | AO32: -0.05356298081 | AP32: ='price data'!V30 -> 117.01 | AQ32: -0.01290669186 | AR32: ='price data'!W30 -> 109.74 | AS32: -0.07772686841 | AT32: ='price data'!X30 -> 300.4 | AU32: 0.003568276175 | AV32: ='price data'!Y30 -> 132.21 | AW32: 0.01670328275 | AX32: ='price data'!Z30 -> 53.96 | AY32: -0.06127848727 | AZ32: ='price data'!AA30 -> 18.86 | BA32: 0.05532552409 | BB32: ='price data'!AB30 -> 277.52 | BC32: -0.1052127676 | BD32: ='price data'!AC30 -> 249.16 | BE32: 0.007573962562 | BF32: ='price data'!AD30 -> 50.9962 | BG32: 0.02696423238 | BH32: ='price data'!AE30 -> 64.61 | BI32: 0.04123481252 | BK32: ='price data'!AF30 -> 413.56 | BL32: -0.09261153871
A33: 2022-05-01 | B33: ='price data'!B31 -> 58.07 | C33: -0.2915921039 | D33: ='price data'!C31 -> 252.7508 | E33: -0.1383399756 | F33: ='price data'!D31 -> 47.63 | G33: -0.05851052147 | H33: ='price data'!E31 -> 131.4 | I33: -0.1246257974 | J33: ='price data'!F31 -> 18.672 | K33: 0.006717024637 | L33: ='price data'!G31 -> 35.18 | M33: -0.03546371915 | N33: ='price data'!H31 -> 13.68 | O33: -0.03448617607 | P33: ='price data'!I31 -> 193.64 | Q33: -0.03466384454 | R33: ='price data'!J31 -> 88.01 | S33: -0.03395836179 | T33: ='price data'!K31 -> 96 | U33: 0.1187600753 | V33: ='price data'!L31 -> 28.051 | W33: -0.03713304835 | X33: ='price data'!M31 -> 106.25 | Y33: -0.02104752683 | Z33: ='price data'!N31 -> 215.85 | AA33: 0.02490806318 | AB33: ='price data'!O31 -> 313.44 | AC33: 0.07040904552 | AD33: ='price data'!P31 -> 148.84 | AE33: -0.05750548251 | AF33: ='price data'!Q31 -> 132.23 | AG33: 0.1023986941 | AH33: ='price data'!R31 -> 124.8184 | AI33: 0.03455059454 | AJ33: ='price data'!S31 -> 357.87 | AK33: -0.01527932671 | AL33: ='price data'!T31 -> 113.762 | AM33: -0.003049966928 | AN33: ='price data'!U31 -> 53.04 | AO33: 0.07779849578 | AP33: ='price data'!V31 -> 121.47 | AQ33: 0.03740791748 | AR33: ='price data'!W31 -> 105.62 | AS33: -0.03826618435 | AT33: ='price data'!X31 -> 302.75 | AU33: 0.007792462543 | AV33: ='price data'!Y31 -> 138.84 | AW33: 0.04893062347 | AX33: ='price data'!Z31 -> 52.97 | AY33: -0.01851731578 | AZ33: ='price data'!AA31 -> 21.29 | BA33: 0.1211942017 | BB33: ='price data'!AB31 -> 271.87 | BC33: -0.02056899179 | BD33: ='price data'!AC31 -> 252.21 | BE33: 0.01216681343 | BF33: ='price data'!AD31 -> 42.8762 | BG33: -0.1734342267 | BH33: ='price data'!AE31 -> 63.38 | BI33: -0.01922084331 | BK33: ='price data'!AF31 -> 414.87 | BL33: 0.003162611426
A34: 2022-06-01 | B34: ='price data'!B32 -> 34.91 | C34: -0.5088758583 | D34: ='price data'!C32 -> 224.4711 | E34: -0.1186570547 | F34: ='price data'!D32 -> 35.42 | G34: -0.2961861825 | H34: ='price data'!E32 -> 136.72 | I34: 0.03968893276 | J34: ='price data'!F32 -> 15.159 | K34: -0.2084306606 | L34: ='price data'!G32 -> 31.66 | M34: -0.1054236849 | N34: ='price data'!H32 -> 11.13 | O34: -0.2062907469 | P34: ='price data'!I32 -> 161.25 | Q34: -0.1830448094 | R34: ='price data'!J32 -> 83.52 | S34: -0.05236432025 | T34: ='price data'!K32 -> 85.64 | U34: -0.1141957277 | V34: ='price data'!L32 -> 26.1452 | W34: -0.0703586647 | X34: ='price data'!M32 -> 95.68 | Y34: -0.1047855176 | Z34: ='price data'!N32 -> 178.76 | AA34: -0.1885395979 | AB34: ='price data'!O32 -> 324.23 | AC34: 0.0338451863 | AD34: ='price data'!P32 -> 136.72 | AE34: -0.08493686467 | AF34: ='price data'!Q32 -> 112.61 | AG34: -0.1606123089 | AH34: ='price data'!R32 -> 108.1971 | AI34: -0.1429053171 | AJ34: ='price data'!S32 -> 315.48 | AK34: -0.1260745034 | AL34: ='price data'!T32 -> 108.963 | AM34: -0.04310017171 | AN34: ='price data'!U32 -> 52.43 | AO34: -0.01156739929 | AP34: ='price data'!V32 -> 113.51 | AQ34: -0.06777637994 | AR34: ='price data'!W32 -> 98.25 | AS34: -0.07233249653 | AT34: ='price data'!X32 -> 274.27 | AU34: -0.09879435977 | AV34: ='price data'!Y32 -> 141.19 | AW34: 0.01678431003 | AX34: ='price data'!Z32 -> 47.33 | AY34: -0.1125813716 | AZ34: ='price data'!AA32 -> 20.96 | BA34: -0.01562161945 | BB34: ='price data'!AB32 -> 256.83 | BC34: -0.05690962345 | BD34: ='price data'!AC32 -> 246.88 | BE34: -0.0213596852 | BF34: ='price data'!AD32 -> 40.5263 | BG34: -0.05636574736 | BH34: ='price data'!AE32 -> 62.91 | BI34: -0.007443220681 | BK34: ='price data'!AF32 -> 379.15 | BL34: -0.090033313
A35: 2022-07-01 | B35: ='price data'!B33 -> 38.71 | C35: 0.1033246435 | D35: ='price data'!C33 -> 297.147 | E35: 0.2804799975 | F35: ='price data'!D33 -> 36.75 | G35: 0.0368615933 | H35: ='price data'!E33 -> 159.31 | I35: 0.1529169508 | J35: ='price data'!F33 -> 18.163 | K35: 0.1807921428 | L35: ='price data'!G33 -> 37.81 | M35: 0.1775195634 | N35: ='price data'!H33 -> 14.69 | O35: 0.2775228249 | P35: ='price data'!I33 -> 159.1 | Q35: -0.01342302033 | R35: ='price data'!J33 -> 95.89 | S35: 0.138115577 | T35: ='price data'!K33 -> 96.93 | U35: 0.1238366048 | V35: ='price data'!L33 -> 31.2844 | W35: 0.1794539535 | X35: ='price data'!M33 -> 99.99 | Y35: 0.04406089079 | Z35: ='price data'!N33 -> 198.25 | AA35: 0.1034847364 | AB35: ='price data'!O33 -> 329.69 | AC35: 0.01669967852 | AD35: ='price data'!P33 -> 162.51 | AE35: 0.1728044995 | AF35: ='price data'!Q33 -> 115.36 | AG35: 0.02412715183 | AH35: ='price data'!R33 -> 119.7601 | AI35: 0.1015360113 | AJ35: ='price data'!S33 -> 353.79 | AK35: 0.1146082282 | AL35: ='price data'!T33 -> 116.32 | AM35: 0.06533663872 | AN35: ='price data'!U33 -> 50.51 | AO35: -0.0373076101 | AP35: ='price data'!V33 -> 122.54 | AQ35: 0.07654656853 | AR35: ='price data'!W33 -> 97.62 | AS35: -0.00643286029 | AT35: ='price data'!X33 -> 300.94 | AU35: 0.09279788667 | AV35: ='price data'!Y33 -> 130.79 | AW35: -0.07651351752 | AX35: ='price data'!Z33 -> 46.44 | AY35: -0.01898318709 | AZ35: ='price data'!AA33 -> 18.78 | BA35: -0.1098233857 | BB35: ='price data'!AB33 -> 280.74 | BC35: 0.08901458668 | BD35: ='price data'!AC33 -> 263.37 | BE35: 0.06465749899 | BF35: ='price data'!AD33 -> 44.0162 | BG35: 0.0826066019 | BH35: ='price data'!AE33 -> 64.17 | BI35: 0.01983067818 | BK35: ='price data'!AF33 -> 414.28 | BL35: 0.08861016857
A36: 2022-08-01 | B36: ='price data'!B34 -> 40.85 | C36: 0.05380885672 | D36: ='price data'!C34 -> 275.61 | E36: -0.0752401429 | F36: ='price data'!D34 -> 35.01 | G36: -0.04850449069 | H36: ='price data'!E34 -> 160.25 | I36: 0.005883106216 | J36: ='price data'!F34 -> 15.094 | K36: -0.1850892439 | L36: ='price data'!G34 -> 38.57 | M36: 0.01990115432 | N36: ='price data'!H34 -> 15.24 | O36: 0.03675656007 | P36: ='price data'!I34 -> 162.93 | Q36: 0.02378772537 | R36: ='price data'!J34 -> 80.83 | S36: -0.1708535174 | T36: ='price data'!K34 -> 95.59 | U36: -0.01392085643 | V36: ='price data'!L34 -> 31.936 | W36: 0.02061432938 | X36: ='price data'!M34 -> 95.75 | Y36: -0.04332955293 | Z36: ='price data'!N34 -> 184.71 | AA36: -0.07074183292 | AB36: ='price data'!O34 -> 301.23 | AC36: -0.09027872645 | AD36: ='price data'!P34 -> 157.22 | AE36: -0.03309343997 | AF36: ='price data'!Q34 -> 113.73 | AG36: -0.01423045534 | AH36: ='price data'!R34 -> 103.9665 | AI36: -0.1414218432 | AJ36: ='price data'!S34 -> 324.37 | AK36: -0.08681867723 | AL36: ='price data'!T34 -> 108.22 | AM36: -0.07217882157 | AN36: ='price data'!U34 -> 45.23 | AO36: -0.110410753 | AP36: ='price data'!V34 -> 111.24 | AQ36: -0.09674747793 | AR36: ='price data'!W34 -> 88.49 | AS36: -0.09819283918 | AT36: ='price data'!X34 -> 288.42 | AU36: -0.0424931582 | AV36: ='price data'!Y34 -> 128.45 | AW36: -0.01805325995 | AX36: ='price data'!Z34 -> 47.94 | AY36: 0.03178907218 | AZ36: ='price data'!AA34 -> 17.54 | BA36: -0.06830848684 | BB36: ='price data'!AB34 -> 261.47 | BC36: -0.07110941994 | BD36: ='price data'!AC34 -> 252.28 | BE36: -0.04302030581 | BF36: ='price data'!AD34 -> 44.1829 | BG36: 0.003780088425 | BH36: ='price data'!AE34 -> 61.71 | BI36: -0.03908981943 | BK36: ='price data'!AF34 -> 397.18 | BL36: -0.04215249528
A37: 2022-09-01 | B37: ='price data'!B35 -> 37.9 | C37: =LN(B37/B36) -> -0.07495570922 | D37: ='price data'!C35 -> 265.25 | E37: =LN(D37/D36) -> -0.03831404546 | F37: ='price data'!D35 -> 32.53 | G37: =LN(F37/F36) -> -0.07347099448 | H37: ='price data'!E35 -> 121.08 | I37: =LN(H37/H36) -> -0.2802836116 | J37: ='price data'!F35 -> 12.139 | K37: =LN(J37/J36) -> -0.2178739039 | L37: ='price data'!G35 -> 34.88 | M37: =LN(L37/L36) -> -0.1005611732 | N37: ='price data'!H35 -> 11.2 | O37: =LN(N37/N36) -> -0.308009772 | P37: ='price data'!I35 -> 135.68 | Q37: =LN(P37/P36) -> -0.1830214887 | R37: ='price data'!J35 -> 70.01 | S37: =LN(R37/R36) -> -0.1437100948 | T37: ='price data'!K35 -> 87.31 | U37: =LN(T37/T36) -> -0.09060320825 | V37: ='price data'!L35 -> 30.0552 | W37: =LN(V37/V36) -> -0.06069820919 | X37: ='price data'!M35 -> 85.78 | Y37: =LN(X37/X36) -> -0.109954749 | Z37: ='price data'!N35 -> 164.08 | AA37: =LN(Z37/Z36) -> -0.1184329138 | AB37: ='price data'!O35 -> 323.35 | AC37: =LN(AB37/AB36) -> 0.07086123533 | AD37: ='price data'!P35 -> 138.2 | AE37: =LN(AD37/AD36) -> -0.128944187 | AF37: ='price data'!Q35 -> 104.5 | AG37: =LN(AF37/AF36) -> -0.08464014679 | AH37: ='price data'!R35 -> 92.3868 | AI37: =LN(AH37/AH36) -> -0.1180846206 | AJ37: ='price data'!S35 -> 284.34 | AK37: =LN(AJ37/AJ36) -> -0.1317141343 | AL37: ='price data'!T35 -> 95.65 | AM37: =LN(AL37/AL36) -> -0.1234704963 | AN37: ='price data'!U35 -> 43.76 | AO37: =LN(AN37/AN36) -> -0.03304042538 | AP37: ='price data'!V35 -> 106.34 | AQ37: =LN(AP37/AP36) -> -0.04504852129 | AR37: ='price data'!W35 -> 80.31 | AS37: =LN(AR37/AR36) -> -0.09699540508 | AT37: ='price data'!X35 -> 275.94 | AU37: =LN(AT37/AT36) -> -0.04423430035 | AV37: ='price data'!Y35 -> 118.81 | AW37: =LN(AV37/AV36) -> -0.07801414509 | AX37: ='price data'!Z35 -> 43.75 | AY37: =LN(AX37/AX36) -> -0.0914586162 | AZ37: ='price data'!AA35 -> 15.34 | BA37: =LN(AZ37/AZ36) -> -0.134020191 | BB37: ='price data'!AB35 -> 232.9 | BC37: =LN(BB37/BB36) -> -0.1157103773 | BD37: ='price data'!AC35 -> 230.74 | BE37: =LN(BD37/BD36) -> -0.0892480463 | BF37: ='price data'!AD35 -> 43.2329 | BG37: =LN(BF37/BF36) -> -0.02173605693 | BH37: ='price data'!AE35 -> 56.02 | BI37: =LN(BH37/BH36) -> -0.0967372225 | BK37: ='price data'!AF35 -> 358.65 | BL37: =LN(BK37/BK36) -> -0.1020425959
A38: 2022-10-01 | B38: ='price data'!B36 -> 53.38 | C38: 0.3424850319 | D38: ='price data'!C36 -> 227.54 | E38: -0.1533467304 | F38: ='price data'!D36 -> 43.08 | G38: 0.2808961118 | H38: ='price data'!E36 -> 142.51 | I38: 0.1629606885 | J38: ='price data'!F36 -> 13.497 | K38: 0.1060440286 | L38: ='price data'!G36 -> 43 | M38: 0.2092865167 | N38: ='price data'!H36 -> 13.37 | O38: 0.1770996128 | P38: ='price data'!I36 -> 93.16 | Q38: -0.375980727 | R38: ='price data'!J36 -> 72.63 | S38: 0.03673997063 | T38: ='price data'!K36 -> 110.81 | U38: 0.2383520191 | V38: ='price data'!L36 -> 29.9666 | W38: -0.002952262823 | X38: ='price data'!M36 -> 105.19 | Y38: 0.2039823597 | Z38: ='price data'!N36 -> 216.46 | AA38: 0.2770516591 | AB38: ='price data'!O36 -> 362.09 | AC38: 0.1131574718 | AD38: ='price data'!P36 -> 153.34 | AE38: 0.1039557668 | AF38: ='price data'!Q36 -> 125.88 | AG38: 0.1861420008 | AH38: ='price data'!R36 -> 105.1705 | AI38: 0.1295987314 | AJ38: ='price data'!S36 -> 328.18 | AK38: 0.1433915331 | AL38: ='price data'!T36 -> 94.51 | AM38: -0.01199004688 | AN38: ='price data'!U36 -> 46.55 | AO38: 0.06180684561 | AP38: ='price data'!V36 -> 118.25 | AQ38: 0.1061595193 | AR38: ='price data'!W36 -> 88.04 | AS38: 0.09189711046 | AT38: ='price data'!X36 -> 296.13 | AU38: 0.07061509632 | AV38: ='price data'!Y36 -> 138.29 | AW38: 0.151827351 | AX38: ='price data'!Z36 -> 47.29 | AY38: 0.07780724385 | AZ38: ='price data'!AA36 -> 18.23 | BA38: 0.1726047928 | BB38: ='price data'!AB36 -> 232.13 | BC38: -0.003311617331 | BD38: ='price data'!AC36 -> 272.66 | BE38: 0.1669340623 | BF38: ='price data'!AD36 -> 47.4429 | BG38: 0.0929251032 | BH38: ='price data'!AE36 -> 59.85 | BI38: 0.06613266217 | BK38: ='price data'!AF36 -> 387.79 | BL38: 0.07811697342
A39: 2022-11-01 | B39: ='price data'!B37 -> 59.93 | C39: 0.1157410705 | D39: ='price data'!C37 -> 194.7 | E39: -0.1558661347 | F39: ='price data'!D37 -> 44.17 | G39: 0.02498697332 | H39: ='price data'!E37 -> 178.88 | I39: 0.2273030173 | J39: ='price data'!F37 -> 16.923 | K39: 0.2262062049 | L39: ='price data'!G37 -> 47.13 | M39: 0.09170962524 | N39: ='price data'!H37 -> 13.9 | O39: 0.03887544902 | P39: ='price data'!I37 -> 118.1 | Q39: 0.2372132782 | R39: ='price data'!J37 -> 83.26 | S39: 0.1365901821 | T39: ='price data'!K37 -> 111.34 | U39: 0.004771559807 | V39: ='price data'!L37 -> 32.5392 | W39: 0.08236208825 | X39: ='price data'!M37 -> 108.03 | Y39: 0.02664072758 | Z39: ='price data'!N37 -> 236.41 | AA39: 0.08816181295 | AB39: ='price data'!O37 -> 371.08 | AC39: 0.02452487308 | AD39: ='price data'!P37 -> 148.03 | AE39: -0.03524272221 | AF39: ='price data'!Q37 -> 138.18 | AG39: 0.09322811086 | AH39: ='price data'!R37 -> 105.321 | AI39: 0.001429986728 | AJ39: ='price data'!S37 -> 356.4 | AK39: 0.08249145725 | AL39: ='price data'!T37 -> 100.99 | AM39: 0.06631585303 | AN39: ='price data'!U37 -> 50.13 | AO39: 0.07409262755 | AP39: ='price data'!V37 -> 128.66 | AQ39: 0.08437223861 | AR39: ='price data'!W37 -> 92.99 | AS39: 0.05470070383 | AT39: ='price data'!X37 -> 323.99 | AU39: 0.08991410402 | AV39: ='price data'!Y37 -> 148.9 | AW39: 0.07392201021 | AX39: ='price data'!Z37 -> 49.19 | AY39: 0.03939149415 | AZ39: ='price data'!AA37 -> 19.28 | BA39: 0.05599970049 | BB39: ='price data'!AB37 -> 255.14 | BC39: 0.09451485455 | BD39: ='price data'!AC37 -> 272.79 | BE39: 0.0004766706479 | BF39: ='price data'!AD37 -> 50.8062 | BG39: 0.06849151171 | BH39: ='price data'!AE37 -> 63.61 | BI39: 0.06092925869 | BK39: ='price data'!AF37 -> 409.32 | BL39: 0.05403329023
A40: 2022-12-01 | B40: ='price data'!B38 -> 49.43 | C40: -0.1926196872 | D40: ='price data'!C38 -> 123.18 | E40: -0.4578132121 | F40: ='price data'!D38 -> 37.7 | G40: -0.1583857312 | H40: ='price data'!E38 -> 190.49 | I40: 0.06288450978 | J40: ='price data'!F38 -> 14.614 | K40: -0.1466936701 | L40: ='price data'!G38 -> 41.6 | M40: -0.1248095737 | N40: ='price data'!H38 -> 11.63 | O40: -0.1783008736 | P40: ='price data'!I38 -> 120.34 | Q40: 0.01878934659 | R40: ='price data'!J38 -> 82.31 | S40: -0.01147563478 | T40: ='price data'!K38 -> 110.3 | U40: -0.009384656496 | V40: ='price data'!L38 -> 27.7498 | W40: -0.1592168834 | X40: ='price data'!M38 -> 99.46 | Y40: -0.08265341304 | Z40: ='price data'!N38 -> 239.56 | AA40: 0.01323632157 | AB40: ='price data'!O38 -> 365.84 | AC40: -0.01422159344 | AD40: ='price data'!P38 -> 129.93 | AE40: -0.130419112 | AF40: ='price data'!Q38 -> 134.1 | AG40: -0.02997139277 | AH40: ='price data'!R38 -> 100.2627 | AI40: -0.049219088 | AJ40: ='price data'!S38 -> 347.73 | AK40: -0.02462737903 | AL40: ='price data'!T38 -> 88.23 | AM40: -0.1350744608 | AN40: ='price data'!U38 -> 51.24 | AO40: 0.02190084575 | AP40: ='price data'!V38 -> 128.08 | AQ40: -0.004518197294 | AR40: ='price data'!W38 -> 92.29 | AS40: -0.007556167213 | AT40: ='price data'!X38 -> 315.86 | AU40: -0.02541357368 | AV40: ='price data'!Y38 -> 140.89 | AW40: -0.05529549562 | AX40: ='price data'!Z38 -> 44.58 | AY40: -0.09840502285 | AZ40: ='price data'!AA38 -> 18.41 | BA40: -0.04617429394 | BB40: ='price data'!AB38 -> 239.82 | BC40: -0.06192377216 | BD40: ='price data'!AC38 -> 263.53 | BE40: -0.03453505491 | BF40: ='price data'!AD38 -> 47.2629 | BG40: -0.07229276183 | BH40: ='price data'!AE38 -> 63.61 | BI40: 0 | BK40: ='price data'!AF38 -> 384.21 | BL40: -0.06330796811
A41: 2023-01-01 | B41: ='price data'!B39 -> 64.94 | C41: 0.2729062394 | D41: ='price data'!C39 -> 173.22 | E41: 0.3409157626 | F41: ='price data'!D39 -> 48.96 | G41: 0.2613435438 | H41: ='price data'!E39 -> 213 | I41: 0.111692466 | J41: ='price data'!F39 -> 19.537 | K41: 0.2903301302 | L41: ='price data'!G39 -> 46.03 | M41: 0.1011931906 | N41: ='price data'!H39 -> 13.51 | O41: 0.1498421854 | P41: ='price data'!I39 -> 148.97 | Q41: 0.2134238736 | R41: ='price data'!J39 -> 89.69 | S41: 0.08586667315 | T41: ='price data'!K39 -> 116.01 | U41: 0.05047246803 | V41: ='price data'!L39 -> 32.9276 | W41: 0.1710825789 | X41: ='price data'!M39 -> 104.94 | Y41: 0.05363320497 | Z41: ='price data'!N39 -> 252.29 | AA41: 0.05177531211 | AB41: ='price data'!O39 -> 344.15 | AC41: -0.06111847051 | AD41: ='price data'!P39 -> 144.29 | AE41: 0.1048293194 | AF41: ='price data'!Q39 -> 139.96 | AG41: 0.04277087721 | AH41: ='price data'!R39 -> 96.2161 | AI41: -0.04119703812 | AJ41: ='price data'!S39 -> 370.6 | AK41: 0.06369699728 | AL41: ='price data'!T39 -> 98.84 | AM41: 0.1135553399 | AN41: ='price data'!U39 -> 44.16 | AO41: -0.1487010751 | AP41: ='price data'!V39 -> 130.51 | AQ41: 0.01879478349 | AR41: ='price data'!W39 -> 98.88 | AS41: 0.06897120043 | AT41: ='price data'!X39 -> 324.17 | AU41: 0.02596899211 | AV41: ='price data'!Y39 -> 134.73 | AW41: -0.0447066683 | AX41: ='price data'!Z39 -> 44.63 | AY41: 0.001120950683 | AZ41: ='price data'!AA39 -> 20.37 | BA41: 0.101169235 | BB41: ='price data'!AB39 -> 247.81 | BC41: 0.03277368155 | BD41: ='price data'!AC39 -> 267.4 | BE41: 0.01457845117 | BF41: ='price data'!AD39 -> 47.9562 | BG41: 0.01456246178 | BH41: ='price data'!AE39 -> 61.32 | BI41: -0.03666463669 | BK41: ='price data'!AF39 -> 408.31 | BL41: 0.06083741171
A42: 2023-02-01 | B42: ='price data'!B40 -> 70.64 | C42: 0.08413278962 | D42: ='price data'!C40 -> 205.71 | E42: 0.1719049471 | F42: ='price data'!D40 -> 51.96 | G42: 0.0594705536 | H42: ='price data'!E40 -> 201.55 | I42: -0.05525467615 | J42: ='price data'!F40 -> 23.216 | K42: 0.1725315925 | L42: ='price data'!G40 -> 47.55 | M42: 0.03248843116 | N42: ='price data'!H40 -> 12.07 | O42: -0.1127071169 | P42: ='price data'!I40 -> 174.94 | Q42: 0.1606981146 | R42: ='price data'!J40 -> 83.95 | S42: -0.06613789661 | T42: ='price data'!K40 -> 109.91 | U42: -0.05401454521 | V42: ='price data'!L40 -> 29.8216 | W42: -0.0990782487 | X42: ='price data'!M40 -> 100 | Y42: -0.04821857227 | Z42: ='price data'!N40 -> 239.55 | AA42: -0.05181705618 | AB42: ='price data'!O40 -> 311.22 | AC42: -0.1005775513 | AD42: ='price data'!P40 -> 147.41 | AE42: 0.02139265675 | AF42: ='price data'!Q40 -> 143.35 | AG42: 0.02393252483 | AH42: ='price data'!R40 -> 90.0793 | AI42: -0.06590630985 | AJ42: ='price data'!S40 -> 355.29 | AK42: -0.04218895645 | AL42: ='price data'!T40 -> 90.06 | AM42: -0.09302626625 | AN42: ='price data'!U40 -> 40.57 | AO42: -0.08479052475 | AP42: ='price data'!V40 -> 127.16 | AQ42: -0.02600371614 | AR42: ='price data'!W40 -> 98.13 | AS42: -0.007613863491 | AT42: ='price data'!X40 -> 296.54 | AU42: -0.08908595296 | AV42: ='price data'!Y40 -> 129.3 | AW42: -0.04113748999 | AX42: ='price data'!Z40 -> 43.14 | AY42: -0.03395563768 | AZ42: ='price data'!AA40 -> 18.91 | BA42: -0.07437234757 | BB42: ='price data'!AB40 -> 249.42 | BC42: 0.006475898987 | BD42: ='price data'!AC40 -> 263.91 | BE42: -0.01313752874 | BF42: ='price data'!AD40 -> 47.3762 | BG42: -0.01216810143 | BH42: ='price data'!AE40 -> 59.51 | BI42: -0.02996168835 | BK42: ='price data'!AF40 -> 397.97 | BL42: -0.02565006426
A43: 2023-03-01 | B43: ='price data'!B41 -> 65.3 | C43: -0.07860452001 | D43: ='price data'!C41 -> 207.46 | E43: 0.008471140039 | F43: ='price data'!D41 -> 44.25 | G43: -0.1606188203 | H43: ='price data'!E41 -> 212.43 | I43: 0.05257503277 | J43: ='price data'!F41 -> 27.777 | K43: 0.179366644 | L43: ='price data'!G41 -> 37.97 | M43: -0.2249854147 | N43: ='price data'!H41 -> 12.6 | O43: 0.04297377885 | P43: ='price data'!I41 -> 211.94 | Q43: 0.1918601578 | R43: ='price data'!J41 -> 74.93 | S43: -0.1136670391 | T43: ='price data'!K41 -> 109.66 | U43: -0.002277179105 | V43: ='price data'!L41 -> 34.1658 | W43: 0.1359921806 | X43: ='price data'!M41 -> 82.74 | Y43: -0.189467025 | Z43: ='price data'!N41 -> 228.84 | AA43: -0.04573909393 | AB43: ='price data'!O41 -> 343.42 | AC43: 0.09845413029 | AD43: ='price data'!P41 -> 164.9 | AE43: 0.1121214095 | AF43: ='price data'!Q41 -> 130.31 | AG43: -0.09537296517 | AH43: ='price data'!R41 -> 87.8804 | AI43: -0.02471359432 | AJ43: ='price data'!S41 -> 363.41 | AK43: 0.02259731607 | AL43: ='price data'!T41 -> 103.73 | AM43: 0.1413152546 | AN43: ='price data'!U41 -> 40.8 | AO43: 0.005653204192 | AP43: ='price data'!V41 -> 132.08 | AQ43: 0.03796166357 | AR43: ='price data'!W41 -> 100.92 | AS43: 0.02803499355 | AT43: ='price data'!X41 -> 295.12 | AU43: -0.004800063301 | AV43: ='price data'!Y41 -> 131.09 | AW43: 0.01374882443 | AX43: ='price data'!Z41 -> 49.37 | AY43: 0.1348923113 | AZ43: ='price data'!AA41 -> 19.25 | BA43: 0.01782017806 | BB43: ='price data'!AB41 -> 288.3 | BC43: 0.1448633822 | BD43: ='price data'!AC41 -> 279.61 | BE43: 0.05778763917 | BF43: ='price data'!AD41 -> 49.1495 | BG43: 0.0367466807 | BH43: ='price data'!AE41 -> 62.03 | BI43: 0.04147377333 | BK43: ='price data'!AF41 -> 411.08 | BL43: 0.0324112172
A44: 2023-04-01 | B44: ='price data'!B42 -> 65.43 | C44: 0.001988832599 | D44: ='price data'!C42 -> 164.31 | E44: -0.2331836625 | F44: ='price data'!D42 -> 43.8 | G44: -0.01022155407 | H44: ='price data'!E42 -> 206.78 | I44: -0.02695709617 | J44: ='price data'!F42 -> 27.749 | K44: -0.001008536627 | L44: ='price data'!G42 -> 37.1 | M44: -0.02317940463 | N44: ='price data'!H42 -> 11.88 | O44: -0.05884050002 | P44: ='price data'!I42 -> 240.32 | Q44: 0.1256681528 | R44: ='price data'!J42 -> 74.79 | S44: -0.001870158173 | T44: ='price data'!K42 -> 118.34 | U44: 0.07617716727 | V44: ='price data'!L42 -> 41.3524 | W44: 0.1909053172 | X44: ='price data'!M42 -> 87 | Y44: 0.05020495762 | Z44: ='price data'!N42 -> 218.8 | AA44: -0.04486499885 | AB44: ='price data'!O42 -> 395.86 | AC44: 0.1421064255 | AD44: ='price data'!P42 -> 169.68 | AE44: 0.02857508069 | AF44: ='price data'!Q42 -> 138.24 | AG44: 0.0590750779 | AH44: ='price data'!R42 -> 88.8084 | AI44: 0.01050444095 | AJ44: ='price data'!S42 -> 380.03 | AK44: 0.0447185235 | AL44: ='price data'!T42 -> 107.34 | AM44: 0.0342099973 | AN44: ='price data'!U42 -> 38.89 | AO44: -0.04794493324 | AP44: ='price data'!V42 -> 140.58 | AQ44: 0.06236892214 | AR44: ='price data'!W42 -> 98.17 | AS44: -0.02762745407 | AT44: ='price data'!X42 -> 300.54 | AU44: 0.01819880331 | AV44: ='price data'!Y42 -> 126.41 | AW44: -0.0363535177 | AX44: ='price data'!Z42 -> 48.63 | AY44: -0.01510232786 | AZ44: ='price data'!AA42 -> 17.67 | BA44: -0.0856427744 | BB44: ='price data'!AB42 -> 307.26 | BC44: 0.06369269006 | BD44: ='price data'!AC42 -> 295.75 | BE44: 0.05611872776 | BF44: ='price data'!AD42 -> 50.3228 | BG44: 0.02359158112 | BH44: ='price data'!AE42 -> 64.15 | BI44: 0.03360595208 | BK44: ='price data'!AF42 -> 417.66 | BL44: 0.01587986165
A45: 2023-05-01 | B45: ='price data'!B43 -> 80.97 | C45: 0.2130978468 | D45: ='price data'!C43 -> 203.93 | E45: 0.2160219102 | F45: ='price data'!D43 -> 47.465 | G45: 0.08035877995 | H45: ='price data'!E43 -> 205.7 | I45: -0.0052366295 | J45: ='price data'!F43 -> 37.834 | K45: 0.3100083657 | L45: ='price data'!G43 -> 31.11 | M45: -0.1760876587 | N45: ='price data'!H43 -> 12 | O45: 0.01005033585 | P45: ='price data'!I43 -> 264.72 | Q45: 0.09670129504 | R45: ='price data'!J43 -> 70.11 | S45: -0.06461874898 | T45: ='price data'!K43 -> 102.18 | U45: -0.1468258733 | V45: ='price data'!L43 -> 41.5298 | W45: 0.004280780937 | X45: ='price data'!M43 -> 78.69 | Y45: -0.1003920361 | Z45: ='price data'!N43 -> 205.75 | AA45: -0.06149623099 | AB45: ='price data'!O43 -> 429.46 | AC45: 0.08146799215 | AD45: ='price data'!P43 -> 177.25 | AE45: 0.04364685516 | AF45: ='price data'!Q43 -> 135.71 | AG45: -0.01847104896 | AH45: ='price data'!R43 -> 78.0146 | AI45: -0.1295852515 | AJ45: ='price data'!S43 -> 365.02 | AK45: -0.04029805037 | AL45: ='price data'!T43 -> 122.87 | AM45: 0.1351255191 | AN45: ='price data'!U43 -> 38.02 | AO45: -0.02262481111 | AP45: ='price data'!V43 -> 128.69 | AQ45: -0.08837031024 | AR45: ='price data'!W43 -> 103.15 | AS45: 0.04948356981 | AT45: ='price data'!X43 -> 283.45 | AU45: -0.05854511583 | AV45: ='price data'!Y43 -> 128.59 | AW45: 0.01709845577 | AX45: ='price data'!Z43 -> 45.33 | AY45: -0.07027155946 | AZ45: ='price data'!AA43 -> 15.73 | BA45: -0.1162985693 | BB45: ='price data'!AB43 -> 328.39 | BC45: 0.06650763174 | BD45: ='price data'!AC43 -> 285.11 | BE45: -0.03663943214 | BF45: ='price data'!AD43 -> 48.9562 | BG45: -0.02753223391 | BH45: ='price data'!AE43 -> 59.66 | BI45: -0.07256231198 | BK45: ='price data'!AF43 -> 419.43 | BL45: 0.004228942259
A46: 2023-06-01 | B46: ='price data'!B44 -> 103.74 | C46: 0.2478090532 | D46: ='price data'!C44 -> 261.77 | E46: 0.2496894579 | F46: ='price data'!D44 -> 54.87 | G46: 0.1449741537 | H46: ='price data'!E44 -> 211.16 | I46: 0.0261973433 | J46: ='price data'!F44 -> 42.302 | K46: 0.111626197 | L46: ='price data'!G44 -> 35.21 | M46: 0.1238008223 | N46: ='price data'!H44 -> 15.13 | O46: 0.231772878 | P46: ='price data'!I44 -> 286.98 | Q46: 0.08073986331 | R46: ='price data'!J44 -> 73.83 | S46: 0.05169971585 | T46: ='price data'!K44 -> 107.25 | U46: 0.04842659391 | V46: ='price data'!L44 -> 42.78 | W46: 0.02965946182 | X46: ='price data'!M44 -> 88.22 | Y46: 0.1143176121 | Z46: ='price data'!N44 -> 246.05 | AA46: 0.1788729278 | AB46: ='price data'!O44 -> 468.98 | AC46: 0.08803151807 | AD46: ='price data'!P44 -> 193.97 | AE46: 0.09014234252 | AF46: ='price data'!Q44 -> 145.44 | AG46: 0.06924337434 | AH46: ='price data'!R44 -> 83.6832 | AI46: 0.07014225184 | AJ46: ='price data'!S44 -> 393.3 | AK46: 0.07462053284 | AL46: ='price data'!T44 -> 119.7 | AM46: -0.02613827332 | AN46: ='price data'!U44 -> 36.68 | AO46: -0.03588068967 | AP46: ='price data'!V44 -> 138.55 | AQ46: 0.0738248598 | AR46: ='price data'!W44 -> 104.29 | AS46: 0.01099124062 | AT46: ='price data'!X44 -> 310.64 | AU46: 0.09159894465 | AV46: ='price data'!Y44 -> 133.81 | AW46: 0.03979183503 | AX46: ='price data'!Z44 -> 47 | AY46: 0.03617853676 | AZ46: ='price data'!AA44 -> 15.95 | BA46: 0.01388911216 | BB46: ='price data'!AB44 -> 340.54 | BC46: 0.03633066655 | BD46: ='price data'!AC44 -> 298.41 | BE46: 0.04559330912 | BF46: ='price data'!AD44 -> 52.3928 | BG46: 0.06784315649 | BH46: ='price data'!AE44 -> 60.22 | BI46: 0.009342743967 | BK46: ='price data'!AF44 -> 445.71 | BL46: 0.06077186965
A47: 2023-07-01 | B47: ='price data'!B45 -> 109.11 | C47: 0.05046877874 | D47: ='price data'!C45 -> 267.43 | E47: 0.02139159423 | F47: ='price data'!D45 -> 54.31 | G47: -0.01025837902 | H47: ='price data'!E45 -> 238.85 | I47: 0.1232195999 | J47: ='price data'!F45 -> 46.729 | K47: 0.0995305907 | L47: ='price data'!G45 -> 38.61 | M47: 0.09218117711 | N47: ='price data'!H45 -> 13.21 | O47: -0.1357054093 | P47: ='price data'!I45 -> 318.6 | Q47: 0.1045238706 | R47: ='price data'!J45 -> 82.7 | S47: 0.113454449 | T47: ='price data'!K45 -> 107.24 | U47: -9.324444037e-05 | V47: ='price data'!L45 -> 39.2456 | W47: -0.08623136762 | X47: ='price data'!M45 -> 96.49 | Y47: 0.08960568136 | Z47: ='price data'!N45 -> 265.17 | AA47: 0.07483636243 | AB47: ='price data'!O45 -> 454.55 | AC47: -0.03125220505 | AD47: ='price data'!P45 -> 196.45 | AE47: 0.01270443807 | AF47: ='price data'!Q45 -> 157.96 | AG47: 0.08257820599 | AH47: ='price data'!R45 -> 93.2229 | AI47: 0.1079551592 | AJ47: ='price data'!S45 -> 394.28 | AK47: 0.002488637359 | AL47: ='price data'!T45 -> 132.72 | AM47: 0.1032530333 | AN47: ='price data'!U45 -> 36.06 | AO47: -0.01704742961 | AP47: ='price data'!V45 -> 137.67 | AQ47: -0.006371754234 | AR47: ='price data'!W45 -> 105.89 | AS47: 0.01522533931 | AT47: ='price data'!X45 -> 333.84 | AU47: 0.07202715086 | AV47: ='price data'!Y45 -> 144.18 | AW47: 0.07464163566 | AX47: ='price data'!Z45 -> 48.64 | AY47: 0.03429863595 | AZ47: ='price data'!AA45 -> 14.52 | BA47: -0.09393181983 | BB47: ='price data'!AB45 -> 335.92 | BC47: -0.01365955662 | BD47: ='price data'!AC45 -> 293.2 | BE47: -0.01761340982 | BF47: ='price data'!AD45 -> 53.2861 | BG47: 0.01690633186 | BH47: ='price data'!AE45 -> 61.93 | BI47: 0.0280001919 | BK47: ='price data'!AF45 -> 460.18 | BL47: 0.03194920097
A48: 2023-08-01 | B48: ='price data'!B46 -> 98.94 | C48: -0.09784294187 | D48: ='price data'!C46 -> 258.08 | E48: -0.03558823547 | F48: ='price data'!D46 -> 49.81 | G48: -0.08649260496 | H48: ='price data'!E46 -> 224.03 | I48: -0.06405576838 | J48: ='price data'!F46 -> 49.355 | K48: 0.05467412092 | L48: ='price data'!G46 -> 33.75 | M48: -0.134530893 | N48: ='price data'!H46 -> 12.13 | O48: -0.08529239558 | P48: ='price data'!I46 -> 295.89 | Q48: -0.07394863384 | R48: ='price data'!J46 -> 75.7 | S48: -0.08844144159 | T48: ='price data'!K46 -> 111.19 | U48: 0.03617113635 | V48: ='price data'!L46 -> 38.5328 | W48: -0.01832950939 | X48: ='price data'!M46 -> 94.67 | Y48: -0.01904221589 | Z48: ='price data'!N46 -> 281.13 | AA48: 0.05844606606 | AB48: ='price data'!O46 -> 554.2 | AC48: 0.1982177139 | AD48: ='price data'!P46 -> 187.87 | AE48: -0.04465771173 | AF48: ='price data'!Q46 -> 146.33 | AG48: -0.07647749131 | AH48: ='price data'!R46 -> 89.1847 | AI48: -0.04428389945 | AJ48: ='price data'!S46 -> 412.64 | AK48: 0.04551422534 | AL48: ='price data'!T46 -> 136.17 | AM48: 0.02566245925 | AN48: ='price data'!U46 -> 35.38 | AO48: -0.01903752904 | AP48: ='price data'!V46 -> 129.38 | AQ48: -0.06210570646 | AR48: ='price data'!W46 -> 106.02 | AS48: 0.001226936117 | AT48: ='price data'!X46 -> 330.3 | AU48: -0.01066050389 | AV48: ='price data'!Y46 -> 146.83 | AW48: 0.018212936 | AX48: ='price data'!Z46 -> 46.39 | AY48: -0.04736231889 | AZ48: ='price data'!AA46 -> 14.79 | BA48: 0.01842426733 | BB48: ='price data'!AB46 -> 327.76 | BC48: -0.02459140314 | BD48: ='price data'!AC46 -> 281.15 | BE48: -0.04196663527 | BF48: ='price data'!AD46 -> 54.2028 | BG48: 0.01705705846 | BH48: ='price data'!AE46 -> 59.83 | BI48: -0.03449750755 | BK48: ='price data'!AF46 -> 452.69 | BL48: -0.01641015278
A49: 2023-09-01 | B49: ='price data'!B47 -> 92.14 | C49: -0.07120444629 | D49: ='price data'!C47 -> 250.22 | E49: -0.03092908349 | F49: ='price data'!D47 -> 42.3 | G49: -0.163428681 | H49: ='price data'!E47 -> 191.68 | I49: -0.1559526565 | J49: ='price data'!F47 -> 43.499 | K49: -0.1263011285 | L49: ='price data'!G47 -> 33.06 | M49: -0.02065632493 | N49: ='price data'!H47 -> 12.42 | O49: 0.02362635355 | P49: ='price data'!I47 -> 300.21 | Q49: 0.01449446614 | R49: ='price data'!J47 -> 68.22 | S49: -0.1040403835 | T49: ='price data'!K47 -> 117.58 | U49: 0.05587850326 | V49: ='price data'!L47 -> 36.6366 | W49: -0.0504620859 | X49: ='price data'!M47 -> 94.89 | Y49: 0.002321165845 | Z49: ='price data'!N47 -> 273 | AA49: -0.02934540062 | AB49: ='price data'!O47 -> 537.13 | AC49: -0.03128548156 | AD49: ='price data'!P47 -> 171.21 | AE49: -0.09285936106 | AF49: ='price data'!Q47 -> 145.02 | AG49: -0.008992681161 | AH49: ='price data'!R47 -> 78.2738 | AI49: -0.1304965637 | AJ49: ='price data'!S47 -> 395.91 | AK49: -0.04138862944 | AL49: ='price data'!T47 -> 130.86 | AM49: -0.03977605569 | AN49: ='price data'!U47 -> 33.17 | AO49: -0.06450083577 | AP49: ='price data'!V47 -> 124.94 | AQ49: -0.03492018855 | AR49: ='price data'!W47 -> 105.2 | AS49: -0.007764455256 | AT49: ='price data'!X47 -> 302.16 | AU49: -0.08904465399 | AV49: ='price data'!Y47 -> 140.3 | AW49: -0.04549246787 | AX49: ='price data'!Z47 -> 44.75 | AY49: -0.03599247404 | AZ49: ='price data'!AA47 -> 15.02 | BA49: 0.01543136961 | BB49: ='price data'!AB47 -> 315.75 | BC49: -0.03733087201 | BD49: ='price data'!AC47 -> 263.44 | BE49: -0.06506269667 | BF49: ='price data'!AD47 -> 53.3095 | BG49: -0.01661801594 | BH49: ='price data'!AE47 -> 55.98 | BI49: -0.06651272331 | BK49: ='price data'!AF47 -> 429.43 | BL49: -0.05274881658
A50: 2023-10-01 | B50: ='price data'!B48 -> 84.73 | C50: -0.0838394293 | D50: ='price data'!C48 -> 200.84 | E50: -0.2198319597 | F50: ='price data'!D48 -> 35.01 | G50: -0.1891533511 | H50: ='price data'!E48 -> 186.82 | I50: -0.02568172848 | J50: ='price data'!F48 -> 40.78 | K50: -0.06454618418 | L50: ='price data'!G48 -> 26.85 | M50: -0.2080582714 | N50: ='price data'!H48 -> 9.75 | O50: -0.2420407915 | P50: ='price data'!I48 -> 301.27 | Q50: 0.003524642872 | R50: ='price data'!J48 -> 65.02 | S50: -0.04804286211 | T50: ='price data'!K48 -> 105.85 | U50: -0.1050959554 | V50: ='price data'!L48 -> 38.844 | W50: 0.05850588399 | X50: ='price data'!M48 -> 91.44 | Y50: -0.0370353065 | Z50: ='price data'!N48 -> 226.05 | AA50: -0.1887155814 | AB50: ='price data'!O48 -> 553.93 | AC50: 0.0307981741 | AD50: ='price data'!P48 -> 170.77 | AE50: -0.002573251318 | AF50: ='price data'!Q48 -> 139.06 | AG50: -0.04196616927 | AH50: ='price data'!R48 -> 76.0415 | AI50: -0.02893369264 | AJ50: ='price data'!S48 -> 376.35 | AK50: -0.05066735122 | AL50: ='price data'!T48 -> 124.08 | AM50: -0.05320153057 | AN50: ='price data'!U48 -> 30.56 | AO50: -0.08195388866 | AP50: ='price data'!V48 -> 120.86 | AQ50: -0.03320077113 | AR50: ='price data'!W48 -> 102.53 | AS50: -0.02570786162 | AT50: ='price data'!X48 -> 284.69 | AU50: -0.05955580943 | AV50: ='price data'!Y48 -> 144.64 | AW50: 0.03046490954 | AX50: ='price data'!Z48 -> 45.37 | AY50: 0.01375964896 | AZ50: ='price data'!AA48 -> 15.4 | BA50: 0.02498486308 | BB50: ='price data'!AB48 -> 338.11 | BC50: 0.06842052509 | BD50: ='price data'!AC48 -> 262.17 | BE50: -0.004832489761 | BF50: ='price data'!AD48 -> 54.4695 | BG50: 0.0215263603 | BH50: ='price data'!AE48 -> 56.49 | BI50: 0.00906914725 | BK50: ='price data'!AF48 -> 419.94 | BL50: -0.022346904
A51: 2023-11-01 | B51: ='price data'!B49 -> 107.46 | C51: 0.2376489551 | D51: ='price data'!C49 -> 240.08 | E51: 0.17846363 | F51: ='price data'!D49 -> 39.4 | G51: 0.1181320813 | H51: ='price data'!E49 -> 231.63 | I51: 0.2149956845 | J51: ='price data'!F49 -> 46.77 | K51: 0.1370502066 | L51: ='price data'!G49 -> 29.99 | M51: 0.1105981718 | N51: ='price data'!H49 -> 10.26 | O51: 0.05098555473 | P51: ='price data'!I49 -> 327.15 | Q51: 0.08241190867 | R51: ='price data'!J49 -> 65.24 | S51: 0.003377862877 | T51: ='price data'!K49 -> 102.74 | U51: -0.02982147254 | V51: ='price data'!L49 -> 44.045 | W51: 0.1256582138 | X51: ='price data'!M49 -> 97.78 | Y51: 0.06703703766 | Z51: ='price data'!N49 -> 250.72 | AA51: 0.1035805649 | AB51: ='price data'!O49 -> 591.04 | AC51: 0.06484537204 | AD51: ='price data'!P49 -> 189.95 | AE51: 0.1064432577 | AF51: ='price data'!Q49 -> 156.08 | AG51: 0.1154632016 | AH51: ='price data'!R49 -> 82.8304 | AI51: 0.08551589988 | AJ51: ='price data'!S49 -> 413.83 | AK51: 0.09493569999 | AL51: ='price data'!T49 -> 132.53 | AM51: 0.06588251602 | AN51: ='price data'!U49 -> 30.47 | AO51: -0.002949371301 | AP51: ='price data'!V49 -> 125.55 | AQ51: 0.03807123467 | AR51: ='price data'!W49 -> 122.24 | AS51: 0.1758308867 | AT51: ='price data'!X49 -> 313.49 | AU51: 0.09636659266 | AV51: ='price data'!Y49 -> 158.56 | AW51: 0.09188517394 | AX51: ='price data'!Z49 -> 44.27 | AY51: -0.02454384693 | AZ51: ='price data'!AA49 -> 16.57 | BA51: 0.07322632202 | BB51: ='price data'!AB49 -> 378.91 | BC51: 0.1139274235 | BD51: ='price data'!AC49 -> 281.84 | BE51: 0.07234638573 | BF51: ='price data'!AD49 -> 51.8961 | BG51: -0.04839726915 | BH51: ='price data'!AE49 -> 58.44 | BI51: 0.03393695555 | BK51: ='price data'!AF49 -> 458.42 | BL51: 0.08767395054
A52: 2023-12-01 | B52: ='price data'!B50 -> 129.49 | C52: 0.1864849728 | D52: ='price data'!C50 -> 248.48 | E52: 0.03439015827 | F52: ='price data'!D50 -> 41.26 | G52: 0.04612769134 | H52: ='price data'!E50 -> 260.66 | I52: 0.1180756051 | J52: ='price data'!F50 -> 49.522 | K52: 0.05717504355 | L52: ='price data'!G50 -> 36.84 | M52: 0.2057202186 | N52: ='price data'!H50 -> 12.19 | O52: 0.1723631038 | P52: ='price data'!I50 -> 353.96 | Q52: 0.07876513108 | R52: ='price data'!J50 -> 76.23 | S52: 0.1556823082 | T52: ='price data'!K50 -> 99.98 | U52: -0.02723135905 | V52: ='price data'!L50 -> 45.7392 | W52: 0.03774385972 | X52: ='price data'!M50 -> 103.71 | Y52: 0.05887848545 | Z52: ='price data'!N50 -> 295.67 | AA52: 0.1649071889 | AB52: ='price data'!O50 -> 582.92 | AC52: -0.01383374135 | AD52: ='price data'!P50 -> 192.53 | AE52: 0.01349110611 | AF52: ='price data'!Q50 -> 170.1 | AG52: 0.08601780309 | AH52: ='price data'!R50 -> 91.4003 | AI52: 0.09845361696 | AJ52: ='price data'!S50 -> 426.51 | AK52: 0.03018055184 | AL52: ='price data'!T50 -> 139.69 | AM52: 0.05261664685 | AN52: ='price data'!U50 -> 28.79 | AO52: -0.05671448837 | AP52: ='price data'!V50 -> 130.66 | AQ52: 0.03989444381 | AR52: ='price data'!W50 -> 128.54 | AS52: 0.05025381452 | AT52: ='price data'!X50 -> 346.55 | AU52: 0.1002596467 | AV52: ='price data'!Y50 -> 163.55 | AW52: 0.0309856834 | AX52: ='price data'!Z50 -> 45.71 | AY52: 0.0320098456 | AZ52: ='price data'!AA50 -> 16.78 | BA52: 0.0125938696 | BB52: ='price data'!AB50 -> 376.04 | BC52: -0.007603189154 | BD52: ='price data'!AC50 -> 296.51 | BE52: 0.05074141065 | BF52: ='price data'!AD50 -> 52.5495 | BG52: 0.01251193969 | BH52: ='price data'!AE50 -> 58.93 | BI52: 0.008349711967 | BK52: ='price data'!AF50 -> 477.63 | BL52: 0.04105057971
A53: 2024-01-01 | B53: ='price data'!B51 -> 127.5 | C53: -0.01548729348 | D53: ='price data'!C51 -> 187.29 | E53: -0.2827041417 | F53: ='price data'!D51 -> 41.38 | G53: 0.002904164674 | H53: ='price data'!E51 -> 211.04 | I53: -0.2111691871 | J53: ='price data'!F51 -> 61.527 | K53: 0.2170590876 | L53: ='price data'!G51 -> 32.45 | M53: -0.1268837682 | N53: ='price data'!H51 -> 11.72 | O53: -0.03931915934 | P53: ='price data'!I51 -> 390.14 | Q53: 0.09732173667 | R53: ='price data'!J51 -> 73.48 | S53: -0.03674182565 | T53: ='price data'!K51 -> 102.81 | U53: 0.02791245857 | V53: ='price data'!L51 -> 48.1754 | W53: 0.05189281905 | X53: ='price data'!M51 -> 104.93 | Y53: 0.01169491857 | Z53: ='price data'!N51 -> 300.31 | AA53: 0.01557130693 | AB53: ='price data'!O51 -> 645.61 | AC53: 0.1021456506 | AD53: ='price data'!P51 -> 184.4 | AE53: -0.04314467462 | AF53: ='price data'!Q51 -> 174.36 | AG53: 0.02473562797 | AH53: ='price data'!R51 -> 78.8841 | AI53: -0.1472690741 | AJ53: ='price data'!S51 -> 449.23 | AK53: 0.05189919271 | AL53: ='price data'!T51 -> 140.1 | AM53: 0.002930771604 | AN53: ='price data'!U51 -> 27.08 | AO53: -0.06123265658 | AP53: ='price data'!V51 -> 129.49 | AQ53: -0.008994871332 | AR53: ='price data'!W51 -> 119.49 | AS53: -0.07300745408 | AT53: ='price data'!X51 -> 352.96 | AU53: 0.0183276277 | AV53: ='price data'!Y51 -> 183.66 | AW53: 0.1159674682 | AX53: ='price data'!Z51 -> 46.14 | AY53: 0.009363160402 | AZ53: ='price data'!AA51 -> 17.69 | BA53: 0.05281180713 | BB53: ='price data'!AB51 -> 397.58 | BC53: 0.055700651 | BD53: ='price data'!AC51 -> 292.72 | BE53: -0.01286442397 | BF53: ='price data'!AD51 -> 55.0828 | BG53: 0.04708192519 | BH53: ='price data'!AE51 -> 59.49 | BI53: 0.00945793235 | BK53: ='price data'!AF51 -> 485.2 | BL53: 0.01572480289
A54: 2024-02-01 | B54: ='price data'!B52 -> 123.35 | C54: -0.03309052162 | D54: ='price data'!C52 -> 201.88 | E54: 0.07501524373 | F54: ='price data'!D52 -> 45.49 | G54: 0.09469484926 | H54: ='price data'!E52 -> 203.72 | I54: -0.03530118695 | J54: ='price data'!F52 -> 79.112 | K54: 0.2513884671 | L54: ='price data'!G52 -> 36.27 | M54: 0.1112905101 | N54: ='price data'!H52 -> 12.44 | O54: 0.05962030316 | P54: ='price data'!I52 -> 490.13 | Q54: 0.228165013 | R54: ='price data'!J52 -> 71.89 | S54: -0.02187608735 | T54: ='price data'!K52 -> 104.52 | U54: 0.0164958161 | V54: ='price data'!L52 -> 53.7754 | W54: 0.1099675962 | X54: ='price data'!M52 -> 108.99 | Y54: 0.03796267373 | Z54: ='price data'!N52 -> 333.96 | AA54: 0.1062059509 | AB54: ='price data'!O52 -> 753.68 | AC54: 0.1547722684 | AD54: ='price data'!P52 -> 180.75 | AE54: -0.01999245008 | AF54: ='price data'!Q52 -> 186.06 | AG54: 0.06494707497 | AH54: ='price data'!R52 -> 77.0197 | AI54: -0.02391845334 | AJ54: ='price data'!S52 -> 474.76 | AK54: 0.05527440716 | AL54: ='price data'!T52 -> 138.46 | AM54: -0.01177497809 | AN54: ='price data'!U52 -> 26.56 | AO54: -0.01938912344 | AP54: ='price data'!V52 -> 138.42 | AQ54: 0.06668888333 | AR54: ='price data'!W52 -> 137.35 | AS54: 0.1392997267 | AT54: ='price data'!X52 -> 380.61 | AU54: 0.07542049276 | AV54: ='price data'!Y52 -> 185.03 | AW54: 0.007431751908 | AX54: ='price data'!Z52 -> 49.61 | AY54: 0.07251217357 | AZ54: ='price data'!AA52 -> 16.93 | BA54: -0.04391231203 | BB54: ='price data'!AB52 -> 413.64 | BC54: 0.03959985861 | BD54: ='price data'!AC52 -> 292.28 | BE54: -0.001504273788 | BF54: ='price data'!AD52 -> 58.61 | BG54: 0.06206782277 | BH54: ='price data'!AE52 -> 60.02 | BI54: 0.008869608812 | BK54: ='price data'!AF52 -> 510.45 | BL54: 0.05073151255
A55: 2024-03-01 | B55: ='price data'!B53 -> 139.01 | C55: 0.11952003 | D55: ='price data'!C53 -> 175.79 | E55: -0.1383833607 | F55: ='price data'!D53 -> 47.88 | G55: 0.05120535911 | H55: ='price data'!E53 -> 192.99 | I55: -0.05410812793 | J55: ='price data'!F53 -> 90.356 | K55: 0.1328928533 | L55: ='price data'!G53 -> 43.74 | M55: 0.187272062 | N55: ='price data'!H53 -> 13.28 | O55: 0.06534205674 | P55: ='price data'!I53 -> 485.58 | Q55: -0.009326609304 | R55: ='price data'!J53 -> 66.6 | S55: -0.07643259545 | T55: ='price data'!K53 -> 116.24 | U55: 0.1062785786 | V55: ='price data'!L53 -> 58.1354 | W55: 0.07795865911 | X55: ='price data'!M53 -> 117.4 | Y55: 0.07433077249 | Z55: ='price data'!N53 -> 366.43 | AA55: 0.09278628185 | AB55: ='price data'!O53 -> 777.96 | AC55: 0.03170723423 | AD55: ='price data'!P53 -> 171.48 | AE55: -0.05264821931 | AF55: ='price data'!Q53 -> 200.3 | AG55: 0.07374704033 | AH55: ='price data'!R53 -> 88.683 | AI55: 0.1410069804 | AJ55: ='price data'!S53 -> 481.57 | AK55: 0.01424218651 | AL55: ='price data'!T53 -> 150.93 | AM55: 0.08623467792 | AN55: ='price data'!U53 -> 27.75 | AO55: 0.04382951558 | AP55: ='price data'!V53 -> 138.65 | AQ55: 0.001660230648 | AR55: ='price data'!W53 -> 148.87 | AS55: 0.08054102935 | AT55: ='price data'!X53 -> 383.6 | AU55: 0.007825114189 | AV55: ='price data'!Y53 -> 190.96 | AW55: 0.03154600794 | AX55: ='price data'!Z53 -> 57.13 | AY55: 0.1411369464 | AZ55: ='price data'!AA53 -> 17.6 | BA55: 0.0388117059 | BB55: ='price data'!AB53 -> 420.72 | BC55: 0.01697149896 | BD55: ='price data'!AC53 -> 281.95 | BE55: -0.03598249667 | BF55: ='price data'!AD53 -> 60.17 | BG55: 0.02626855874 | BH55: ='price data'!AE53 -> 61.18 | BI55: 0.01914249871 | BK55: ='price data'!AF53 -> 525.73 | BL55: 0.02949508335
A56: 2024-04-01 | B56: ='price data'!B54 -> 139.63 | C56: 0.004450193965 | D56: ='price data'!C54 -> 183.28 | E56: 0.04172493733 | F56: ='price data'!D54 -> 51.46 | G56: 0.07210692616 | H56: ='price data'!E54 -> 167.84 | I56: -0.1396272294 | J56: ='price data'!F54 -> 86.402 | K56: -0.04474659955 | L56: ='price data'!G54 -> 34.39 | M56: -0.2404971908 | N56: ='price data'!H54 -> 12.15 | O56: -0.08892997426 | P56: ='price data'!I54 -> 430.17 | Q56: -0.1211635733 | R56: ='price data'!J54 -> 61.69 | S56: -0.07658273432 | T56: ='price data'!K54 -> 118.27 | U56: 0.017313127 | V56: ='price data'!L54 -> 63.192 | W56: 0.08340293823 | X56: ='price data'!M54 -> 110.48 | Y56: -0.06075239829 | Z56: ='price data'!N54 -> 334.57 | AA56: -0.09096138194 | AB56: ='price data'!O54 -> 781.1 | AC56: 0.004028073641 | AD56: ='price data'!P54 -> 170.33 | AE56: -0.006728909857 | AF56: ='price data'!Q54 -> 191.74 | AG56: -0.04367595502 | AH56: ='price data'!R54 -> 96.51 | AI56: 0.08457841624 | AJ56: ='price data'!S54 -> 451.2 | AK56: -0.06514089951 | AL56: ='price data'!T54 -> 162.78 | AM56: 0.07558344273 | AN56: ='price data'!U54 -> 25.62 | AO56: -0.07986254372 | AP56: ='price data'!V54 -> 141.25 | AQ56: 0.01857859796 | AR56: ='price data'!W54 -> 144.47 | AS56: -0.03000156835 | AT56: ='price data'!X54 -> 334.22 | AU56: -0.1378008842 | AV56: ='price data'!Y54 -> 166.2 | AW56: -0.1388720996 | AX56: ='price data'!Z54 -> 55.38 | AY56: -0.03111085499 | AZ56: ='price data'!AA54 -> 16.89 | BA56: -0.04117717122 | BB56: ='price data'!AB54 -> 389.33 | BC56: -0.07754021624 | BD56: ='price data'!AC54 -> 273.04 | BE56: -0.03211144565 | BF56: ='price data'!AD54 -> 59.35 | BG56: -0.01372176818 | BH56: ='price data'!AE54 -> 61.77 | BI56: 0.009597470985 | BK56: ='price data'!AF54 -> 504.44 | BL56: -0.04133886988
A57: 2024-05-01 | B57: ='price data'!B55 -> 147.68 | C57: =LN(B57/B56) -> 0.0560517038 | D57: ='price data'!C55 -> 178.08 | E57: -0.02878215062 | F57: ='price data'!D55 -> 52.99 | G57: 0.02929840965 | H57: ='price data'!E55 -> 177.61 | I57: 0.05657899063 | J57: ='price data'!F55 -> 109.633 | K57: 0.2381276004 | L57: ='price data'!G55 -> 35.88 | M57: 0.04241421275 | N57: ='price data'!H55 -> 12.13 | O57: -0.001647446831 | P57: ='price data'!I55 -> 466.83 | Q57: 0.0817846863 | R57: ='price data'!J55 -> 46.46 | S57: -0.2835301159 | T57: ='price data'!K55 -> 117.26 | U57: -0.008576454727 | V57: ='price data'!L55 -> 62.5904 | W57: -0.009565799149 | X57: ='price data'!M55 -> 120.35 | Y57: 0.08556965513 | Z57: ='price data'!N55 -> 338.52 | AA57: 0.01173704956 | AB57: ='price data'!O55 -> 820.34 | AC57: 0.04901570585 | AD57: ='price data'!P55 -> 192.25 | AE57: 0.1210588765 | AF57: ='price data'!Q55 -> 202.63 | AG57: 0.05524136823 | AH57: ='price data'!R55 -> 100.14 | AI57: 0.03692257698 | AJ57: ='price data'!S55 -> 447.07 | AK57: -0.009195518278 | AL57: ='price data'!T55 -> 172.5 | AM57: 0.05799764057 | AN57: ='price data'!U55 -> 28.66 | AO57: 0.1121291259 | AP57: ='price data'!V55 -> 137.43 | AQ57: -0.02741667346 | AR57: ='price data'!W55 -> 163.85 | AS57: 0.1258795016 | AT57: ='price data'!X55 -> 334.87 | AU57: 0.001942938034 | AV57: ='price data'!Y55 -> 166.85 | AW57: 0.003903322776 | AX57: ='price data'!Z55 -> 52.37 | AY57: -0.05588460945 | AZ57: ='price data'!AA55 -> 18.22 | BA57: 0.07579816101 | BB57: ='price data'!AB55 -> 415.13 | BC57: 0.06416441115 | BD57: ='price data'!AC55 -> 258.89 | BE57: -0.05321504354 | BF57: ='price data'!AD55 -> 65.76 | BG57: 0.1025596297 | BH57: ='price data'!AE55 -> 62.93 | BI57: 0.01860518783 | BK57: ='price data'!AF55 -> 529.96 | BL57: 0.04935262891
A58: 2024-06-01 | B58: ='price data'!B56 -> 159.43 | C58: 0.07655718366 | D58: ='price data'!C56 -> 197.88 | E58: 0.1054278988 | F58: ='price data'!D56 -> 48.66 | G58: -0.08524587915 | H58: ='price data'!E56 -> 182.01 | I58: 0.02447149534 | J58: ='price data'!F56 -> 123.54 | K58: 0.1194265662 | L58: ='price data'!G56 -> 33.54 | M58: -0.0674412808 | N58: ='price data'!H56 -> 12.54 | O58: 0.03324181225 | P58: ='price data'!I56 -> 504.22 | Q58: 0.07704751507 | R58: ='price data'!J56 -> 46.98 | S58: 0.01113025189 | T58: ='price data'!K56 -> 115.12 | U58: -0.01841862896 | V58: ='price data'!L56 -> 62.65 | W58: 0.0009517696286 | X58: ='price data'!M56 -> 117.19 | Y58: -0.02660761496 | Z58: ='price data'!N56 -> 333.1 | AA58: -0.0161404296 | AB58: ='price data'!O56 -> 905.38 | AC58: 0.09863585661 | AD58: ='price data'!P56 -> 210.62 | AE58: 0.09125895357 | AF58: ='price data'!Q56 -> 202.26 | AG58: -0.001827657403 | AH58: ='price data'!R56 -> 102.19 | AI58: 0.02026461872 | AJ58: ='price data'!S56 -> 441.16 | AK58: -0.01330756047 | AL58: ='price data'!T56 -> 182.15 | AM58: 0.05443328698 | AN58: ='price data'!U56 -> 27.98 | AO58: -0.02401245316 | AP58: ='price data'!V56 -> 132.46 | AQ58: -0.03683398351 | AR58: ='price data'!W56 -> 162.92 | AS58: -0.005692092365 | AT58: ='price data'!X56 -> 344.24 | AU58: 0.02759669172 | AV58: ='price data'!Y56 -> 172.95 | AW58: 0.03590733019 | AX58: ='price data'!Z56 -> 49.93 | AY58: -0.04771188378 | AZ58: ='price data'!AA56 -> 19.11 | BA58: 0.04769186642 | BB58: ='price data'!AB56 -> 446.95 | BC58: 0.07385500734 | BD58: ='price data'!AC56 -> 254.84 | BE58: -0.01576736381 | BF58: ='price data'!AD56 -> 67.71 | BG58: 0.02922212875 | BH58: ='price data'!AE56 -> 63.65 | BI58: 0.01137632746 | BK58: ='price data'!AF56 -> 547.23 | BL58: 0.03206765737
A59: 2024-07-01 | B59: ='price data'!B57 -> 156.72 | C59: -0.01714418078 | D59: ='price data'!C57 -> 232.07 | E59: 0.1593782639 | F59: ='price data'!D57 -> 45.42 | G59: -0.06890480068 | H59: ='price data'!E57 -> 190.6 | I59: 0.0461153606 | J59: ='price data'!F57 -> 117.02 | K59: -0.05422012991 | L59: ='price data'!G57 -> 37.5 | M59: 0.1116021766 | N59: ='price data'!H57 -> 10.82 | O59: -0.1475272618 | P59: ='price data'!I57 -> 474.83 | Q59: -0.06005583553 | R59: ='price data'!J57 -> 44.23 | S59: -0.06031868735 | T59: ='price data'!K57 -> 118.59 | U59: 0.0296971034 | V59: ='price data'!L57 -> 54.32 | W59: -0.1426711981 | X59: ='price data'!M57 -> 125.32 | Y59: 0.06707391681 | Z59: ='price data'!N57 -> 346.2 | AA59: 0.03857389754 | AB59: ='price data'!O57 -> 804.27 | AC59: -0.1184197114 | AD59: ='price data'!P57 -> 222.08 | AE59: 0.05298211537 | AF59: ='price data'!Q57 -> 212.8 | AG59: 0.05079875899 | AH59: ='price data'!R57 -> 127.55 | AI59: 0.221674619 | AJ59: ='price data'!S57 -> 463.71 | AK59: 0.04985173539 | AL59: ='price data'!T57 -> 171.54 | AM59: -0.06001404789 | AN59: ='price data'!U57 -> 30.54 | AO59: 0.08754733055 | AP59: ='price data'!V57 -> 132.83 | AQ59: 0.002789402088 | AR59: ='price data'!W57 -> 171.25 | AS59: 0.04986519436 | AT59: ='price data'!X57 -> 368.16 | AU59: 0.06717853776 | AV59: ='price data'!Y57 -> 192.14 | AW59: 0.1052217376 | AX59: ='price data'!Z57 -> 54.5 | AY59: 0.08757867716 | AZ59: ='price data'!AA57 -> 19.25 | BA59: 0.007299302482 | BB59: ='price data'!AB57 -> 418.35 | BC59: -0.06612832879 | BD59: ='price data'!AC57 -> 265.4 | BE59: 0.04060222465 | BF59: ='price data'!AD57 -> 68.64 | BG59: 0.01364157568 | BH59: ='price data'!AE57 -> 66.74 | BI59: 0.04740514832 | BK59: ='price data'!AF57 -> 553.32 | BL59: 0.01106730664
A60: 2024-08-01 | B60: ='price data'!B58 -> 164.62 | C60: 0.04917901391 | D60: ='price data'!C58 -> 214.11 | E60: -0.08054914864 | F60: ='price data'!D58 -> 44.04 | G60: -0.03085422482 | H60: ='price data'!E58 -> 173.74 | I60: -0.09261706239 | J60: ='price data'!F58 -> 119.37 | K60: 0.01988305275 | L60: ='price data'!G58 -> 37.44 | M60: -0.001601281367 | N60: ='price data'!H58 -> 11.19 | O60: 0.03362424891 | P60: ='price data'!I58 -> 521.31 | Q60: 0.09338802916 | R60: ='price data'!J58 -> 47.37 | S60: 0.06858582506 | T60: ='price data'!K58 -> 117.94 | U60: -0.005496145404 | V60: ='price data'!L58 -> 56.08 | W60: 0.03188675948 | X60: ='price data'!M58 -> 121.16 | Y60: -0.03375847992 | Z60: ='price data'!N58 -> 356.1 | AA60: 0.02819494754 | AB60: ='price data'!O58 -> 960.02 | AC60: 0.1770190839 | AD60: ='price data'!P58 -> 229 | AE60: 0.03068432624 | AF60: ='price data'!Q58 -> 224.8 | AG60: 0.05485836055 | AH60: ='price data'!R58 -> 134.69 | AI60: 0.05446739702 | AJ60: ='price data'!S58 -> 483.34 | AK60: 0.04146098292 | AL60: ='price data'!T58 -> 163.38 | AM60: -0.04873769965 | AN60: ='price data'!U58 -> 29.01 | AO60: -0.05139670166 | AP60: ='price data'!V58 -> 134.92 | AQ60: 0.01561189505 | AR60: ='price data'!W58 -> 183.29 | AS60: 0.06794512084 | AT60: ='price data'!X58 -> 368.5 | AU60: 0.0009230853423 | AV60: ='price data'!Y58 -> 202.13 | AW60: 0.05068678178 | AX60: ='price data'!Z58 -> 53.21 | AY60: -0.02395435306 | AZ60: ='price data'!AA58 -> 19.9 | BA60: 0.033208671 | BB60: ='price data'!AB58 -> 417.14 | BC60: -0.002896505873 | BD60: ='price data'!AC58 -> 288.66 | BE60: 0.08401140304 | BF60: ='price data'!AD58 -> 77.23 | BG60: 0.1179125274 | BH60: ='price data'!AE58 -> 72.47 | BI60: 0.0823682098 | BK60: ='price data'!AF58 -> 566.75 | BL60: 0.02398179338
A61: 2024-09-01 | B61: ='price data'!B59 -> 177.36 | C61: 0.07454177776 | D61: ='price data'!C59 -> 261.63 | E61: 0.2004413903 | F61: ='price data'!D59 -> 57.06 | G61: 0.2590050339 | H61: ='price data'!E59 -> 152.04 | I61: -0.1334162847 | J61: ='price data'!F59 -> 121.44 | K61: 0.01719240054 | L61: ='price data'!G59 -> 38.53 | M61: 0.02869750703 | N61: ='price data'!H59 -> 10.56 | O61: -0.05794724405 | P61: ='price data'!I59 -> 572.44 | Q61: 0.09356305204 | R61: ='price data'!J59 -> 53.87 | S61: 0.1285846198 | T61: ='price data'!K59 -> 117.22 | U61: -0.006123509524 | V61: ='price data'!L59 -> 57.62 | W61: 0.02709048693 | X61: ='price data'!M59 -> 121.1 | Y61: -0.0004953356 | Z61: ='price data'!N59 -> 391.12 | AA61: 0.09380282799 | AB61: ='price data'!O59 -> 885.94 | AC61: -0.08030488936 | AD61: ='price data'!P59 -> 233 | AE61: 0.01731645001 | AF61: ='price data'!Q59 -> 210.86 | AG61: -0.06401671187 | AH61: ='price data'!R59 -> 136.7 | AI61: 0.01481290212 | AJ61: ='price data'!S59 -> 493.8 | AK61: 0.02141023716 | AL61: ='price data'!T59 -> 165.85 | AM61: 0.01500498948 | AN61: ='price data'!U59 -> 28.94 | AO61: -0.00241587693 | AP61: ='price data'!V59 -> 139.71 | AQ61: 0.03488683547 | AR61: ='price data'!W59 -> 176.03 | AS61: -0.04041516293 | AT61: ='price data'!X59 -> 405.2 | AU61: 0.09494006075 | AV61: ='price data'!Y59 -> 221.08 | AW61: 0.08961357221 | AX61: ='price data'!Z59 -> 57.3 | AY61: 0.07405427511 | AZ61: ='price data'!AA59 -> 22 | BA61: 0.1003227216 | BB61: ='price data'!AB59 -> 430.3 | BC61: 0.03106074298 | BD61: ='price data'!AC59 -> 304.51 | BE61: 0.05345440239 | BF61: ='price data'!AD59 -> 80.75 | BG61: 0.04456997952 | BH61: ='price data'!AE59 -> 71.86 | BI61: -0.008452901436 | BK61: ='price data'!AF59 -> 576.82 | BL61: 0.01761197005
A62: 2024-10-01 | B62: ='price data'!B60 -> 206.35 | C62: 0.1513921909 | D62: ='price data'!C60 -> 249.85 | E62: -0.04607055412 | F62: ='price data'!D60 -> 78.26 | G62: 0.315933271 | H62: ='price data'!E60 -> 149.31 | I62: -0.01811896258 | J62: ='price data'!F60 -> 132.76 | K62: 0.0891226732 | L62: ='price data'!G60 -> 31.95 | M62: -0.1872649778 | N62: ='price data'!H60 -> 10.29 | O62: -0.02590072843 | P62: ='price data'!I60 -> 567.58 | Q62: -0.008526217859 | R62: ='price data'!J60 -> 52.39 | S62: -0.02785800327 | T62: ='price data'!K60 -> 116.78 | U62: -0.003760688193 | V62: ='price data'!L60 -> 55.77 | W62: -0.03263363925 | X62: ='price data'!M60 -> 122.48 | Y62: 0.01133110079 | Z62: ='price data'!N60 -> 376.2 | AA62: -0.0388935014 | AB62: ='price data'!O60 -> 829.74 | AC62: -0.06553682952 | AD62: ='price data'!P60 -> 225.91 | AE62: -0.0309017637 | AF62: ='price data'!Q60 -> 221.92 | AG62: 0.05112255042 | AH62: ='price data'!R60 -> 128.47 | AI62: -0.06209332969 | AJ62: ='price data'!S60 -> 499.59 | AK62: 0.01165718513 | AL62: ='price data'!T60 -> 171.11 | AM62: 0.03122285915 | AN62: ='price data'!U60 -> 28.3 | AO62: -0.02236291655 | AP62: ='price data'!V60 -> 131.16 | AQ62: -0.06315089369 | AR62: ='price data'!W60 -> 198.35 | AS62: 0.1193787119 | AT62: ='price data'!X60 -> 393.75 | AU62: -0.02866458223 | AV62: ='price data'!Y60 -> 206.72 | AW62: -0.06715940637 | AX62: ='price data'!Z60 -> 55.77 | AY62: -0.02706453332 | AZ62: ='price data'!AA60 -> 22.54 | BA62: 0.02424905525 | BB62: ='price data'!AB60 -> 406.35 | BC62: -0.05726778265 | BD62: ='price data'!AC60 -> 292.11 | BE62: -0.04157348367 | BF62: ='price data'!AD60 -> 81.95 | BG62: 0.01475134309 | BH62: ='price data'!AE60 -> 65.31 | BI62: -0.09557461777 | BK62: ='price data'!AF60 -> 571.24 | BL62: -0.009720822849
A63: 2024-11-01 | B63: ='price data'!B61 -> 244.06 | C63: 0.1678403405 | D63: ='price data'!C61 -> 345.16 | E63: 0.3231473398 | F63: ='price data'!D61 -> 96.83 | G63: 0.2129202468 | H63: ='price data'!E61 -> 155.44 | I63: 0.04023512353 | J63: ='price data'!F61 -> 138.25 | K63: 0.04052065355 | L63: ='price data'!G61 -> 33.63 | M63: 0.05124634493 | N63: ='price data'!H61 -> 11.13 | O63: 0.07847161544 | P63: ='price data'!I61 -> 574.32 | Q63: 0.01180502368 | R63: ='price data'!J61 -> 49.83 | S63: -0.05009852113 | T63: ='price data'!K61 -> 117.96 | U63: 0.01005376109 | V63: ='price data'!L61 -> 61.52 | W63: 0.0981262348 | X63: ='price data'!M61 -> 129.41 | Y63: 0.05503790748 | Z63: ='price data'!N61 -> 406.11 | AA63: 0.076503142 | AB63: ='price data'!O61 -> 795.35 | AC63: -0.04233012936 | AD63: ='price data'!P61 -> 237.33 | AE63: 0.04931488783 | AF63: ='price data'!Q61 -> 249.72 | AG63: 0.1180233336 | AH63: ='price data'!R61 -> 133.53 | AI63: 0.03863075765 | AJ63: ='price data'!S61 -> 532.94 | AK63: 0.06462108543 | AL63: ='price data'!T61 -> 168.95 | AM63: -0.01270381138 | AN63: ='price data'!U61 -> 26.21 | AO63: -0.07672078731 | AP63: ='price data'!V61 -> 138.94 | AQ63: 0.05762423329 | AR63: ='price data'!W61 -> 212.6 | AS63: 0.06937931895 | AT63: ='price data'!X61 -> 429.13 | AU63: 0.08604371319 | AV63: ='price data'!Y61 -> 227.41 | AW63: 0.09538933513 | AX63: ='price data'!Z61 -> 61.08 | AY63: 0.09094838995 | AZ63: ='price data'!AA61 -> 23.16 | BA63: 0.02713514409 | BB63: ='price data'!AB61 -> 423.46 | BC63: 0.04124420143 | BD63: ='price data'!AC61 -> 296.01 | BE63: 0.01326279388 | BF63: ='price data'!AD61 -> 92.5 | BG63: 0.1210993393 | BH63: ='price data'!AE61 -> 64.08 | BI63: -0.01901286115 | BK63: ='price data'!AF61 -> 605.07 | BL63: 0.05753471723
A64: 2024-12-01 | B64: ='price data'!B62 -> 230.69 | C64: =LN(B64/B63) -> -0.0563392788 | D64: ='price data'!C62 -> 403.84 | E64: =LN(D64/D63) -> 0.1570106823 | F64: ='price data'!D62 -> 97.1 | G64: =LN(F64/F63) -> 0.002784511674 | H64: ='price data'!E62 -> 177 | I64: =LN(H64/H63) -> 0.1298899275 | J64: ='price data'!F62 -> 134.29 | K64: =LN(J64/J63) -> -0.02906199981 | L64: ='price data'!G62 -> 30.13 | M64: =LN(L64/L63) -> -0.1098971726 | N64: ='price data'!H62 -> 9.9 | O64: =LN(N64/N63) -> -0.1171094081 | P64: ='price data'!I62 -> 585.51 | Q64: =LN(P64/P63) -> 0.01929653004 | R64: ='price data'!J62 -> 41.07 | S64: =LN(R64/R63) -> -0.1933392843 | T64: ='price data'!K62 -> 107.57 | U64: =LN(T64/T63) -> -0.0922037855 | V64: ='price data'!L62 -> 60.3 | W64: =LN(V64/V63) -> -0.02003022146 | X64: ='price data'!M62 -> 118.53 | Y64: =LN(X64/X63) -> -0.08781956574 | Z64: ='price data'!N62 -> 362.76 | AA64: =LN(Z64/Z63) -> -0.1128826003 | AB64: ='price data'!O62 -> 772 | AC64: =LN(AB64/AB63) -> -0.02979771932 | AD64: ='price data'!P62 -> 250.42 | AE64: =LN(AD64/AD63) -> 0.05368793054 | AF64: ='price data'!Q62 -> 239.71 | AG64: =LN(AF64/AF63) -> -0.04091043081 | AH64: ='price data'!R62 -> 129.09 | AI64: =LN(AH64/AH63) -> -0.03381633618 | AJ64: ='price data'!S62 -> 526.57 | AK64: =LN(AJ64/AJ63) -> -0.01202457127 | AL64: ='price data'!T62 -> 189.3 | AM64: =LN(AL64/AL63) -> 0.1137302451 | AN64: ='price data'!U62 -> 26.53 | AO64: =LN(AN64/AN63) -> 0.01213515081 | AP64: ='price data'!V62 -> 134.16 | AQ64: =LN(AP64/AP63) -> -0.03500906775 | AR64: ='price data'!W62 -> 206.26 | AS64: =LN(AR64/AR63) -> -0.03027495702 | AT64: ='price data'!X62 -> 388.99 | AU64: =LN(AT64/AT63) -> -0.09820626698 | AV64: ='price data'!Y62 -> 219.83 | AW64: =LN(AV64/AV63) -> -0.03390003535 | AX64: ='price data'!Z62 -> 61.15 | AY64: =LN(AX64/AX63) -> 0.001145381783 | AZ64: ='price data'!AA62 -> 22.77 | BA64: =LN(AZ64/AZ63) -> -0.01698277263 | BB64: ='price data'!AB62 -> 421.5 | BC64: =LN(BB64/BB63) -> -0.004639281186 | BD64: ='price data'!AC62 -> 289.89 | BE64: =LN(BD64/BD63) -> -0.02089169686 | BF64: ='price data'!AD62 -> 90.35 | BG64: =LN(BF64/BF63) -> -0.02351762748 | BH64: ='price data'!AE62 -> 62.26 | BI64: =LN(BH64/BH63) -> -0.02881313775 | BK64: ='price data'!AF62 -> 588.68 | BL64: =LN(BK64/BK63) -> -0.02746141152
A66: Stand Dev | C66: =STDEV(_1) -> 0.2090646117 | E66: =STDEV(_2) -> 0.2013596704 | G66: =STDEV(_3) -> 0.1583676151 | I66: =STDEV(_4) -> 0.1440637759 | K66: =STDEV(_5) -> 0.1399443734 | M66: =STDEV(_6) -> 0.1387695004 | O66: =STDEV(_7) -> 0.1337944252 | Q66: =STDEV(_8) -> 0.1221807211 | S66: =STDEV(_9) -> 0.1071651776 | U66: =STDEV(_10) -> 0.09740510199 | W66: =STDEV(_11) -> 0.09514188002 | Y66: =STDEV(_12) -> 0.09146510909 | AA66: =STDEV(_13) -> 0.09050963729 | AC66: =STDEV(_14) -> 0.08677015508 | AE66: =STDEV(_15) -> 0.08166660149 | AG66: =STDEV(_16) -> 0.07997568739 | AI66: =STDEV(_17) -> 0.07873708008 | AK66: =STDEV(_18) -> 0.07817400957 | AM66: =STDEV(_19) -> 0.0779325314 | AO66: =STDEV(_20) -> 0.07768658333 | AQ66: =STDEV(_21) -> 0.07555083398 | AS66: =STDEV(_22) -> 0.07489918687 | AU66: =STDEV(_23) -> 0.07433971652 | AW66: =STDEV(_24) -> 0.06898899802 | AY66: =STDEV(_25) -> 0.06704047589 | BA66: =STDEV(_26) -> 0.06681427962 | BC66: =STDEV(_27) -> 0.06332130984 | BE66: =STDEV(_28) -> 0.05586633512 | BG66: =STDEV(_29) -> 0.05584230872 | BI66: =STDEV(_30) -> 0.05573924909 | BL66: =STDEV(BL5:BL64) -> 0.05321783986

Sheet Corr. Matrix
A2: Correlation Matrix
C4: _1 | D4: _2 | E4: _3 | F4: _4 | G4: _5 | H4: _6 | I4: _7 | J4: _8 | K4: _9 | L4: _10 | M4: _11 | N4: _12 | O4: _13 | P4: _14 | Q4: _15 | R4: _16 | S4: _17 | T4: _18 | U4: _19 | V4: _20 | W4: _21 | X4: _22 | Y4: _23 | Z4: _24 | AA4: _25 | AB4: _26 | AC4: _27 | AD4: _28 | AE4: _29 | AF4: _30
C5: ='Returns & Stand Dev'!B2 -> rcl | D5: ='Returns & Stand Dev'!D2 -> tsla | E5: ='Returns & Stand Dev'!F2 -> ual | F5: ='Returns & Stand Dev'!H2 -> ba | G5: ='Returns & Stand Dev'!J2 -> nvda | H5: ='Returns & Stand Dev'!L2 -> hog | I5: ='Returns & Stand Dev'!N2 -> f | J5: ='Returns & Stand Dev'!P2 -> meta | K5: ='Returns & Stand Dev'!R2 -> pzza | L5: ='Returns & Stand Dev'!T2 -> xom | M5: ='Returns & Stand Dev'!V2 -> cmg | N5: ='Returns & Stand Dev'!X2 -> pru | O5: ='Returns & Stand Dev'!Z2 -> cat | P5: ='Returns & Stand Dev'!AB2 -> lly | Q5: ='Returns & Stand Dev'!AD2 -> aapl | R5: ='Returns & Stand Dev'!AF2 -> jpm | S5: ='Returns & Stand Dev'!AH2 -> mmm | T5: ='Returns & Stand Dev'!AJ2 -> ma | U5: ='Returns & Stand Dev'!AL2 -> googl | V5: ='Returns & Stand Dev'!AN2 -> pfe | W5: ='Returns & Stand Dev'!AP2 -> yum | X5: ='Returns & Stand Dev'!AR2 -> grmn | Y5: ='Returns & Stand Dev'!AT2 -> hd | Z5: ='Returns & Stand Dev'!AV2 -> ibm | AA5: ='Returns & Stand Dev'!AX2 -> kr | AB5: ='Returns & Stand Dev'!AZ2 -> t | AC5: ='Returns & Stand Dev'!BB2 -> msft | AD5: ='Returns & Stand Dev'!BD2 -> mcd | AE5: ='Returns & Stand Dev'!BF2 -> wmt | AF5: ='Returns & Stand Dev'!BH2 -> ko
A6: _1 | B6: =C5 -> rcl | C6: =CORREL(_1,_1) -> 1 | D6: =TRANSPOSE(C7:C35) -> 0.3945551523 | E6: 0.8144007674 | F6: 0.6088315178 | G6: 0.3438300877 | H6: 0.5264647914 | I6: 0.5820096328 | J6: 0.2999031731 | K6: 0.2758889436 | L6: 0.5654229864 | M6: 0.4670423789 | N6: 0.7789634875 | O6: 0.5140758414 | P6: -0.02569045046 | Q6: 0.4401898613 | R6: 0.7372045091 | S6: 0.4125491288 | T6: 0.6716357335 | U6: 0.4530074883 | V6: 0.04380370019 | W6: 0.6001453048 | X6: 0.5670819421 | Y6: 0.4254658272 | Z6: 0.4504293141 | AA6: 0.07588309304 | AB6: 0.4190640896 | AC6: 0.3048894164 | AD6: 0.5349633909 | AE6: 0.3250972933 | AF6: 0.4516547862
A7: _2 | B7: =D5 -> tsla | C7: =CORREL(_2,_1) -> 0.3945551523 | D7: =CORREL(_2,_2) -> 1 | E7: =TRANSPOSE(D8:D35) -> 0.2988188934 | F7: 0.2904291356 | G7: 0.4104211912 | H7: 0.3163819607 | I7: 0.3643332974 | J7: 0.3037221785 | K7: 0.3838409492 | L7: 0.06757763148 | M7: 0.4332867092 | N7: 0.312880933 | O7: 0.1681187357 | P7: -0.002144828615 | Q7: 0.6944268444 | R7: 0.2178602765 | S7: 0.2436742354 | T7: 0.3404182256 | U7: 0.46058322 | V7: 0.08917059778 | W7: 0.3225935679 | X7: 0.2847261659 | Y7: 0.3986665126 | Z7: 0.1265845415 | AA7: 0.1549816253 | AB7: 0.03430834459 | AC7: 0.4997903928 | AD7: 0.3450898739 | AE7: 0.2546424364 | AF7: 0.121692906
A8: _3 | B8: =E5 -> ual | C8: =CORREL(_3,_1) -> 0.8144007674 | D8: =CORREL(_3,_2) -> 0.2988188934 | E8: =CORREL(_3,_3) -> 1 | F8: =TRANSPOSE(E9:E35) -> 0.5799352083 | G8: 0.2469039199 | H8: 0.4944664912 | I8: 0.5231762919 | J8: 0.1470957581 | K8: 0.09815753104 | L8: 0.5164981184 | M8: 0.2602033699 | N8: 0.6703214859 | O8: 0.5499455637 | P8: -0.1141687251 | Q8: 0.257182075 | R8: 0.6594610152 | S8: 0.3365928283 | T8: 0.515144903 | U8: 0.2799199156 | V8: -0.07308394208 | W8: 0.4439613004 | X8: 0.5124659024 | Y8: 0.3272509555 | Z8: 0.3285069079 | AA8: 0.07562662742 | AB8: 0.4558792653 | AC8: 0.1171061897 | AD8: 0.3939820816 | AE8: 0.1976615876 | AF8: 0.3015276988
A9: _4 | B9: =F5 -> ba | C9: =CORREL(_4,_1) -> 0.6088315178 | D9: =CORREL(_4,_2) -> 0.2904291356 | E9: =CORREL(_4,_3) -> 0.5799352083 | F9: =CORREL(_4,_4) -> 1 | G9: =TRANSPOSE(F10:F35) -> 0.2683843063 | H9: 0.5088790013 | I9: 0.4983370782 | J9: 0.2229828059 | K9: 0.1821244587 | L9: 0.3818018719 | M9: 0.2724745384 | N9: 0.5786504198 | O9: 0.3767441 | P9: -0.05674897099 | Q9: 0.4184080633 | R9: 0.6000827384 | S9: 0.3976026516 | T9: 0.524226534 | U9: 0.3991123339 | V9: 0.08373890254 | W9: 0.4535009101 | X9: 0.5288122371 | Y9: 0.3821942399 | Z9: 0.4037577277 | AA9: 0.05331818639 | AB9: 0.3561996648 | AC9: 0.3404606215 | AD9: 0.4425883483 | AE9: 0.07227774892 | AF9: 0.4865866681
A10: _5 | B10: =G5 -> nvda | C10: =CORREL(_5,_1) -> 0.3438300877 | D10: =CORREL(_5,_2) -> 0.4104211912 | E10: =CORREL(_5,_3) -> 0.2469039199 | F10: =CORREL(_5,_4) -> 0.2683843063 | G10: =CORREL(_5,_5) -> 1 | H10: =TRANSPOSE(G11:G35) -> 0.2131642811 | I10: 0.4254989552 | J10: 0.4931507187 | K10: 0.2758526885 | L10: 0.01966762263 | M10: 0.397767316 | N10: 0.23313005 | O10: 0.3509386932 | P10: 0.1823197645 | Q10: 0.5323546492 | R10: 0.3544488755 | S10: 0.2033950699 | T10: 0.2888823634 | U10: 0.5722442927 | V10: 0.2124655779 | W10: 0.1935982266 | X10: 0.4401979714 | Y10: 0.3870306008 | Z10: 0.08902307982 | AA10: 0.2913154721 | AB10: 0.03937202901 | AC10: 0.658497821 | AD10: 0.1590502662 | AE10: 0.3004129712 | AF10: 0.04155593595
A11: _6 | B11: =H5 -> hog | C11: =CORREL(_6,_1) -> 0.5264647914 | D11: =CORREL(_6,_2) -> 0.3163819607 | E11: =CORREL(_6,_3) -> 0.4944664912 | F11: =CORREL(_6,_4) -> 0.5088790013 | G11: =CORREL(_6,_5) -> 0.2131642811 | H11: =CORREL(_6,_6) -> 1 | I11: =TRANSPOSE(H12:H35) -> 0.5771256744 | J11: 0.1557219382 | K11: 0.3723716991 | L11: 0.452645273 | M11: 0.2882533404 | N11: 0.7315450331 | O11: 0.5564761407 | P11: -0.1344625016 | Q11: 0.3371060195 | R11: 0.615005876 | S11: 0.5132838056 | T11: 0.3461230621 | U11: 0.29410287 | V11: 0.2003165292 | W11: 0.5586966 | X11: 0.4416476582 | Y11: 0.5443243523 | Z11: 0.3623067756 | AA11: 0.2608516502 | AB11: 0.3247563216 | AC11: 0.2019780775 | AD11: 0.4490947845 | AE11: 0.2601047684 | AF11: 0.378232919
A12: _7 | B12: =I5 -> f | C12: =CORREL(_7,_1) -> 0.5820096328 | D12: =CORREL(_7,_2) -> 0.3643332974 | E12: =CORREL(_7,_3) -> 0.5231762919 | F12: =CORREL(_7,_4) -> 0.4983370782 | G12: =CORREL(_7,_5) -> 0.4254989552 | H12: =CORREL(_7,_6) -> 0.5771256744 | I12: =CORREL(_7,_7) -> 1 | J12: =TRANSPOSE(I13:I35) -> 0.2727330189 | K12: 0.3853984467 | L12: 0.5259227537 | M12: 0.4146536681 | N12: 0.5950420074 | O12: 0.6001198656 | P12: 0.09832047703 | Q12: 0.464152022 | R12: 0.618868405 | S12: 0.373253172 | T12: 0.4368754853 | U12: 0.445519123 | V12: 0.1416744503 | W12: 0.4853672538 | X12: 0.4334995572 | Y12: 0.5360588973 | Z12: 0.2122307381 | AA12: 0.1431430814 | AB12: 0.2821973537 | AC12: 0.4041045892 | AD12: 0.4776887113 | AE12: 0.2675279331 | AF12: 0.2956971615
A13: _8 | B13: =J5 -> meta | C13: =CORREL(_8,_1) -> 0.2999031731 | D13: =CORREL(_8,_2) -> 0.3037221785 | E13: =CORREL(_8,_3) -> 0.1470957581 | F13: =CORREL(_8,_4) -> 0.2229828059 | G13: =CORREL(_8,_5) -> 0.4931507187 | H13: =CORREL(_8,_6) -> 0.1557219382 | I13: =CORREL(_8,_7) -> 0.2727330189 | J13: =CORREL(_8,_8) -> 1 | K13: =TRANSPOSE(J14:J35) -> 0.3767109619 | L13: -0.01709640542 | M13: 0.4397261872 | N13: 0.1858829305 | O13: 0.1659630306 | P13: -0.003804485991 | Q13: 0.3928556547 | R13: 0.2688630674 | S13: 0.1613771582 | T13: 0.3359667389 | U13: 0.433447916 | V13: 0.1881346763 | W13: 0.3520177661 | X13: 0.4784000329 | Y13: 0.4569402742 | Z13: 0.2700973179 | AA13: 0.1821595873 | AB13: 0.1481653028 | AC13: 0.5427242593 | AD13: 0.2405255806 | AE13: 0.279302874 | AF13: 0.2083064758
A14: _9 | B14: =K5 -> pzza | C14: =CORREL(_9,_1) -> 0.2758889436 | D14: =CORREL(_9,_2) -> 0.3838409492 | E14: =CORREL(_9,_3) -> 0.09815753104 | F14: =CORREL(_9,_4) -> 0.1821244587 | G14: =CORREL(_9,_5) -> 0.2758526885 | H14: =CORREL(_9,_6) -> 0.3723716991 | I14: =CORREL(_9,_7) -> 0.3853984467 | J14: =CORREL(_9,_8) -> 0.3767109619 | K14: =CORREL(_9,_9) -> 1 | L14: =TRANSPOSE(K15:K35) -> 0.2526142094 | M14: 0.5211040799 | N14: 0.4030298753 | O14: 0.3133279182 | P14: 0.1971790262 | Q14: 0.4775542028 | R14: 0.3173818556 | S14: 0.3660272371 | T14: 0.4033884772 | U14: 0.3718033756 | V14: 0.2971051094 | W14: 0.5356339805 | X14: 0.2974670457 | Y14: 0.5904532764 | Z14: 0.3327879012 | AA14: 0.2700001239 | AB14: 0.1934186197 | AC14: 0.4397920185 | AD14: 0.5122119685 | AE14: 0.2323524127 | AF14: 0.2410360668
A15: _10 | B15: =L5 -> xom | C15: =CORREL(_10,_1) -> 0.5654229864 | D15: =CORREL(_10,_2) -> 0.06757763148 | E15: =CORREL(_10,_3) -> 0.5164981184 | F15: =CORREL(_10,_4) -> 0.3818018719 | G15: =CORREL(_10,_5) -> 0.01966762263 | H15: =CORREL(_10,_6) -> 0.452645273 | I15: =CORREL(_10,_7) -> 0.5259227537 | J15: =CORREL(_10,_8) -> -0.01709640542 | K15: =CORREL(_10,_9) -> 0.2526142094 | L15: =CORREL(_10,_10) -> 1 | M15: =TRANSPOSE(L16:L35) -> 0.2653842969 | N15: 0.7205232737 | O15: 0.4702735244 | P15: 0.1522231814 | Q15: 0.1991302724 | R15: 0.5968486583 | S15: 0.3994970229 | T15: 0.5628621494 | U15: 0.2284446786 | V15: 0.1094156057 | W15: 0.4952997074 | X15: 0.2526447053 | Y15: 0.2800089769 | Z15: 0.3633102354 | AA15: 0.0856356722 | AB15: 0.4961549463 | AC15: 0.1360876481 | AD15: 0.3999104068 | AE15: 0.09621185826 | AF15: 0.4131842051
A16: _11 | B16: =M5 -> cmg | C16: =CORREL(_11,_1) -> 0.4670423789 | D16: =CORREL(_11,_2) -> 0.4332867092 | E16: =CORREL(_11,_3) -> 0.2602033699 | F16: =CORREL(_11,_4) -> 0.2724745384 | G16: =CORREL(_11,_5) -> 0.397767316 | H16: =CORREL(_11,_6) -> 0.2882533404 | I16: =CORREL(_11,_7) -> 0.4146536681 | J16: =CORREL(_11,_8) -> 0.4397261872 | K16: =CORREL(_11,_9) -> 0.5211040799 | L16: =CORREL(_11,_10) -> 0.2653842969 | M16: =CORREL(_11,_11) -> 1 | N16: =TRANSPOSE(M17:M35) -> 0.3825616702 | O16: 0.1630156057 | P16: 0.3500527668 | Q16: 0.6024060041 | R16: 0.3362321707 | S16: 0.271584512 | T16: 0.5084962412 | U16: 0.6117879535 | V16: 0.1246397674 | W16: 0.6514375781 | X16: 0.4492332063 | Y16: 0.4477281921 | Z16: 0.2291539609 | AA16: 0.294985116 | AB16: 0.2430796086 | AC16: 0.6552994942 | AD16: 0.5057476217 | AE16: 0.3568064418 | AF16: 0.344363152
A17: _12 | B17: =N5 -> pru | C17: =CORREL(_12,_1) -> 0.7789634875 | D17: =CORREL(_12,_2) -> 0.312880933 | E17: =CORREL(_12,_3) -> 0.6703214859 | F17: =CORREL(_12,_4) -> 0.5786504198 | G17: =CORREL(_12,_5) -> 0.23313005 | H17: =CORREL(_12,_6) -> 0.7315450331 | I17: =CORREL(_12,_7) -> 0.5950420074 | J17: =CORREL(_12,_8) -> 0.1858829305 | K17: =CORREL(_12,_9) -> 0.4030298753 | L17: =CORREL(_12,_10) -> 0.7205232737 | M17: =CORREL(_12,_11) -> 0.3825616702 | N17: =CORREL(_12,_12) -> 1 | O17: =TRANSPOSE(N18:N35) -> 0.6343333412 | P17: 0.04964748938 | Q17: 0.4158076829 | R17: 0.8329558355 | S17: 0.5715180741 | T17: 0.6398997259 | U17: 0.4228506058 | V17: 0.2817506966 | W17: 0.7038170419 | X17: 0.5829568375 | Y17: 0.5433420149 | Z17: 0.5707894782 | AA17: 0.1740406385 | AB17: 0.5150176258 | AC17: 0.2941825218 | AD17: 0.5856239297 | AE17: 0.3321244155 | AF17: 0.5682390386
A18: _13 | B18: =O5 -> cat | C18: =CORREL(_13,_1) -> 0.5140758414 | D18: =CORREL(_13,_2) -> 0.1681187357 | E18: =CORREL(_13,_3) -> 0.5499455637 | F18: =CORREL(_13,_4) -> 0.3767441 | G18: =CORREL(_13,_5) -> 0.3509386932 | H18: =CORREL(_13,_6) -> 0.5564761407 | I18: =CORREL(_13,_7) -> 0.6001198656 | J18: =CORREL(_13,_8) -> 0.1659630306 | K18: =CORREL(_13,_9) -> 0.3133279182 | L18: =CORREL(_13,_10) -> 0.4702735244 | M18: =CORREL(_13,_11) -> 0.1630156057 | N18: =CORREL(_13,_12) -> 0.6343333412 | O18: =CORREL(_13,_13) -> 1 | P18: =TRANSPOSE(O19:O35) -> 0.1287852005 | Q18: 0.2756355308 | R18: 0.6502379704 | S18: 0.6072940479 | T18: 0.5210555203 | U18: 0.2319252088 | V18: 0.2133490491 | W18: 0.4344972366 | X18: 0.5243582783 | Y18: 0.5208507235 | Z18: 0.4168452203 | AA18: 0.3787372811 | AB18: 0.3903727142 | AC18: 0.2222442368 | AD18: 0.435086643 | AE18: 0.3972891638 | AF18: 0.3611966352
A19: _14 | B19: =P5 -> lly | C19: =CORREL(_14,_1) -> -0.02569045046 | D19: =CORREL(_14,_2) -> -0.002144828615 | E19: =CORREL(_14,_3) -> -0.1141687251 | F19: =CORREL(_14,_4) -> -0.05674897099 | G19: =CORREL(_14,_5) -> 0.1823197645 | H19: =CORREL(_14,_6) -> -0.1344625016 | I19: =CORREL(_14,_7) -> 0.09832047703 | J19: =CORREL(_14,_8) -> -0.003804485991 | K19: =CORREL(_14,_9) -> 0.1971790262 | L19: =CORREL(_14,_10) -> 0.1522231814 | M19: =CORREL(_14,_11) -> 0.3500527668 | N19: =CORREL(_14,_12) -> 0.04964748938 | O19: =CORREL(_14,_13) -> 0.1287852005 | P19: =CORREL(_14,_14) -> 1 | Q19: =TRANSPOSE(P20:P35) -> 0.1798777485 | R19: 0.06137264528 | S19: 0.06880414239 | T19: 0.1113181725 | U19: 0.1426822823 | V19: 0.1525852837 | W19: 0.1627317644 | X19: 0.1414791077 | Y19: 0.05663823553 | Z19: 0.1533581559 | AA19: 0.1335448487 | AB19: 0.04241618976 | AC19: 0.4231024099 | AD19: 0.106473146 | AE19: 0.2033548748 | AF19: 0.114115738
A20: _15 | B20: =Q5 -> aapl | C20: =CORREL(_15,_1) -> 0.4401898613 | D20: =CORREL(_15,_2) -> 0.6944268444 | E20: =CORREL(_15,_3) -> 0.257182075 | F20: =CORREL(_15,_4) -> 0.4184080633 | G20: =CORREL(_15,_5) -> 0.5323546492 | H20: =CORREL(_15,_6) -> 0.3371060195 | I20: =CORREL(_15,_7) -> 0.464152022 | J20: =CORREL(_15,_8) -> 0.3928556547 | K20: =CORREL(_15,_9) -> 0.4775542028 | L20: =CORREL(_15,_10) -> 0.1991302724 | M20: =CORREL(_15,_11) -> 0.6024060041 | N20: =CORREL(_15,_12) -> 0.4158076829 | O20: =CORREL(_15,_13) -> 0.2756355308 | P20: =CORREL(_15,_14) -> 0.1798777485 | Q20: =CORREL(_15,_15) -> 1 | R20: =TRANSPOSE(Q21:Q35) -> 0.3242344443 | S20: 0.4505987463 | T20: 0.5453585898 | U20: 0.5461976069 | V20: 0.3297749805 | W20: 0.4986501173 | X20: 0.4664261756 | Y20: 0.4927543966 | Z20: 0.2975654649 | AA20: 0.3021955423 | AB20: 0.2354201795 | AC20: 0.699172558 | AD20: 0.5749915846 | AE20: 0.4221021207 | AF20: 0.3915684604
A21: _16 | B21: =R5 -> jpm | C21: =CORREL(_16,_1) -> 0.7372045091 | D21: =CORREL(_16,_2) -> 0.2178602765 | E21: =CORREL(_16,_3) -> 0.6594610152 | F21: =CORREL(_16,_4) -> 0.6000827384 | G21: =CORREL(_16,_5) -> 0.3544488755 | H21: =CORREL(_16,_6) -> 0.615005876 | I21: =CORREL(_16,_7) -> 0.618868405 | J21: =CORREL(_16,_8) -> 0.2688630674 | K21: =CORREL(_16,_9) -> 0.3173818556 | L21: =CORREL(_16,_10) -> 0.5968486583 | M21: =CORREL(_16,_11) -> 0.3362321707 | N21: =CORREL(_16,_12) -> 0.8329558355 | O21: =CORREL(_16,_13) -> 0.6502379704 | P21: =CORREL(_16,_14) -> 0.06137264528 | Q21: =CORREL(_16,_15) -> 0.3242344443 | R21: =CORREL(_16,_16) -> 1 | S21: =TRANSPOSE(R22:R35) -> 0.5623767696 | T21: 0.5722941591 | U21: 0.4030563327 | V21: 0.2164785859 | W21: 0.619663376 | X21: 0.6445768496 | Y21: 0.5064199186 | Z21: 0.4862763781 | AA21: 0.1070365973 | AB21: 0.4434479247 | AC21: 0.298095377 | AD21: 0.4806396823 | AE21: 0.2299124124 | AF21: 0.4574072537
A22: _17 | B22: =S5 -> mmm | C22: =CORREL(_17,_1) -> 0.4125491288 | D22: =CORREL(_17,_2) -> 0.2436742354 | E22: =CORREL(_17,_3) -> 0.3365928283 | F22: =CORREL(_17,_4) -> 0.3976026516 | G22: =CORREL(_17,_5) -> 0.2033950699 | H22: =CORREL(_17,_6) -> 0.5132838056 | I22: =CORREL(_17,_7) -> 0.373253172 | J22: =CORREL(_17,_8) -> 0.1613771582 | K22: =CORREL(_17,_9) -> 0.3660272371 | L22: =CORREL(_17,_10) -> 0.3994970229 | M22: =CORREL(_17,_11) -> 0.271584512 | N22: =CORREL(_17,_12) -> 0.5715180741 | O22: =CORREL(_17,_13) -> 0.6072940479 | P22: =CORREL(_17,_14) -> 0.06880414239 | Q22: =CORREL(_17,_15) -> 0.4505987463 | R22: =CORREL(_17,_16) -> 0.5623767696 | S22: =CORREL(_17,_17) -> 1 | T22: =TRANSPOSE(S23:S35) -> 0.4807577515 | U22: 0.3282849849 | V22: 0.3730215911 | W22: 0.5464445795 | X22: 0.5223677542 | Y22: 0.5703346573 | Z22: 0.4082994939 | AA22: 0.3957379973 | AB22: 0.3727651174 | AC22: 0.2589180759 | AD22: 0.5412373235 | AE22: 0.3596337758 | AF22: 0.5057902444
A23: _18 | B23: =T5 -> ma | C23: =CORREL(_18,_1) -> 0.6716357335 | D23: =CORREL(_18,_2) -> 0.3404182256 | E23: =CORREL(_18,_3) -> 0.515144903 | F23: =CORREL(_18,_4) -> 0.524226534 | G23: =CORREL(_18,_5) -> 0.2888823634 | H23: =CORREL(_18,_6) -> 0.3461230621 | I23: =CORREL(_18,_7) -> 0.4368754853 | J23: =CORREL(_18,_8) -> 0.3359667389 | K23: =CORREL(_18,_9) -> 0.4033884772 | L23: =CORREL(_18,_10) -> 0.5628621494 | M23: =CORREL(_18,_11) -> 0.5084962412 | N23: =CORREL(_18,_12) -> 0.6398997259 | O23: =CORREL(_18,_13) -> 0.5210555203 | P23: =CORREL(_18,_14) -> 0.1113181725 | Q23: =CORREL(_18,_15) -> 0.5453585898 | R23: =CORREL(_18,_16) -> 0.5722941591 | S23: =CORREL(_18,_17) -> 0.4807577515 | T23: =CORREL(_18,_18) -> 1 | U23: =TRANSPOSE(T24:T35) -> 0.3589742787 | V23: 0.2116166778 | W23: 0.6964767248 | X23: 0.4967867224 | Y23: 0.5657591203 | Z23: 0.6174250058 | AA23: 0.1147663055 | AB23: 0.5484474829 | AC23: 0.4016060916 | AD23: 0.7023054296 | AE23: 0.3412587147 | AF23: 0.6557103836
A24: _19 | B24: =U5 -> googl | C24: =CORREL(_19,_1) -> 0.4530074883 | D24: =CORREL(_19,_2) -> 0.46058322 | E24: =CORREL(_19,_3) -> 0.2799199156 | F24: =CORREL(_19,_4) -> 0.3991123339 | G24: =CORREL(_19,_5) -> 0.5722442927 | H24: =CORREL(_19,_6) -> 0.29410287 | I24: =CORREL(_19,_7) -> 0.445519123 | J24: =CORREL(_19,_8) -> 0.433447916 | K24: =CORREL(_19,_9) -> 0.3718033756 | L24: =CORREL(_19,_10) -> 0.2284446786 | M24: =CORREL(_19,_11) -> 0.6117879535 | N24: =CORREL(_19,_12) -> 0.4228506058 | O24: =CORREL(_19,_13) -> 0.2319252088 | P24: =CORREL(_19,_14) -> 0.1426822823 | Q24: =CORREL(_19,_15) -> 0.5461976069 | R24: =CORREL(_19,_16) -> 0.4030563327 | S24: =CORREL(_19,_17) -> 0.3282849849 | T24: =CORREL(_19,_18) -> 0.3589742787 | U24: =CORREL(_19,_19) -> 1 | V24: =TRANSPOSE(U25:U35) -> 0.2680729223 | W24: 0.4950149587 | X24: 0.5428408515 | Y24: 0.3379418283 | Z24: 0.1815260551 | AA24: 0.2300436323 | AB24: 0.1792169573 | AC24: 0.6465862202 | AD24: 0.3247994652 | AE24: 0.1834011448 | AF24: 0.3024285836
A25: _20 | B25: =V5 -> pfe | C25: =CORREL(_20,_1) -> 0.04380370019 | D25: =CORREL(_20,_2) -> 0.08917059778 | E25: =CORREL(_20,_3) -> -0.07308394208 | F25: =CORREL(_20,_4) -> 0.08373890254 | G25: =CORREL(_20,_5) -> 0.2124655779 | H25: =CORREL(_20,_6) -> 0.2003165292 | I25: =CORREL(_20,_7) -> 0.1416744503 | J25: =CORREL(_20,_8) -> 0.1881346763 | K25: =CORREL(_20,_9) -> 0.2971051094 | L25: =CORREL(_20,_10) -> 0.1094156057 | M25: =CORREL(_20,_11) -> 0.1246397674 | N25: =CORREL(_20,_12) -> 0.2817506966 | O25: =CORREL(_20,_13) -> 0.2133490491 | P25: =CORREL(_20,_14) -> 0.1525852837 | Q25: =CORREL(_20,_15) -> 0.3297749805 | R25: =CORREL(_20,_16) -> 0.2164785859 | S25: =CORREL(_20,_17) -> 0.3730215911 | T25: =CORREL(_20,_18) -> 0.2116166778 | U25: =CORREL(_20,_19) -> 0.2680729223 | V25: =CORREL(_20,_20) -> 1 | W25: =TRANSPOSE(V26:V35) -> 0.4390248649 | X25: 0.3081023855 | Y25: 0.4272426987 | Z25: 0.3726652802 | AA25: 0.3259185177 | AB25: 0.2084778366 | AC25: 0.2257534576 | AD25: 0.3360217524 | AE25: 0.2459647651 | AF25: 0.3021598235
A26: _21 | B26: =W5 -> yum | C26: =CORREL(_21,_1) -> 0.6001453048 | D26: =CORREL(_21,_2) -> 0.3225935679 | E26: =CORREL(_21,_3) -> 0.4439613004 | F26: =CORREL(_21,_4) -> 0.4535009101 | G26: =CORREL(_21,_5) -> 0.1935982266 | H26: =CORREL(_21,_6) -> 0.5586966 | I26: =CORREL(_21,_7) -> 0.4853672538 | J26: =CORREL(_21,_8) -> 0.3520177661 | K26: =CORREL(_21,_9) -> 0.5356339805 | L26: =CORREL(_21,_10) -> 0.4952997074 | M26: =CORREL(_21,_11) -> 0.6514375781 | N26: =CORREL(_21,_12) -> 0.7038170419 | O26: =CORREL(_21,_13) -> 0.4344972366 | P26: =CORREL(_21,_14) -> 0.1627317644 | Q26: =CORREL(_21,_15) -> 0.4986501173 | R26: =CORREL(_21,_16) -> 0.619663376 | S26: =CORREL(_21,_17) -> 0.5464445795 | T26: =CORREL(_21,_18) -> 0.6964767248 | U26: =CORREL(_21,_19) -> 0.4950149587 | V26: =CORREL(_21,_20) -> 0.4390248649 | W26: =CORREL(_21,_21) -> 1 | X26: =TRANSPOSE(W27:W35) -> 0.5482240592 | Y26: 0.6559136058 | Z26: 0.5333218888 | AA26: 0.1945514255 | AB26: 0.4494476526 | AC26: 0.4579119497 | AD26: 0.7838255068 | AE26: 0.3265525313 | AF26: 0.7197194881
A27: _22 | B27: =X5 -> grmn | C27: =CORREL(_22,_1) -> 0.5670819421 | D27: =CORREL(_22,_2) -> 0.2847261659 | E27: =CORREL(_22,_3) -> 0.5124659024 | F27: =CORREL(_22,_4) -> 0.5288122371 | G27: =CORREL(_22,_5) -> 0.4401979714 | H27: =CORREL(_22,_6) -> 0.4416476582 | I27: =CORREL(_22,_7) -> 0.4334995572 | J27: =CORREL(_22,_8) -> 0.4784000329 | K27: =CORREL(_22,_9) -> 0.2974670457 | L27: =CORREL(_22,_10) -> 0.2526447053 | M27: =CORREL(_22,_11) -> 0.4492332063 | N27: =CORREL(_22,_12) -> 0.5829568375 | O27: =CORREL(_22,_13) -> 0.5243582783 | P27: =CORREL(_22,_14) -> 0.1414791077 | Q27: =CORREL(_22,_15) -> 0.4664261756 | R27: =CORREL(_22,_16) -> 0.6445768496 | S27: =CORREL(_22,_17) -> 0.5223677542 | T27: =CORREL(_22,_18) -> 0.4967867224 | U27: =CORREL(_22,_19) -> 0.5428408515 | V27: =CORREL(_22,_20) -> 0.3081023855 | W27: =CORREL(_22,_21) -> 0.5482240592 | X27: =CORREL(_22,_22) -> 1 | Y27: =TRANSPOSE(X28:X35) -> 0.4398556832 | Z27: 0.4196489964 | AA27: 0.2600709356 | AB27: 0.4216948959 | AC27: 0.432641185 | AD27: 0.3964804283 | AE27: 0.3348032113 | AF27: 0.37445989
A28: _23 | B28: =Y5 -> hd | C28: =CORREL(_23,_1) -> 0.4254658272 | D28: =CORREL(_23,_2) -> 0.3986665126 | E28: =CORREL(_23,_3) -> 0.3272509555 | F28: =CORREL(_23,_4) -> 0.3821942399 | G28: =CORREL(_23,_5) -> 0.3870306008 | H28: =CORREL(_23,_6) -> 0.5443243523 | I28: =CORREL(_23,_7) -> 0.5360588973 | J28: =CORREL(_23,_8) -> 0.4569402742 | K28: =CORREL(_23,_9) -> 0.5904532764 | L28: =CORREL(_23,_10) -> 0.2800089769 | M28: =CORREL(_23,_11) -> 0.4477281921 | N28: =CORREL(_23,_12) -> 0.5433420149 | O28: =CORREL(_23,_13) -> 0.5208507235 | P28: =CORREL(_23,_14) -> 0.05663823553 | Q28: =CORREL(_23,_15) -> 0.4927543966 | R28: =CORREL(_23,_16) -> 0.5064199186 | S28: =CORREL(_23,_17) -> 0.5703346573 | T28: =CORREL(_23,_18) -> 0.5657591203 | U28: =CORREL(_23,_19) -> 0.3379418283 | V28: =CORREL(_23,_20) -> 0.4272426987 | W28: =CORREL(_23,_21) -> 0.6559136058 | X28: =CORREL(_23,_22) -> 0.4398556832 | Y28: =CORREL(_23,_23) -> 1 | Z28: =TRANSPOSE(Y29:Y35) -> 0.5369900887 | AA28: 0.2722560308 | AB28: 0.3747501598 | AC28: 0.5027709978 | AD28: 0.6712616972 | AE28: 0.3924380377 | AF28: 0.4362786268
A29: _24 | B29: =Z5 -> ibm | C29: =CORREL(_24,_1) -> 0.4504293141 | D29: =CORREL(_24,_2) -> 0.1265845415 | E29: =CORREL(_24,_3) -> 0.3285069079 | F29: =CORREL(_24,_4) -> 0.4037577277 | G29: =CORREL(_24,_5) -> 0.08902307982 | H29: =CORREL(_24,_6) -> 0.3623067756 | I29: =CORREL(_24,_7) -> 0.2122307381 | J29: =CORREL(_24,_8) -> 0.2700973179 | K29: =CORREL(_24,_9) -> 0.3327879012 | L29: =CORREL(_24,_10) -> 0.3633102354 | M29: =CORREL(_24,_11) -> 0.2291539609 | N29: =CORREL(_24,_12) -> 0.5707894782 | O29: =CORREL(_24,_13) -> 0.4168452203 | P29: =CORREL(_24,_14) -> 0.1533581559 | Q29: =CORREL(_24,_15) -> 0.2975654649 | R29: =CORREL(_24,_16) -> 0.4862763781 | S29: =CORREL(_24,_17) -> 0.4082994939 | T29: =CORREL(_24,_18) -> 0.6174250058 | U29: =CORREL(_24,_19) -> 0.1815260551 | V29: =CORREL(_24,_20) -> 0.3726652802 | W29: =CORREL(_24,_21) -> 0.5333218888 | X29: =CORREL(_24,_22) -> 0.4196489964 | Y29: =CORREL(_24,_23) -> 0.5369900887 | Z29: =CORREL(_24,_24) -> 1 | AA29: =TRANSPOSE(Z30:Z35) -> 0.2701237772 | AB29: 0.6744185113 | AC29: 0.2764068418 | AD29: 0.6403504267 | AE29: 0.3040304997 | AF29: 0.5804172206
A30: _25 | B30: =AA5 -> kr | C30: =CORREL(_25,_1) -> 0.07588309304 | D30: =CORREL(_25,_2) -> 0.1549816253 | E30: =CORREL(_25,_3) -> 0.07562662742 | F30: =CORREL(_25,_4) -> 0.05331818639 | G30: =CORREL(_25,_5) -> 0.2913154721 | H30: =CORREL(_25,_6) -> 0.2608516502 | I30: =CORREL(_25,_7) -> 0.1431430814 | J30: =CORREL(_25,_8) -> 0.1821595873 | K30: =CORREL(_25,_9) -> 0.2700001239 | L30: =CORREL(_25,_10) -> 0.0856356722 | M30: =CORREL(_25,_11) -> 0.294985116 | N30: =CORREL(_25,_12) -> 0.1740406385 | O30: =CORREL(_25,_13) -> 0.3787372811 | P30: =CORREL(_25,_14) -> 0.1335448487 | Q30: =CORREL(_25,_15) -> 0.3021955423 | R30: =CORREL(_25,_16) -> 0.1070365973 | S30: =CORREL(_25,_17) -> 0.3957379973 | T30: =CORREL(_25,_18) -> 0.1147663055 | U30: =CORREL(_25,_19) -> 0.2300436323 | V30: =CORREL(_25,_20) -> 0.3259185177 | W30: =CORREL(_25,_21) -> 0.1945514255 | X30: =CORREL(_25,_22) -> 0.2600709356 | Y30: =CORREL(_25,_23) -> 0.2722560308 | Z30: =CORREL(_25,_24) -> 0.2701237772 | AA30: =CORREL(_25,_25) -> 1 | AB30: =TRANSPOSE(AA31:AA35) -> 0.1734007986 | AC30: 0.3111209797 | AD30: 0.1932478818 | AE30: 0.4337427006 | AF30: 0.1294472979
A31: _26 | B31: =AB5 -> t | C31: =CORREL(_26,_1) -> 0.4190640896 | D31: =CORREL(_26,_2) -> 0.03430834459 | E31: =CORREL(_26,_3) -> 0.4558792653 | F31: =CORREL(_26,_4) -> 0.3561996648 | G31: =CORREL(_26,_5) -> 0.03937202901 | H31: =CORREL(_26,_6) -> 0.3247563216 | I31: =CORREL(_26,_7) -> 0.2821973537 | J31: =CORREL(_26,_8) -> 0.1481653028 | K31: =CORREL(_26,_9) -> 0.1934186197 | L31: =CORREL(_26,_10) -> 0.4961549463 | M31: =CORREL(_26,_11) -> 0.2430796086 | N31: =CORREL(_26,_12) -> 0.5150176258 | O31: =CORREL(_26,_13) -> 0.3903727142 | P31: =CORREL(_26,_14) -> 0.04241618976 | Q31: =CORREL(_26,_15) -> 0.2354201795 | R31: =CORREL(_26,_16) -> 0.4434479247 | S31: =CORREL(_26,_17) -> 0.3727651174 | T31: =CORREL(_26,_18) -> 0.5484474829 | U31: =CORREL(_26,_19) -> 0.1792169573 | V31: =CORREL(_26,_20) -> 0.2084778366 | W31: =CORREL(_26,_21) -> 0.4494476526 | X31: =CORREL(_26,_22) -> 0.4216948959 | Y31: =CORREL(_26,_23) -> 0.3747501598 | Z31: =CORREL(_26,_24) -> 0.6744185113 | AA31: =CORREL(_26,_25) -> 0.1734007986 | AB31: =CORREL(_26,_26) -> 1 | AC31: =TRANSPOSE(AB32:AB35) -> 0.1746787782 | AD31: 0.5126823842 | AE31: 0.1826526666 | AF31: 0.4516900709
A32: _27 | B32: =AC5 -> msft | C32: =CORREL(_27,_1) -> 0.3048894164 | D32: =CORREL(_27,_2) -> 0.4997903928 | E32: =CORREL(_27,_3) -> 0.1171061897 | F32: =CORREL(_27,_4) -> 0.3404606215 | G32: =CORREL(_27,_5) -> 0.658497821 | H32: =CORREL(_27,_6) -> 0.2019780775 | I32: =CORREL(_27,_7) -> 0.4041045892 | J32: =CORREL(_27,_8) -> 0.5427242593 | K32: =CORREL(_27,_9) -> 0.4397920185 | L32: =CORREL(_27,_10) -> 0.1360876481 | M32: =CORREL(_27,_11) -> 0.6552994942 | N32: =CORREL(_27,_12) -> 0.2941825218 | O32: =CORREL(_27,_13) -> 0.2222442368 | P32: =CORREL(_27,_14) -> 0.4231024099 | Q32: =CORREL(_27,_15) -> 0.699172558 | R32: =CORREL(_27,_16) -> 0.298095377 | S32: =CORREL(_27,_17) -> 0.2589180759 | T32: =CORREL(_27,_18) -> 0.4016060916 | U32: =CORREL(_27,_19) -> 0.6465862202 | V32: =CORREL(_27,_20) -> 0.2257534576 | W32: =CORREL(_27,_21) -> 0.4579119497 | X32: =CORREL(_27,_22) -> 0.432641185 | Y32: =CORREL(_27,_23) -> 0.5027709978 | Z32: =CORREL(_27,_24) -> 0.2764068418 | AA32: =CORREL(_27,_25) -> 0.3111209797 | AB32: =CORREL(_27,_26) -> 0.1746787782 | AC32: =CORREL(_27,_27) -> 1 | AD32: =TRANSPOSE(AC33:AC35) -> 0.4190923449 | AE32: 0.3599130602 | AF32: 0.3278085953
A33: _28 | B33: =AD5 -> mcd | C33: =CORREL(_28,_1) -> 0.5349633909 | D33: =CORREL(_28,_2) -> 0.3450898739 | E33: =CORREL(_28,_3) -> 0.3939820816 | F33: =CORREL(_28,_4) -> 0.4425883483 | G33: =CORREL(_28,_5) -> 0.1590502662 | H33: =CORREL(_28,_6) -> 0.4490947845 | I33: =CORREL(_28,_7) -> 0.4776887113 | J33: =CORREL(_28,_8) -> 0.2405255806 | K33: =CORREL(_28,_9) -> 0.5122119685 | L33: =CORREL(_28,_10) -> 0.3999104068 | M33: =CORREL(_28,_11) -> 0.5057476217 | N33: =CORREL(_28,_12) -> 0.5856239297 | O33: =CORREL(_28,_13) -> 0.435086643 | P33: =CORREL(_28,_14) -> 0.106473146 | Q33: =CORREL(_28,_15) -> 0.5749915846 | R33: =CORREL(_28,_16) -> 0.4806396823 | S33: =CORREL(_28,_17) -> 0.5412373235 | T33: =CORREL(_28,_18) -> 0.7023054296 | U33: =CORREL(_28,_19) -> 0.3247994652 | V33: =CORREL(_28,_20) -> 0.3360217524 | W33: =CORREL(_28,_21) -> 0.7838255068 | X33: =CORREL(_28,_22) -> 0.3964804283 | Y33: =CORREL(_28,_23) -> 0.6712616972 | Z33: =CORREL(_28,_24) -> 0.6403504267 | AA33: =CORREL(_28,_25) -> 0.1932478818 | AB33: =CORREL(_28,_26) -> 0.5126823842 | AC33: =CORREL(_28,_27) -> 0.4190923449 | AD33: =CORREL(_28,_28) -> 1 | AE33: =TRANSPOSE(AD34:AD35) -> 0.3368950707 | AF33: 0.6997128596
A34: _29 | B34: =AE5 -> wmt | C34: =CORREL(_29,_1) -> 0.3250972933 | D34: =CORREL(_29,_2) -> 0.2546424364 | E34: =CORREL(_29,_3) -> 0.1976615876 | F34: =CORREL(_29,_4) -> 0.07227774892 | G34: =CORREL(_29,_5) -> 0.3004129712 | H34: =CORREL(_29,_6) -> 0.2601047684 | I34: =CORREL(_29,_7) -> 0.2675279331 | J34: =CORREL(_29,_8) -> 0.279302874 | K34: =CORREL(_29,_9) -> 0.2323524127 | L34: =CORREL(_29,_10) -> 0.09621185826 | M34: =CORREL(_29,_11) -> 0.3568064418 | N34: =CORREL(_29,_12) -> 0.3321244155 | O34: =CORREL(_29,_13) -> 0.3972891638 | P34: =CORREL(_29,_14) -> 0.2033548748 | Q34: =CORREL(_29,_15) -> 0.4221021207 | R34: =CORREL(_29,_16) -> 0.2299124124 | S34: =CORREL(_29,_17) -> 0.3596337758 | T34: =CORREL(_29,_18) -> 0.3412587147 | U34: =CORREL(_29,_19) -> 0.1834011448 | V34: =CORREL(_29,_20) -> 0.2459647651 | W34: =CORREL(_29,_21) -> 0.3265525313 | X34: =CORREL(_29,_22) -> 0.3348032113 | Y34: =CORREL(_29,_23) -> 0.3924380377 | Z34: =CORREL(_29,_24) -> 0.3040304997 | AA34: =CORREL(_29,_25) -> 0.4337427006 | AB34: =CORREL(_29,_26) -> 0.1826526666 | AC34: =CORREL(_29,_27) -> 0.3599130602 | AD34: =CORREL(_29,_28) -> 0.3368950707 | AE34: =CORREL(_29,_29) -> 1 | AF34: =AE35 -> 0.3397759134
A35: _30 | B35: =AF5 -> ko | C35: =CORREL(_30,_1) -> 0.4516547862 | D35: =CORREL(_30,_2) -> 0.121692906 | E35: =CORREL(_30,_3) -> 0.3015276988 | F35: =CORREL(_30,_4) -> 0.4865866681 | G35: =CORREL(_30,_5) -> 0.04155593595 | H35: =CORREL(_30,_6) -> 0.378232919 | I35: =CORREL(_30,_7) -> 0.2956971615 | J35: =CORREL(_30,_8) -> 0.2083064758 | K35: =CORREL(_30,_9) -> 0.2410360668 | L35: =CORREL(_30,_10) -> 0.4131842051 | M35: =CORREL(_30,_11) -> 0.344363152 | N35: =CORREL(_30,_12) -> 0.5682390386 | O35: =CORREL(_30,_13) -> 0.3611966352 | P35: =CORREL(_30,_14) -> 0.114115738 | Q35: =CORREL(_30,_15) -> 0.3915684604 | R35: =CORREL(_30,_16) -> 0.4574072537 | S35: =CORREL(_30,_17) -> 0.5057902444 | T35: =CORREL(_30,_18) -> 0.6557103836 | U35: =CORREL(_30,_19) -> 0.3024285836 | V35: =CORREL(_30,_20) -> 0.3021598235 | W35: =CORREL(_30,_21) -> 0.7197194881 | X35: =CORREL(_30,_22) -> 0.37445989 | Y35: =CORREL(_30,_23) -> 0.4362786268 | Z35: =CORREL(_30,_24) -> 0.5804172206 | AA35: =CORREL(_30,_25) -> 0.1294472979 | AB35: =CORREL(_30,_26) -> 0.4516900709 | AC35: =CORREL(_30,_27) -> 0.3278085953 | AD35: =CORREL(_30,_28) -> 0.6997128596 | AE35: =CORREL(_30,_29) -> 0.3397759134 | AF35: =CORREL(_30,_30) -> 1
B39: Standard Deviations
B40: ='Returns & Stand Dev'!C66 -> 0.2090646117 | C40: ='Returns & Stand Dev'!BL$66 -> 0.05321783986
B41: ='Returns & Stand Dev'!E66 -> 0.2013596704 | C41: ='Returns & Stand Dev'!BL$66 -> 0.05321783986
B42: ='Returns & Stand Dev'!G66 -> 0.1583676151 | C42: ='Returns & Stand Dev'!BL$66 -> 0.05321783986
B43: ='Returns & Stand Dev'!I66 -> 0.1440637759 | C43: ='Returns & Stand Dev'!BL$66 -> 0.05321783986
B44: ='Returns & Stand Dev'!K66 -> 0.1399443734 | C44: ='Returns & Stand Dev'!BL$66 -> 0.05321783986
B45: ='Returns & Stand Dev'!M66 -> 0.1387695004 | C45: ='Returns & Stand Dev'!BL$66 -> 0.05321783986
B46: ='Returns & Stand Dev'!O66 -> 0.1337944252 | C46: ='Returns & Stand Dev'!BL$66 -> 0.05321783986
B47: ='Returns & Stand Dev'!Q66 -> 0.1221807211 | C47: ='Returns & Stand Dev'!BL$66 -> 0.05321783986
B48: ='Returns & Stand Dev'!S66 -> 0.1071651776 | C48: ='Returns & Stand Dev'!BL$66 -> 0.05321783986
B49: ='Returns & Stand Dev'!U66 -> 0.09740510199 | C49: ='Returns & Stand Dev'!BL$66 -> 0.05321783986
B50: ='Returns & Stand Dev'!W66 -> 0.09514188002 | C50: ='Returns & Stand Dev'!BL$66 -> 0.05321783986
B51: ='Returns & Stand Dev'!Y66 -> 0.09146510909 | C51: ='Returns & Stand Dev'!BL$66 -> 0.05321783986
B52: ='Returns & Stand Dev'!AA66 -> 0.09050963729 | C52: ='Returns & Stand Dev'!BL$66 -> 0.05321783986
B53: ='Returns & Stand Dev'!AC66 -> 0.08677015508 | C53: ='Returns & Stand Dev'!BL$66 -> 0.05321783986
B54: ='Returns & Stand Dev'!AE66 -> 0.08166660149 | C54: ='Returns & Stand Dev'!BL$66 -> 0.05321783986
B55: ='Returns & Stand Dev'!AG66 -> 0.07997568739 | C55: ='Returns & Stand Dev'!BL$66 -> 0.05321783986
B56: ='Returns & Stand Dev'!AI66 -> 0.07873708008 | C56: ='Returns & Stand Dev'!BL$66 -> 0.05321783986
B57: ='Returns & Stand Dev'!AK66 -> 0.07817400957 | C57: ='Returns & Stand Dev'!BL$66 -> 0.05321783986
B58: ='Returns & Stand Dev'!AM66 -> 0.0779325314 | C58: ='Returns & Stand Dev'!BL$66 -> 0.05321783986
B59: ='Returns & Stand Dev'!AO66 -> 0.07768658333 | C59: ='Returns & Stand Dev'!BL$66 -> 0.05321783986
B60: ='Returns & Stand Dev'!AQ66 -> 0.07555083398 | C60: ='Returns & Stand Dev'!BL$66 -> 0.05321783986
B61: ='Returns & Stand Dev'!AS66 -> 0.07489918687 | C61: ='Returns & Stand Dev'!BL$66 -> 0.05321783986
B62: ='Returns & Stand Dev'!AU66 -> 0.07433971652 | C62: ='Returns & Stand Dev'!BL$66 -> 0.05321783986
B63: ='Returns & Stand Dev'!AW66 -> 0.06898899802 | C63: ='Returns & Stand Dev'!BL$66 -> 0.05321783986
B64: ='Returns & Stand Dev'!AY66 -> 0.06704047589 | C64: ='Returns & Stand Dev'!BL$66 -> 0.05321783986
B65: ='Returns & Stand Dev'!BA66 -> 0.06681427962 | C65: ='Returns & Stand Dev'!BL$66 -> 0.05321783986
B66: ='Returns & Stand Dev'!BC66 -> 0.06332130984 | C66: ='Returns & Stand Dev'!BL$66 -> 0.05321783986
B67: ='Returns & Stand Dev'!BE66 -> 0.05586633512 | C67: ='Returns & Stand Dev'!BL$66 -> 0.05321783986
B68: ='Returns & Stand Dev'!BG66 -> 0.05584230872 | C68: ='Returns & Stand Dev'!BL$66 -> 0.05321783986
B69: ='Returns & Stand Dev'!BI66 -> 0.05573924909 | C69: ='Returns & Stand Dev'!BL$66 -> 0.05321783986

Sheet Var-Cov Matrix
A2: Variance/Covariance Matrix
B4: ='Corr. Matrix'!C5 -> rcl | C4: ='Corr. Matrix'!D5 -> tsla | D4: ='Corr. Matrix'!E5 -> ual | E4: ='Corr. Matrix'!F5 -> ba | F4: ='Corr. Matrix'!G5 -> nvda | G4: ='Corr. Matrix'!H5 -> hog | H4: ='Corr. Matrix'!I5 -> f | I4: ='Corr. Matrix'!J5 -> meta | J4: ='Corr. Matrix'!K5 -> pzza | K4: ='Corr. Matrix'!L5 -> xom | L4: ='Corr. Matrix'!M5 -> cmg | M4: ='Corr. Matrix'!N5 -> pru | N4: ='Corr. Matrix'!O5 -> cat | O4: ='Corr. Matrix'!P5 -> lly | P4: ='Corr. Matrix'!Q5 -> aapl | Q4: ='Corr. Matrix'!R5 -> jpm | R4: ='Corr. Matrix'!S5 -> mmm | S4: ='Corr. Matrix'!T5 -> ma | T4: ='Corr. Matrix'!U5 -> googl | U4: ='Corr. Matrix'!V5 -> pfe | V4: ='Corr. Matrix'!W5 -> yum | W4: ='Corr. Matrix'!X5 -> grmn | X4: ='Corr. Matrix'!Y5 -> hd | Y4: ='Corr. Matrix'!Z5 -> ibm | Z4: ='Corr. Matrix'!AA5 -> kr | AA4: ='Corr. Matrix'!AB5 -> t | AB4: ='Corr. Matrix'!AC5 -> msft | AC4: ='Corr. Matrix'!AD5 -> mcd | AD4: ='Corr. Matrix'!AE5 -> wmt | AE4: ='Corr. Matrix'!AF5 -> ko
A5: ='Corr. Matrix'!B6 -> rcl | B5: ='Corr. Matrix'!B40*'Corr. Matrix'!B$40*'Corr. Matrix'!C6 -> 0.04370801187 | C5: =TRANSPOSE(B6:B34) -> 0.01660965978 | D5: 0.0269640471 | E5: 0.0183371757 | F5: 0.01005957994 | G5: 0.01527368687 | H5: 0.01627978695 | I5: 0.007660626191 | J5: 0.006181139008 | K5: 0.01151425098 | L5: 0.009289846646 | M5: 0.01489543135 | N5: 0.009727529257 | O5: -0.0004660393835 | P5: 0.007515624 | Q5: 0.01232612281 | R5: 0.006791027759 | S5: 0.01097682418 | T5: 0.007380821297 | U5: 0.0007114384701 | V5: 0.009479298551 | W5: 0.008879805374 | X5: 0.006612506482 | Y5: 0.006496613203 | Z5: 0.001063561577 | AA5: 0.005853697333 | AB5: 0.004036200809 | AC5: 0.006248197825 | AD5: 0.003795397307 | AE5: 0.005263180406
A6: ='Corr. Matrix'!B7 -> tsla | B6: ='Corr. Matrix'!B41*'Corr. Matrix'!B$40*'Corr. Matrix'!C7 -> 0.01660965978 | C6: ='Corr. Matrix'!B$41*'Corr. Matrix'!B41*'Corr. Matrix'!D7 -> 0.04054571686 | D6: =TRANSPOSE(C7:C34) -> 0.009528991102 | E6: 0.008424952621 | F6: 0.0115653215 | G6: 0.008840528517 | H6: 0.009815430995 | I6: 0.00747225496 | J6: 0.008282805904 | K6: 0.00132543112 | L6: 0.00830079308 | M6: 0.005762448357 | N6: 0.003063962399 | O6: -3.747446664e-05 | P6: 0.01141940499 | Q6: 0.003508395325 | R6: 0.003863326462 | S6: 0.00535855488 | T6: 0.007227687826 | U6: 0.00139489074 | V6: 0.004907580795 | W6: 0.004294147663 | X6: 0.005967647325 | Y6: 0.001758462058 | Z6: 0.002092135416 | AA6: 0.0004615742209 | AB6: 0.006372506472 | AC6: 0.003881994266 | AD6: 0.00286329858 | AE6: 0.001365836981
A7: ='Corr. Matrix'!B8 -> ual | B7: ='Corr. Matrix'!B42*'Corr. Matrix'!B$40*'Corr. Matrix'!C8 -> 0.0269640471 | C7: ='Corr. Matrix'!B$41*'Corr. Matrix'!B42*'Corr. Matrix'!D8 -> 0.009528991102 | D7: ='Corr. Matrix'!B$42*'Corr. Matrix'!B42*'Corr. Matrix'!E8 -> 0.02508030152 | E7: =TRANSPOSE(D8:D34) -> 0.01323124301 | F7: 0.005472046806 | G7: 0.01086668973 | H7: 0.01108542761 | I7: 0.002846224874 | J7: 0.001665879911 | K7: 0.007967403753 | L7: 0.003920586339 | M7: 0.009709681258 | N7: 0.007882807193 | O7: -0.001568858958 | P7: 0.003326224482 | Q7: 0.008352442318 | R7: 0.004197111823 | S7: 0.006377613135 | T7: 0.003454768557 | U7: -0.0008991545845 | V7: 0.005311910564 | W7: 0.006078668417 | X7: 0.003852726681 | Y7: 0.003589142657 | Z7: 0.0008029309499 | AA7: 0.004823757942 | AB7: 0.001174346119 | AC7: 0.003485724262 | AD7: 0.001748042636 | AE7: 0.002661673028
A8: ='Corr. Matrix'!B9 -> ba | B8: ='Corr. Matrix'!B43*'Corr. Matrix'!B$40*'Corr. Matrix'!C9 -> 0.0183371757 | C8: ='Corr. Matrix'!B$41*'Corr. Matrix'!B43*'Corr. Matrix'!D9 -> 0.008424952621 | D8: ='Corr. Matrix'!B$42*'Corr. Matrix'!B43*'Corr. Matrix'!E9 -> 0.01323124301 | E8: ='Corr. Matrix'!B$43*'Corr. Matrix'!B43*'Corr. Matrix'!F9 -> 0.02075437152 | F8: =TRANSPOSE(E9:E34) -> 0.005410873144 | G8: 0.01017333506 | H8: 0.009605412341 | I8: 0.003924902325 | J8: 0.002811750335 | K8: 0.005357652629 | L8: 0.003734671847 | M8: 0.007624766045 | N8: 0.004912426636 | O8: -0.0007093868898 | P8: 0.004922654116 | Q8: 0.006913912981 | R8: 0.004510070913 | S8: 0.005903861764 | T8: 0.004480935841 | U8: 0.0009371909358 | V8: 0.004935966676 | W8: 0.005706021354 | X8: 0.004093170461 | Y8: 0.004012873582 | Z8: 0.0005149525942 | AA8: 0.003428606072 | AB8: 0.003105786307 | AC8: 0.003562090522 | AD8: 0.0005814639265 | AE8: 0.003907294199
A9: ='Corr. Matrix'!B10 -> nvda | B9: ='Corr. Matrix'!B44*'Corr. Matrix'!B$40*'Corr. Matrix'!C10 -> 0.01005957994 | C9: ='Corr. Matrix'!B$41*'Corr. Matrix'!B44*'Corr. Matrix'!D10 -> 0.0115653215 | D9: ='Corr. Matrix'!B$42*'Corr. Matrix'!B44*'Corr. Matrix'!E10 -> 0.005472046806 | E9: ='Corr. Matrix'!B$43*'Corr. Matrix'!B44*'Corr. Matrix'!F10 -> 0.005410873144 | F9: ='Corr. Matrix'!B$44*'Corr. Matrix'!B44*'Corr. Matrix'!G10 -> 0.01958442765 | G9: =TRANSPOSE(F10:F34) -> 0.004139652636 | H9: 0.007966947551 | I9: 0.008432139763 | J9: 0.004137007909 | K9: 0.000268095185 | L9: 0.005296101084 | M9: 0.002984071023 | N9: 0.00444509985 | O9: 0.002213907986 | P9: 0.006084164899 | Q9: 0.003967044081 | R9: 0.002241171901 | S9: 0.00316037675 | T9: 0.006241021735 | U9: 0.002309883318 | V9: 0.002046897424 | W9: 0.004614031781 | X9: 0.004026443846 | Y9: 0.0008594841938 | Z9: 0.00273310352 | AA9: 0.0003681395937 | AB9: 0.005835252778 | AC9: 0.001243483493 | AD9: 0.002347672365 | AE9: 0.0003241526854
A10: ='Corr. Matrix'!B11 -> hog | B10: ='Corr. Matrix'!B45*'Corr. Matrix'!B$40*'Corr. Matrix'!C11 -> 0.01527368687 | C10: ='Corr. Matrix'!B$41*'Corr. Matrix'!B45*'Corr. Matrix'!D11 -> 0.008840528517 | D10: ='Corr. Matrix'!B$42*'Corr. Matrix'!B45*'Corr. Matrix'!E11 -> 0.01086668973 | E10: ='Corr. Matrix'!B$43*'Corr. Matrix'!B45*'Corr. Matrix'!F11 -> 0.01017333506 | F10: ='Corr. Matrix'!B$44*'Corr. Matrix'!B45*'Corr. Matrix'!G11 -> 0.004139652636 | G10: ='Corr. Matrix'!B$45*'Corr. Matrix'!B45*'Corr. Matrix'!H11 -> 0.01925697423 | H10: =TRANSPOSE(G11:G34) -> 0.0107152532 | I10: 0.002640258864 | J10: 0.005537635668 | K10: 0.006118341579 | L10: 0.003805748653 | M10: 0.009285184703 | N10: 0.006989327608 | O10: -0.001619069848 | P10: 0.003820366386 | Q10: 0.006825449714 | R10: 0.005608295546 | S10: 0.003754801212 | T10: 0.003180622087 | U10: 0.002159518022 | V10: 0.005857459787 | W10: 0.004590363307 | X10: 0.005615296459 | Y10: 0.003468568838 | Z10: 0.002426748118 | AA10: 0.003011070532 | AB10: 0.001774794805 | AC10: 0.003481626813 | AD10: 0.002015606285 | AE10: 0.002925596735
A11: ='Corr. Matrix'!B12 -> f | B11: ='Corr. Matrix'!B46*'Corr. Matrix'!B$40*'Corr. Matrix'!C12 -> 0.01627978695 | C11: ='Corr. Matrix'!B$41*'Corr. Matrix'!B46*'Corr. Matrix'!D12 -> 0.009815430995 | D11: ='Corr. Matrix'!B$42*'Corr. Matrix'!B46*'Corr. Matrix'!E12 -> 0.01108542761 | E11: ='Corr. Matrix'!B$43*'Corr. Matrix'!B46*'Corr. Matrix'!F12 -> 0.009605412341 | F11: ='Corr. Matrix'!B$44*'Corr. Matrix'!B46*'Corr. Matrix'!G12 -> 0.007966947551 | G11: ='Corr. Matrix'!B$45*'Corr. Matrix'!B46*'Corr. Matrix'!H12 -> 0.0107152532 | H11: ='Corr. Matrix'!B$46*'Corr. Matrix'!B46*'Corr. Matrix'!I12 -> 0.01790094822 | I11: =TRANSPOSE(H12:H34) -> 0.004458393758 | J11: 0.005525882759 | K11: 0.006853961873 | L11: 0.005278314442 | M11: 0.007281839477 | N11: 0.007267262473 | O11: 0.001141438111 | P11: 0.005071573781 | Q11: 0.006622078291 | R11: 0.003932066286 | S11: 0.004569388468 | T11: 0.004645400383 | U11: 0.001472568737 | V11: 0.004906228302 | W11: 0.004344139663 | X11: 0.005331770255 | Y11: 0.00195896258 | Z11: 0.001283942186 | AA11: 0.002522668854 | AB11: 0.003423589538 | AC11: 0.003570534046 | AD11: 0.001998805417 | AE11: 0.002205191387
A12: ='Corr. Matrix'!B13 -> meta | B12: ='Corr. Matrix'!B47*'Corr. Matrix'!B$40*'Corr. Matrix'!C13 -> 0.007660626191 | C12: ='Corr. Matrix'!B$41*'Corr. Matrix'!B47*'Corr. Matrix'!D13 -> 0.00747225496 | D12: ='Corr. Matrix'!B$42*'Corr. Matrix'!B47*'Corr. Matrix'!E13 -> 0.002846224874 | E12: ='Corr. Matrix'!B$43*'Corr. Matrix'!B47*'Corr. Matrix'!F13 -> 0.003924902325 | F12: ='Corr. Matrix'!B$44*'Corr. Matrix'!B47*'Corr. Matrix'!G13 -> 0.008432139763 | G12: ='Corr. Matrix'!B$45*'Corr. Matrix'!B47*'Corr. Matrix'!H13 -> 0.002640258864 | H12: ='Corr. Matrix'!B$46*'Corr. Matrix'!B47*'Corr. Matrix'!I13 -> 0.004458393758 | I12: ='Corr. Matrix'!B$47*'Corr. Matrix'!B47*'Corr. Matrix'!J13 -> 0.01492812861 | J12: =TRANSPOSE(I13:I34) -> 0.004932472018 | K12: -0.0002034647586 | L12: 0.005111598606 | M12: 0.002077292492 | N12: 0.001835307609 | O12: -4.033379131e-05 | P12: 0.003919946825 | Q12: 0.00262719201 | R12: 0.001552472989 | S12: 0.003208938217 | T12: 0.004127227289 | U12: 0.001785737242 | V12: 0.003249425088 | W12: 0.00437795192 | X12: 0.004150333757 | Y12: 0.002276684198 | Z12: 0.001492078959 | AA12: 0.001209535131 | AB12: 0.004198864003 | AC12: 0.001641776889 | AD12: 0.001905642605 | AE12: 0.001418621603
A13: ='Corr. Matrix'!B14 -> pzza | B13: ='Corr. Matrix'!B48*'Corr. Matrix'!B$40*'Corr. Matrix'!C14 -> 0.006181139008 | C13: ='Corr. Matrix'!B$41*'Corr. Matrix'!B48*'Corr. Matrix'!D14 -> 0.008282805904 | D13: ='Corr. Matrix'!B$42*'Corr. Matrix'!B48*'Corr. Matrix'!E14 -> 0.001665879911 | E13: ='Corr. Matrix'!B$43*'Corr. Matrix'!B48*'Corr. Matrix'!F14 -> 0.002811750335 | F13: ='Corr. Matrix'!B$44*'Corr. Matrix'!B48*'Corr. Matrix'!G14 -> 0.004137007909 | G13: ='Corr. Matrix'!B$45*'Corr. Matrix'!B48*'Corr. Matrix'!H14 -> 0.005537635668 | H13: ='Corr. Matrix'!B$46*'Corr. Matrix'!B48*'Corr. Matrix'!I14 -> 0.005525882759 | I13: ='Corr. Matrix'!B$47*'Corr. Matrix'!B48*'Corr. Matrix'!J14 -> 0.004932472018 | J13: ='Corr. Matrix'!B$48*'Corr. Matrix'!B48*'Corr. Matrix'!K14 -> 0.0114843753 | K13: =TRANSPOSE(J14:J34) -> 0.00263689702 | L13: 0.005313123251 | M13: 0.003950448324 | N13: 0.003039118302 | O13: 0.001833516318 | P13: 0.004179466445 | Q13: 0.002720155707 | R13: 0.003088491404 | S13: 0.003379399725 | T13: 0.003105172989 | U13: 0.002473488128 | V13: 0.004336716893 | W13: 0.002387644428 | X13: 0.004703922152 | Y13: 0.002460373577 | Z13: 0.001939790107 | AA13: 0.001384909066 | AB13: 0.002984358015 | AC13: 0.003066575012 | AD13: 0.001390478378 | AE13: 0.001439782312
A14: ='Corr. Matrix'!B15 -> xom | B14: ='Corr. Matrix'!B49*'Corr. Matrix'!B$40*'Corr. Matrix'!C15 -> 0.01151425098 | C14: ='Corr. Matrix'!B$41*'Corr. Matrix'!B49*'Corr. Matrix'!D15 -> 0.00132543112 | D14: ='Corr. Matrix'!B$42*'Corr. Matrix'!B49*'Corr. Matrix'!E15 -> 0.007967403753 | E14: ='Corr. Matrix'!B$43*'Corr. Matrix'!B49*'Corr. Matrix'!F15 -> 0.005357652629 | F14: ='Corr. Matrix'!B$44*'Corr. Matrix'!B49*'Corr. Matrix'!G15 -> 0.000268095185 | G14: ='Corr. Matrix'!B$45*'Corr. Matrix'!B49*'Corr. Matrix'!H15 -> 0.006118341579 | H14: ='Corr. Matrix'!B$46*'Corr. Matrix'!B49*'Corr. Matrix'!I15 -> 0.006853961873 | I14: ='Corr. Matrix'!B$47*'Corr. Matrix'!B49*'Corr. Matrix'!J15 -> -0.0002034647586 | J14: ='Corr. Matrix'!B$48*'Corr. Matrix'!B49*'Corr. Matrix'!K15 -> 0.00263689702 | K14: ='Corr. Matrix'!B$49*'Corr. Matrix'!B49*'Corr. Matrix'!L15 -> 0.009487753894 | L14: =TRANSPOSE(K15:K34) -> 0.002459397096 | M14: 0.006419263095 | N14: 0.004145978631 | O14: 0.00128656838 | P14: 0.00158403027 | Q14: 0.004649474915 | R14: 0.003063899797 | S14: 0.004285940502 | T14: 0.001734129534 | U14: 0.000827955501 | V14: 0.003644928719 | W14: 0.001843185348 | X14: 0.00202756395 | Y14: 0.002441401326 | Z14: 0.0005592081664 | AA14: 0.003229002052 | AB14: 0.0008393639329 | AC14: 0.002176178892 | AD14: 0.0005233276407 | AE14: 0.002243295734
A15: ='Corr. Matrix'!B16 -> cmg | B15: ='Corr. Matrix'!B50*'Corr. Matrix'!B$40*'Corr. Matrix'!C16 -> 0.009289846646 | C15: ='Corr. Matrix'!B$41*'Corr. Matrix'!B50*'Corr. Matrix'!D16 -> 0.00830079308 | D15: ='Corr. Matrix'!B$42*'Corr. Matrix'!B50*'Corr. Matrix'!E16 -> 0.003920586339 | E15: ='Corr. Matrix'!B$43*'Corr. Matrix'!B50*'Corr. Matrix'!F16 -> 0.003734671847 | F15: ='Corr. Matrix'!B$44*'Corr. Matrix'!B50*'Corr. Matrix'!G16 -> 0.005296101084 | G15: ='Corr. Matrix'!B$45*'Corr. Matrix'!B50*'Corr. Matrix'!H16 -> 0.003805748653 | H15: ='Corr. Matrix'!B$46*'Corr. Matrix'!B50*'Corr. Matrix'!I16 -> 0.005278314442 | I15: ='Corr. Matrix'!B$47*'Corr. Matrix'!B50*'Corr. Matrix'!J16 -> 0.005111598606 | J15: ='Corr. Matrix'!B$48*'Corr. Matrix'!B50*'Corr. Matrix'!K16 -> 0.005313123251 | K15: ='Corr. Matrix'!B$49*'Corr. Matrix'!B50*'Corr. Matrix'!L16 -> 0.002459397096 | L15: ='Corr. Matrix'!B$50*'Corr. Matrix'!B50*'Corr. Matrix'!M16 -> 0.009051977334 | M15: =TRANSPOSE(L16:L34) -> 0.003329113796 | N15: 0.001403769284 | O15: 0.002889852104 | P15: 0.004680642845 | Q15: 0.002558403113 | R15: 0.002034492219 | S15: 0.003782002952 | T15: 0.004536192052 | U15: 0.0009212433803 | V15: 0.004682564829 | W15: 0.003201258043 | X15: 0.003166701086 | Y15: 0.001504107701 | Z15: 0.001881520354 | AA15: 0.001545217249 | AB15: 0.003947857349 | AC15: 0.002688163997 | AD15: 0.001895692015 | AE15: 0.001826204955
A16: ='Corr. Matrix'!B17 -> pru | B16: ='Corr. Matrix'!B51*'Corr. Matrix'!B$40*'Corr. Matrix'!C17 -> 0.01489543135 | C16: ='Corr. Matrix'!B$41*'Corr. Matrix'!B51*'Corr. Matrix'!D17 -> 0.005762448357 | D16: ='Corr. Matrix'!B$42*'Corr. Matrix'!B51*'Corr. Matrix'!E17 -> 0.009709681258 | E16: ='Corr. Matrix'!B$43*'Corr. Matrix'!B51*'Corr. Matrix'!F17 -> 0.007624766045 | F16: ='Corr. Matrix'!B$44*'Corr. Matrix'!B51*'Corr. Matrix'!G17 -> 0.002984071023 | G16: ='Corr. Matrix'!B$45*'Corr. Matrix'!B51*'Corr. Matrix'!H17 -> 0.009285184703 | H16: ='Corr. Matrix'!B$46*'Corr. Matrix'!B51*'Corr. Matrix'!I17 -> 0.007281839477 | I16: ='Corr. Matrix'!B$47*'Corr. Matrix'!B51*'Corr. Matrix'!J17 -> 0.002077292492 | J16: ='Corr. Matrix'!B$48*'Corr. Matrix'!B51*'Corr. Matrix'!K17 -> 0.003950448324 | K16: ='Corr. Matrix'!B$49*'Corr. Matrix'!B51*'Corr. Matrix'!L17 -> 0.006419263095 | L16: ='Corr. Matrix'!B$50*'Corr. Matrix'!B51*'Corr. Matrix'!M17 -> 0.003329113796 | M16: ='Corr. Matrix'!B$51*'Corr. Matrix'!B51*'Corr. Matrix'!N17 -> 0.008365866181 | N16: =TRANSPOSE(M17:M34) -> 0.005251311976 | O16: 0.000394024405 | P16: 0.003105935619 | Q16: 0.006093059419 | R16: 0.00411589921 | S16: 0.004575407381 | T16: 0.003014124569 | U16: 0.002002011079 | V16: 0.004863562462 | W16: 0.003993640428 | X16: 0.00369444875 | Y16: 0.003601730827 | Z16: 0.001067193602 | AA16: 0.003147363032 | AB16: 0.00170381412 | AC16: 0.002992433124 | AD16: 0.001696366257 | AE16: 0.002896994277
A17: ='Corr. Matrix'!B18 -> cat | B17: ='Corr. Matrix'!B52*'Corr. Matrix'!B$40*'Corr. Matrix'!C18 -> 0.009727529257 | C17: ='Corr. Matrix'!B$41*'Corr. Matrix'!B52*'Corr. Matrix'!D18 -> 0.003063962399 | D17: ='Corr. Matrix'!B$42*'Corr. Matrix'!B52*'Corr. Matrix'!E18 -> 0.007882807193 | E17: ='Corr. Matrix'!B$43*'Corr. Matrix'!B52*'Corr. Matrix'!F18 -> 0.004912426636 | F17: ='Corr. Matrix'!B$44*'Corr. Matrix'!B52*'Corr. Matrix'!G18 -> 0.00444509985 | G17: ='Corr. Matrix'!B$45*'Corr. Matrix'!B52*'Corr. Matrix'!H18 -> 0.006989327608 | H17: ='Corr. Matrix'!B$46*'Corr. Matrix'!B52*'Corr. Matrix'!I18 -> 0.007267262473 | I17: ='Corr. Matrix'!B$47*'Corr. Matrix'!B52*'Corr. Matrix'!J18 -> 0.001835307609 | J17: ='Corr. Matrix'!B$48*'Corr. Matrix'!B52*'Corr. Matrix'!K18 -> 0.003039118302 | K17: ='Corr. Matrix'!B$49*'Corr. Matrix'!B52*'Corr. Matrix'!L18 -> 0.004145978631 | L17: ='Corr. Matrix'!B$50*'Corr. Matrix'!B52*'Corr. Matrix'!M18 -> 0.001403769284 | M17: ='Corr. Matrix'!B$51*'Corr. Matrix'!B52*'Corr. Matrix'!N18 -> 0.005251311976 | N17: ='Corr. Matrix'!B$52*'Corr. Matrix'!B52*'Corr. Matrix'!O18 -> 0.008191994442 | O17: =TRANSPOSE(N18:N34) -> 0.001011419114 | P17: 0.002037391581 | Q17: 0.004706793363 | R17: 0.004327859509 | S17: 0.003686728986 | T17: 0.001635918124 | U17: 0.001500139192 | V17: 0.002971126247 | W17: 0.00355467628 | X17: 0.003504523664 | Y17: 0.002602852081 | Z17: 0.002298105542 | AA17: 0.002360715052 | AB17: 0.001273723678 | AC17: 0.002199990257 | AD17: 0.002008005553 | AE17: 0.00182221507
A18: ='Corr. Matrix'!B19 -> lly | B18: ='Corr. Matrix'!B53*'Corr. Matrix'!B$40*'Corr. Matrix'!C19 -> -0.0004660393835 | C18: ='Corr. Matrix'!B$41*'Corr. Matrix'!B53*'Corr. Matrix'!D19 -> -3.747446664e-05 | D18: ='Corr. Matrix'!B$42*'Corr. Matrix'!B53*'Corr. Matrix'!E19 -> -0.001568858958 | E18: ='Corr. Matrix'!B$43*'Corr. Matrix'!B53*'Corr. Matrix'!F19 -> -0.0007093868898 | F18: ='Corr. Matrix'!B$44*'Corr. Matrix'!B53*'Corr. Matrix'!G19 -> 0.002213907986 | G18: ='Corr. Matrix'!B$45*'Corr. Matrix'!B53*'Corr. Matrix'!H19 -> -0.001619069848 | H18: ='Corr. Matrix'!B$46*'Corr. Matrix'!B53*'Corr. Matrix'!I19 -> 0.001141438111 | I18: ='Corr. Matrix'!B$47*'Corr. Matrix'!B53*'Corr. Matrix'!J19 -> -4.033379131e-05 | J18: ='Corr. Matrix'!B$48*'Corr. Matrix'!B53*'Corr. Matrix'!K19 -> 0.001833516318 | K18: ='Corr. Matrix'!B$49*'Corr. Matrix'!B53*'Corr. Matrix'!L19 -> 0.00128656838 | L18: ='Corr. Matrix'!B$50*'Corr. Matrix'!B53*'Corr. Matrix'!M19 -> 0.002889852104 | M18: ='Corr. Matrix'!B$51*'Corr. Matrix'!B53*'Corr. Matrix'!N19 -> 0.000394024405 | N18: ='Corr. Matrix'!B$52*'Corr. Matrix'!B53*'Corr. Matrix'!O19 -> 0.001011419114 | O18: ='Corr. Matrix'!B$53*'Corr. Matrix'!B53*'Corr. Matrix'!P19 -> 0.007529059813 | P18: =TRANSPOSE(O19:O34) -> 0.001274653961 | Q18: 0.0004258956437 | R18: 0.000470071872 | S18: 0.0007550901922 | T18: 0.0009648486743 | U18: 0.001028558612 | V18: 0.001066797451 | W18: 0.0009194747103 | X18: 0.0003653431673 | Y18: 0.0009180304547 | Z18: 0.0007768454075 | AA18: 0.000245907241 | AB18: 0.002324693828 | AC18: 0.0005161318293 | AD18: 0.0009853450215 | AE18: 0.0005519211422
A19: ='Corr. Matrix'!B20 -> aapl | B19: ='Corr. Matrix'!B54*'Corr. Matrix'!B$40*'Corr. Matrix'!C20 -> 0.007515624 | C19: ='Corr. Matrix'!B$41*'Corr. Matrix'!B54*'Corr. Matrix'!D20 -> 0.01141940499 | D19: ='Corr. Matrix'!B$42*'Corr. Matrix'!B54*'Corr. Matrix'!E20 -> 0.003326224482 | E19: ='Corr. Matrix'!B$43*'Corr. Matrix'!B54*'Corr. Matrix'!F20 -> 0.004922654116 | F19: ='Corr. Matrix'!B$44*'Corr. Matrix'!B54*'Corr. Matrix'!G20 -> 0.006084164899 | G19: ='Corr. Matrix'!B$45*'Corr. Matrix'!B54*'Corr. Matrix'!H20 -> 0.003820366386 | H19: ='Corr. Matrix'!B$46*'Corr. Matrix'!B54*'Corr. Matrix'!I20 -> 0.005071573781 | I19: ='Corr. Matrix'!B$47*'Corr. Matrix'!B54*'Corr. Matrix'!J20 -> 0.003919946825 | J19: ='Corr. Matrix'!B$48*'Corr. Matrix'!B54*'Corr. Matrix'!K20 -> 0.004179466445 | K19: ='Corr. Matrix'!B$49*'Corr. Matrix'!B54*'Corr. Matrix'!L20 -> 0.00158403027 | L19: ='Corr. Matrix'!B$50*'Corr. Matrix'!B54*'Corr. Matrix'!M20 -> 0.004680642845 | M19: ='Corr. Matrix'!B$51*'Corr. Matrix'!B54*'Corr. Matrix'!N20 -> 0.003105935619 | N19: ='Corr. Matrix'!B$52*'Corr. Matrix'!B54*'Corr. Matrix'!O20 -> 0.002037391581 | O19: ='Corr. Matrix'!B$53*'Corr. Matrix'!B54*'Corr. Matrix'!P20 -> 0.001274653961 | P19: ='Corr. Matrix'!B$54*'Corr. Matrix'!B54*'Corr. Matrix'!Q20 -> 0.006669433799 | Q19: =TRANSPOSE(P20:P34) -> 0.002117686235 | R19: 0.002897435436 | S19: 0.00348168141 | T19: 0.003476266468 | U19: 0.002092224136 | V19: 0.003076661176 | W19: 0.002853017928 | X19: 0.002991547422 | Y19: 0.001676512696 | Z19: 0.001654510872 | AA19: 0.001284569067 | AB19: 0.003615586426 | AC19: 0.002623349498 | AD19: 0.00192497628 | AE19: 0.001782433353
A20: ='Corr. Matrix'!B21 -> jpm | B20: ='Corr. Matrix'!B55*'Corr. Matrix'!B$40*'Corr. Matrix'!C21 -> 0.01232612281 | C20: ='Corr. Matrix'!B$41*'Corr. Matrix'!B55*'Corr. Matrix'!D21 -> 0.003508395325 | D20: ='Corr. Matrix'!B$42*'Corr. Matrix'!B55*'Corr. Matrix'!E21 -> 0.008352442318 | E20: ='Corr. Matrix'!B$43*'Corr. Matrix'!B55*'Corr. Matrix'!F21 -> 0.006913912981 | F20: ='Corr. Matrix'!B$44*'Corr. Matrix'!B55*'Corr. Matrix'!G21 -> 0.003967044081 | G20: ='Corr. Matrix'!B$45*'Corr. Matrix'!B55*'Corr. Matrix'!H21 -> 0.006825449714 | H20: ='Corr. Matrix'!B$46*'Corr. Matrix'!B55*'Corr. Matrix'!I21 -> 0.006622078291 | I20: ='Corr. Matrix'!B$47*'Corr. Matrix'!B55*'Corr. Matrix'!J21 -> 0.00262719201 | J20: ='Corr. Matrix'!B$48*'Corr. Matrix'!B55*'Corr. Matrix'!K21 -> 0.002720155707 | K20: ='Corr. Matrix'!B$49*'Corr. Matrix'!B55*'Corr. Matrix'!L21 -> 0.004649474915 | L20: ='Corr. Matrix'!B$50*'Corr. Matrix'!B55*'Corr. Matrix'!M21 -> 0.002558403113 | M20: ='Corr. Matrix'!B$51*'Corr. Matrix'!B55*'Corr. Matrix'!N21 -> 0.006093059419 | N20: ='Corr. Matrix'!B$52*'Corr. Matrix'!B55*'Corr. Matrix'!O21 -> 0.004706793363 | O20: ='Corr. Matrix'!B$53*'Corr. Matrix'!B55*'Corr. Matrix'!P21 -> 0.0004258956437 | P20: ='Corr. Matrix'!B$54*'Corr. Matrix'!B55*'Corr. Matrix'!Q21 -> 0.002117686235 | Q20: ='Corr. Matrix'!B$55*'Corr. Matrix'!B55*'Corr. Matrix'!R21 -> 0.006396110574 | R20: =TRANSPOSE(Q21:Q34) -> 0.003541315819 | S20: 0.003577994615 | T20: 0.002512132336 | U20: 0.001344989659 | V20: 0.003744148566 | W20: 0.003861088782 | X20: 0.003010853755 | Y20: 0.002683001975 | Z20: 0.0005738882914 | AA20: 0.002369571941 | AB20: 0.001509604259 | AC20: 0.002147473373 | AD20: 0.001026795047 | AE20: 0.002039023085
A21: ='Corr. Matrix'!B22 -> mmm | B21: ='Corr. Matrix'!B56*'Corr. Matrix'!B$40*'Corr. Matrix'!C22 -> 0.006791027759 | C21: ='Corr. Matrix'!B$41*'Corr. Matrix'!B56*'Corr. Matrix'!D22 -> 0.003863326462 | D21: ='Corr. Matrix'!B$42*'Corr. Matrix'!B56*'Corr. Matrix'!E22 -> 0.004197111823 | E21: ='Corr. Matrix'!B$43*'Corr. Matrix'!B56*'Corr. Matrix'!F22 -> 0.004510070913 | F21: ='Corr. Matrix'!B$44*'Corr. Matrix'!B56*'Corr. Matrix'!G22 -> 0.002241171901 | G21: ='Corr. Matrix'!B$45*'Corr. Matrix'!B56*'Corr. Matrix'!H22 -> 0.005608295546 | H21: ='Corr. Matrix'!B$46*'Corr. Matrix'!B56*'Corr. Matrix'!I22 -> 0.003932066286 | I21: ='Corr. Matrix'!B$47*'Corr. Matrix'!B56*'Corr. Matrix'!J22 -> 0.001552472989 | J21: ='Corr. Matrix'!B$48*'Corr. Matrix'!B56*'Corr. Matrix'!K22 -> 0.003088491404 | K21: ='Corr. Matrix'!B$49*'Corr. Matrix'!B56*'Corr. Matrix'!L22 -> 0.003063899797 | L21: ='Corr. Matrix'!B$50*'Corr. Matrix'!B56*'Corr. Matrix'!M22 -> 0.002034492219 | M21: ='Corr. Matrix'!B$51*'Corr. Matrix'!B56*'Corr. Matrix'!N22 -> 0.00411589921 | N21: ='Corr. Matrix'!B$52*'Corr. Matrix'!B56*'Corr. Matrix'!O22 -> 0.004327859509 | O21: ='Corr. Matrix'!B$53*'Corr. Matrix'!B56*'Corr. Matrix'!P22 -> 0.000470071872 | P21: ='Corr. Matrix'!B$54*'Corr. Matrix'!B56*'Corr. Matrix'!Q22 -> 0.002897435436 | Q21: ='Corr. Matrix'!B$55*'Corr. Matrix'!B56*'Corr. Matrix'!R22 -> 0.003541315819 | R21: ='Corr. Matrix'!B$56*'Corr. Matrix'!B56*'Corr. Matrix'!S22 -> 0.006199527779 | S21: =TRANSPOSE(R22:R34) -> 0.002959156868 | T21: 0.002014415747 | U21: 0.002281703964 | V21: 0.003250608676 | W21: 0.003080581962 | X21: 0.003338335408 | Y21: 0.002217879691 | Z21: 0.002088931242 | AA21: 0.001961028298 | AB21: 0.001290896924 | AC21: 0.002380768814 | AD21: 0.001581259483 | AE21: 0.00221978477
A22: ='Corr. Matrix'!B23 -> ma | B22: ='Corr. Matrix'!B57*'Corr. Matrix'!B$40*'Corr. Matrix'!C23 -> 0.01097682418 | C22: ='Corr. Matrix'!B$41*'Corr. Matrix'!B57*'Corr. Matrix'!D23 -> 0.00535855488 | D22: ='Corr. Matrix'!B$42*'Corr. Matrix'!B57*'Corr. Matrix'!E23 -> 0.006377613135 | E22: ='Corr. Matrix'!B$43*'Corr. Matrix'!B57*'Corr. Matrix'!F23 -> 0.005903861764 | F22: ='Corr. Matrix'!B$44*'Corr. Matrix'!B57*'Corr. Matrix'!G23 -> 0.00316037675 | G22: ='Corr. Matrix'!B$45*'Corr. Matrix'!B57*'Corr. Matrix'!H23 -> 0.003754801212 | H22: ='Corr. Matrix'!B$46*'Corr. Matrix'!B57*'Corr. Matrix'!I23 -> 0.004569388468 | I22: ='Corr. Matrix'!B$47*'Corr. Matrix'!B57*'Corr. Matrix'!J23 -> 0.003208938217 | J22: ='Corr. Matrix'!B$48*'Corr. Matrix'!B57*'Corr. Matrix'!K23 -> 0.003379399725 | K22: ='Corr. Matrix'!B$49*'Corr. Matrix'!B57*'Corr. Matrix'!L23 -> 0.004285940502 | L22: ='Corr. Matrix'!B$50*'Corr. Matrix'!B57*'Corr. Matrix'!M23 -> 0.003782002952 | M22: ='Corr. Matrix'!B$51*'Corr. Matrix'!B57*'Corr. Matrix'!N23 -> 0.004575407381 | N22: ='Corr. Matrix'!B$52*'Corr. Matrix'!B57*'Corr. Matrix'!O23 -> 0.003686728986 | O22: ='Corr. Matrix'!B$53*'Corr. Matrix'!B57*'Corr. Matrix'!P23 -> 0.0007550901922 | P22: ='Corr. Matrix'!B$54*'Corr. Matrix'!B57*'Corr. Matrix'!Q23 -> 0.00348168141 | Q22: ='Corr. Matrix'!B$55*'Corr. Matrix'!B57*'Corr. Matrix'!R23 -> 0.003577994615 | R22: ='Corr. Matrix'!B$56*'Corr. Matrix'!B57*'Corr. Matrix'!S23 -> 0.002959156868 | S22: ='Corr. Matrix'!B$57*'Corr. Matrix'!B57*'Corr. Matrix'!T23 -> 0.006111175773 | T22: =TRANSPOSE(S23:S34) -> 0.002186978444 | U22: 0.001285163259 | V22: 0.004113469276 | W22: 0.00290877059 | X22: 0.003287871624 | Y22: 0.003329863566 | Z22: 0.0006014698709 | AA22: 0.00286461806 | AB22: 0.001987982555 | AC22: 0.003067175283 | AD22: 0.001489736655 | AE22: 0.002857166585
A23: ='Corr. Matrix'!B24 -> googl | B23: ='Corr. Matrix'!B58*'Corr. Matrix'!B$40*'Corr. Matrix'!C24 -> 0.007380821297 | C23: ='Corr. Matrix'!B$41*'Corr. Matrix'!B58*'Corr. Matrix'!D24 -> 0.007227687826 | D23: ='Corr. Matrix'!B$42*'Corr. Matrix'!B58*'Corr. Matrix'!E24 -> 0.003454768557 | E23: ='Corr. Matrix'!B$43*'Corr. Matrix'!B58*'Corr. Matrix'!F24 -> 0.004480935841 | F23: ='Corr. Matrix'!B$44*'Corr. Matrix'!B58*'Corr. Matrix'!G24 -> 0.006241021735 | G23: ='Corr. Matrix'!B$45*'Corr. Matrix'!B58*'Corr. Matrix'!H24 -> 0.003180622087 | H23: ='Corr. Matrix'!B$46*'Corr. Matrix'!B58*'Corr. Matrix'!I24 -> 0.004645400383 | I23: ='Corr. Matrix'!B$47*'Corr. Matrix'!B58*'Corr. Matrix'!J24 -> 0.004127227289 | J23: ='Corr. Matrix'!B$48*'Corr. Matrix'!B58*'Corr. Matrix'!K24 -> 0.003105172989 | K23: ='Corr. Matrix'!B$49*'Corr. Matrix'!B58*'Corr. Matrix'!L24 -> 0.001734129534 | L23: ='Corr. Matrix'!B$50*'Corr. Matrix'!B58*'Corr. Matrix'!M24 -> 0.004536192052 | M23: ='Corr. Matrix'!B$51*'Corr. Matrix'!B58*'Corr. Matrix'!N24 -> 0.003014124569 | N23: ='Corr. Matrix'!B$52*'Corr. Matrix'!B58*'Corr. Matrix'!O24 -> 0.001635918124 | O23: ='Corr. Matrix'!B$53*'Corr. Matrix'!B58*'Corr. Matrix'!P24 -> 0.0009648486743 | P23: ='Corr. Matrix'!B$54*'Corr. Matrix'!B58*'Corr. Matrix'!Q24 -> 0.003476266468 | Q23: ='Corr. Matrix'!B$55*'Corr. Matrix'!B58*'Corr. Matrix'!R24 -> 0.002512132336 | R23: ='Corr. Matrix'!B$56*'Corr. Matrix'!B58*'Corr. Matrix'!S24 -> 0.002014415747 | S23: ='Corr. Matrix'!B$57*'Corr. Matrix'!B58*'Corr. Matrix'!T24 -> 0.002186978444 | T23: ='Corr. Matrix'!B$58*'Corr. Matrix'!B58*'Corr. Matrix'!U24 -> 0.00607347945 | U23: =TRANSPOSE(T24:T34) -> 0.001622997136 | V23: 0.002914582607 | W23: 0.003168607232 | X23: 0.001957859998 | Y23: 0.0009759725218 | Z23: 0.001201893781 | AA23: 0.0009331837617 | AB23: 0.003190767193 | AC23: 0.001414113508 | AD23: 0.0007981493987 | AE23: 0.00131371976
A24: ='Corr. Matrix'!B25 -> pfe | B24: ='Corr. Matrix'!B59*'Corr. Matrix'!B$40*'Corr. Matrix'!C25 -> 0.0007114384701 | C24: ='Corr. Matrix'!B$41*'Corr. Matrix'!B59*'Corr. Matrix'!D25 -> 0.00139489074 | D24: ='Corr. Matrix'!B$42*'Corr. Matrix'!B59*'Corr. Matrix'!E25 -> -0.0008991545845 | E24: ='Corr. Matrix'!B$43*'Corr. Matrix'!B59*'Corr. Matrix'!F25 -> 0.0009371909358 | F24: ='Corr. Matrix'!B$44*'Corr. Matrix'!B59*'Corr. Matrix'!G25 -> 0.002309883318 | G24: ='Corr. Matrix'!B$45*'Corr. Matrix'!B59*'Corr. Matrix'!H25 -> 0.002159518022 | H24: ='Corr. Matrix'!B$46*'Corr. Matrix'!B59*'Corr. Matrix'!I25 -> 0.001472568737 | I24: ='Corr. Matrix'!B$47*'Corr. Matrix'!B59*'Corr. Matrix'!J25 -> 0.001785737242 | J24: ='Corr. Matrix'!B$48*'Corr. Matrix'!B59*'Corr. Matrix'!K25 -> 0.002473488128 | K24: ='Corr. Matrix'!B$49*'Corr. Matrix'!B59*'Corr. Matrix'!L25 -> 0.000827955501 | L24: ='Corr. Matrix'!B$50*'Corr. Matrix'!B59*'Corr. Matrix'!M25 -> 0.0009212433803 | M24: ='Corr. Matrix'!B$51*'Corr. Matrix'!B59*'Corr. Matrix'!N25 -> 0.002002011079 | N24: ='Corr. Matrix'!B$52*'Corr. Matrix'!B59*'Corr. Matrix'!O25 -> 0.001500139192 | O24: ='Corr. Matrix'!B$53*'Corr. Matrix'!B59*'Corr. Matrix'!P25 -> 0.001028558612 | P24: ='Corr. Matrix'!B$54*'Corr. Matrix'!B59*'Corr. Matrix'!Q25 -> 0.002092224136 | Q24: ='Corr. Matrix'!B$55*'Corr. Matrix'!B59*'Corr. Matrix'!R25 -> 0.001344989659 | R24: ='Corr. Matrix'!B$56*'Corr. Matrix'!B59*'Corr. Matrix'!S25 -> 0.002281703964 | S24: ='Corr. Matrix'!B$57*'Corr. Matrix'!B59*'Corr. Matrix'!T25 -> 0.001285163259 | T24: ='Corr. Matrix'!B$58*'Corr. Matrix'!B59*'Corr. Matrix'!U25 -> 0.001622997136 | U24: ='Corr. Matrix'!B$59*'Corr. Matrix'!B59*'Corr. Matrix'!V25 -> 0.006035205229 | V24: =TRANSPOSE(U25:U34) -> 0.002576762563 | W24: 0.001792743618 | X24: 0.002467411427 | Y24: 0.001997306853 | Z24: 0.001697431067 | AA24: 0.001082119451 | AB24: 0.001110530069 | AC24: 0.001458356145 | AD24: 0.001067043894 | AE24: 0.001308409996
A25: ='Corr. Matrix'!B26 -> yum | B25: ='Corr. Matrix'!B60*'Corr. Matrix'!B$40*'Corr. Matrix'!C26 -> 0.009479298551 | C25: ='Corr. Matrix'!B$41*'Corr. Matrix'!B60*'Corr. Matrix'!D26 -> 0.004907580795 | D25: ='Corr. Matrix'!B$42*'Corr. Matrix'!B60*'Corr. Matrix'!E26 -> 0.005311910564 | E25: ='Corr. Matrix'!B$43*'Corr. Matrix'!B60*'Corr. Matrix'!F26 -> 0.004935966676 | F25: ='Corr. Matrix'!B$44*'Corr. Matrix'!B60*'Corr. Matrix'!G26 -> 0.002046897424 | G25: ='Corr. Matrix'!B$45*'Corr. Matrix'!B60*'Corr. Matrix'!H26 -> 0.005857459787 | H25: ='Corr. Matrix'!B$46*'Corr. Matrix'!B60*'Corr. Matrix'!I26 -> 0.004906228302 | I25: ='Corr. Matrix'!B$47*'Corr. Matrix'!B60*'Corr. Matrix'!J26 -> 0.003249425088 | J25: ='Corr. Matrix'!B$48*'Corr. Matrix'!B60*'Corr. Matrix'!K26 -> 0.004336716893 | K25: ='Corr. Matrix'!B$49*'Corr. Matrix'!B60*'Corr. Matrix'!L26 -> 0.003644928719 | L25: ='Corr. Matrix'!B$50*'Corr. Matrix'!B60*'Corr. Matrix'!M26 -> 0.004682564829 | M25: ='Corr. Matrix'!B$51*'Corr. Matrix'!B60*'Corr. Matrix'!N26 -> 0.004863562462 | N25: ='Corr. Matrix'!B$52*'Corr. Matrix'!B60*'Corr. Matrix'!O26 -> 0.002971126247 | O25: ='Corr. Matrix'!B$53*'Corr. Matrix'!B60*'Corr. Matrix'!P26 -> 0.001066797451 | P25: ='Corr. Matrix'!B$54*'Corr. Matrix'!B60*'Corr. Matrix'!Q26 -> 0.003076661176 | Q25: ='Corr. Matrix'!B$55*'Corr. Matrix'!B60*'Corr. Matrix'!R26 -> 0.003744148566 | R25: ='Corr. Matrix'!B$56*'Corr. Matrix'!B60*'Corr. Matrix'!S26 -> 0.003250608676 | S25: ='Corr. Matrix'!B$57*'Corr. Matrix'!B60*'Corr. Matrix'!T26 -> 0.004113469276 | T25: ='Corr. Matrix'!B$58*'Corr. Matrix'!B60*'Corr. Matrix'!U26 -> 0.002914582607 | U25: ='Corr. Matrix'!B$59*'Corr. Matrix'!B60*'Corr. Matrix'!V26 -> 0.002576762563 | V25: ='Corr. Matrix'!B$60*'Corr. Matrix'!B60*'Corr. Matrix'!W26 -> 0.005707928514 | W25: =TRANSPOSE(V26:V34) -> 0.003102233309 | X25: 0.003683891266 | Y25: 0.002779767728 | Z25: 0.00098539594 | AA25: 0.002268755366 | AB25: 0.002190640586 | AC25: 0.003308330104 | AD25: 0.001377703249 | AE25: 0.003030844386
A26: ='Corr. Matrix'!B27 -> grmn | B26: ='Corr. Matrix'!B61*'Corr. Matrix'!B$40*'Corr. Matrix'!C27 -> 0.008879805374 | C26: ='Corr. Matrix'!B$41*'Corr. Matrix'!B61*'Corr. Matrix'!D27 -> 0.004294147663 | D26: ='Corr. Matrix'!B$42*'Corr. Matrix'!B61*'Corr. Matrix'!E27 -> 0.006078668417 | E26: ='Corr. Matrix'!B$43*'Corr. Matrix'!B61*'Corr. Matrix'!F27 -> 0.005706021354 | F26: ='Corr. Matrix'!B$44*'Corr. Matrix'!B61*'Corr. Matrix'!G27 -> 0.004614031781 | G26: ='Corr. Matrix'!B$45*'Corr. Matrix'!B61*'Corr. Matrix'!H27 -> 0.004590363307 | H26: ='Corr. Matrix'!B$46*'Corr. Matrix'!B61*'Corr. Matrix'!I27 -> 0.004344139663 | I26: ='Corr. Matrix'!B$47*'Corr. Matrix'!B61*'Corr. Matrix'!J27 -> 0.00437795192 | J26: ='Corr. Matrix'!B$48*'Corr. Matrix'!B61*'Corr. Matrix'!K27 -> 0.002387644428 | K26: ='Corr. Matrix'!B$49*'Corr. Matrix'!B61*'Corr. Matrix'!L27 -> 0.001843185348 | L26: ='Corr. Matrix'!B$50*'Corr. Matrix'!B61*'Corr. Matrix'!M27 -> 0.003201258043 | M26: ='Corr. Matrix'!B$51*'Corr. Matrix'!B61*'Corr. Matrix'!N27 -> 0.003993640428 | N26: ='Corr. Matrix'!B$52*'Corr. Matrix'!B61*'Corr. Matrix'!O27 -> 0.00355467628 | O26: ='Corr. Matrix'!B$53*'Corr. Matrix'!B61*'Corr. Matrix'!P27 -> 0.0009194747103 | P26: ='Corr. Matrix'!B$54*'Corr. Matrix'!B61*'Corr. Matrix'!Q27 -> 0.002853017928 | Q26: ='Corr. Matrix'!B$55*'Corr. Matrix'!B61*'Corr. Matrix'!R27 -> 0.003861088782 | R26: ='Corr. Matrix'!B$56*'Corr. Matrix'!B61*'Corr. Matrix'!S27 -> 0.003080581962 | S26: ='Corr. Matrix'!B$57*'Corr. Matrix'!B61*'Corr. Matrix'!T27 -> 0.00290877059 | T26: ='Corr. Matrix'!B$58*'Corr. Matrix'!B61*'Corr. Matrix'!U27 -> 0.003168607232 | U26: ='Corr. Matrix'!B$59*'Corr. Matrix'!B61*'Corr. Matrix'!V27 -> 0.001792743618 | V26: ='Corr. Matrix'!B$60*'Corr. Matrix'!B61*'Corr. Matrix'!W27 -> 0.003102233309 | W26: ='Corr. Matrix'!B$61*'Corr. Matrix'!B61*'Corr. Matrix'!X27 -> 0.005609888194 | X26: =TRANSPOSE(W27:W34) -> 0.002449109547 | Y26: 0.002168418626 | Z26: 0.001305888241 | AA26: 0.002110302617 | AB26: 0.002051893673 | AC26: 0.001659010134 | AD26: 0.001400329001 | AE26: 0.001563304298
A27: ='Corr. Matrix'!B28 -> hd | B27: ='Corr. Matrix'!B62*'Corr. Matrix'!B$40*'Corr. Matrix'!C28 -> 0.006612506482 | C27: ='Corr. Matrix'!B$41*'Corr. Matrix'!B62*'Corr. Matrix'!D28 -> 0.005967647325 | D27: ='Corr. Matrix'!B$42*'Corr. Matrix'!B62*'Corr. Matrix'!E28 -> 0.003852726681 | E27: ='Corr. Matrix'!B$43*'Corr. Matrix'!B62*'Corr. Matrix'!F28 -> 0.004093170461 | F27: ='Corr. Matrix'!B$44*'Corr. Matrix'!B62*'Corr. Matrix'!G28 -> 0.004026443846 | G27: ='Corr. Matrix'!B$45*'Corr. Matrix'!B62*'Corr. Matrix'!H28 -> 0.005615296459 | H27: ='Corr. Matrix'!B$46*'Corr. Matrix'!B62*'Corr. Matrix'!I28 -> 0.005331770255 | I27: ='Corr. Matrix'!B$47*'Corr. Matrix'!B62*'Corr. Matrix'!J28 -> 0.004150333757 | J27: ='Corr. Matrix'!B$48*'Corr. Matrix'!B62*'Corr. Matrix'!K28 -> 0.004703922152 | K27: ='Corr. Matrix'!B$49*'Corr. Matrix'!B62*'Corr. Matrix'!L28 -> 0.00202756395 | L27: ='Corr. Matrix'!B$50*'Corr. Matrix'!B62*'Corr. Matrix'!M28 -> 0.003166701086 | M27: ='Corr. Matrix'!B$51*'Corr. Matrix'!B62*'Corr. Matrix'!N28 -> 0.00369444875 | N27: ='Corr. Matrix'!B$52*'Corr. Matrix'!B62*'Corr. Matrix'!O28 -> 0.003504523664 | O27: ='Corr. Matrix'!B$53*'Corr. Matrix'!B62*'Corr. Matrix'!P28 -> 0.0003653431673 | P27: ='Corr. Matrix'!B$54*'Corr. Matrix'!B62*'Corr. Matrix'!Q28 -> 0.002991547422 | Q27: ='Corr. Matrix'!B$55*'Corr. Matrix'!B62*'Corr. Matrix'!R28 -> 0.003010853755 | R27: ='Corr. Matrix'!B$56*'Corr. Matrix'!B62*'Corr. Matrix'!S28 -> 0.003338335408 | S27: ='Corr. Matrix'!B$57*'Corr. Matrix'!B62*'Corr. Matrix'!T28 -> 0.003287871624 | T27: ='Corr. Matrix'!B$58*'Corr. Matrix'!B62*'Corr. Matrix'!U28 -> 0.001957859998 | U27: ='Corr. Matrix'!B$59*'Corr. Matrix'!B62*'Corr. Matrix'!V28 -> 0.002467411427 | V27: ='Corr. Matrix'!B$60*'Corr. Matrix'!B62*'Corr. Matrix'!W28 -> 0.003683891266 | W27: ='Corr. Matrix'!B$61*'Corr. Matrix'!B62*'Corr. Matrix'!X28 -> 0.002449109547 | X27: ='Corr. Matrix'!B$62*'Corr. Matrix'!B62*'Corr. Matrix'!Y28 -> 0.005526393452 | Y27: =TRANSPOSE(X28:X34) -> 0.002754019481 | Z27: 0.001356861431 | AA27: 0.001861367033 | AB27: 0.002366687997 | AC27: 0.002787808574 | AD27: 0.001629128575 | AE27: 0.001807781559
A28: ='Corr. Matrix'!B29 -> ibm | B28: ='Corr. Matrix'!B63*'Corr. Matrix'!B$40*'Corr. Matrix'!C29 -> 0.006496613203 | C28: ='Corr. Matrix'!B$41*'Corr. Matrix'!B63*'Corr. Matrix'!D29 -> 0.001758462058 | D28: ='Corr. Matrix'!B$42*'Corr. Matrix'!B63*'Corr. Matrix'!E29 -> 0.003589142657 | E28: ='Corr. Matrix'!B$43*'Corr. Matrix'!B63*'Corr. Matrix'!F29 -> 0.004012873582 | F28: ='Corr. Matrix'!B$44*'Corr. Matrix'!B63*'Corr. Matrix'!G29 -> 0.0008594841938 | G28: ='Corr. Matrix'!B$45*'Corr. Matrix'!B63*'Corr. Matrix'!H29 -> 0.003468568838 | H28: ='Corr. Matrix'!B$46*'Corr. Matrix'!B63*'Corr. Matrix'!I29 -> 0.00195896258 | I28: ='Corr. Matrix'!B$47*'Corr. Matrix'!B63*'Corr. Matrix'!J29 -> 0.002276684198 | J28: ='Corr. Matrix'!B$48*'Corr. Matrix'!B63*'Corr. Matrix'!K29 -> 0.002460373577 | K28: ='Corr. Matrix'!B$49*'Corr. Matrix'!B63*'Corr. Matrix'!L29 -> 0.002441401326 | L28: ='Corr. Matrix'!B$50*'Corr. Matrix'!B63*'Corr. Matrix'!M29 -> 0.001504107701 | M28: ='Corr. Matrix'!B$51*'Corr. Matrix'!B63*'Corr. Matrix'!N29 -> 0.003601730827 | N28: ='Corr. Matrix'!B$52*'Corr. Matrix'!B63*'Corr. Matrix'!O29 -> 0.002602852081 | O28: ='Corr. Matrix'!B$53*'Corr. Matrix'!B63*'Corr. Matrix'!P29 -> 0.0009180304547 | P28: ='Corr. Matrix'!B$54*'Corr. Matrix'!B63*'Corr. Matrix'!Q29 -> 0.001676512696 | Q28: ='Corr. Matrix'!B$55*'Corr. Matrix'!B63*'Corr. Matrix'!R29 -> 0.002683001975 | R28: ='Corr. Matrix'!B$56*'Corr. Matrix'!B63*'Corr. Matrix'!S29 -> 0.002217879691 | S28: ='Corr. Matrix'!B$57*'Corr. Matrix'!B63*'Corr. Matrix'!T29 -> 0.003329863566 | T28: ='Corr. Matrix'!B$58*'Corr. Matrix'!B63*'Corr. Matrix'!U29 -> 0.0009759725218 | U28: ='Corr. Matrix'!B$59*'Corr. Matrix'!B63*'Corr. Matrix'!V29 -> 0.001997306853 | V28: ='Corr. Matrix'!B$60*'Corr. Matrix'!B63*'Corr. Matrix'!W29 -> 0.002779767728 | W28: ='Corr. Matrix'!B$61*'Corr. Matrix'!B63*'Corr. Matrix'!X29 -> 0.002168418626 | X28: ='Corr. Matrix'!B$62*'Corr. Matrix'!B63*'Corr. Matrix'!Y29 -> 0.002754019481 | Y28: ='Corr. Matrix'!B$63*'Corr. Matrix'!B63*'Corr. Matrix'!Z29 -> 0.004759481848 | Z28: =TRANSPOSE(Y29:Y34) -> 0.001249337396 | AA28: 0.003108698545 | AB28: 0.001207476024 | AC28: 0.002468014591 | AD28: 0.001171278998 | AE28: 0.002231933446
A29: ='Corr. Matrix'!B30 -> kr | B29: ='Corr. Matrix'!B64*'Corr. Matrix'!B$40*'Corr. Matrix'!C30 -> 0.001063561577 | C29: ='Corr. Matrix'!B$41*'Corr. Matrix'!B64*'Corr. Matrix'!D30 -> 0.002092135416 | D29: ='Corr. Matrix'!B$42*'Corr. Matrix'!B64*'Corr. Matrix'!E30 -> 0.0008029309499 | E29: ='Corr. Matrix'!B$43*'Corr. Matrix'!B64*'Corr. Matrix'!F30 -> 0.0005149525942 | F29: ='Corr. Matrix'!B$44*'Corr. Matrix'!B64*'Corr. Matrix'!G30 -> 0.00273310352 | G29: ='Corr. Matrix'!B$45*'Corr. Matrix'!B64*'Corr. Matrix'!H30 -> 0.002426748118 | H29: ='Corr. Matrix'!B$46*'Corr. Matrix'!B64*'Corr. Matrix'!I30 -> 0.001283942186 | I29: ='Corr. Matrix'!B$47*'Corr. Matrix'!B64*'Corr. Matrix'!J30 -> 0.001492078959 | J29: ='Corr. Matrix'!B$48*'Corr. Matrix'!B64*'Corr. Matrix'!K30 -> 0.001939790107 | K29: ='Corr. Matrix'!B$49*'Corr. Matrix'!B64*'Corr. Matrix'!L30 -> 0.0005592081664 | L29: ='Corr. Matrix'!B$50*'Corr. Matrix'!B64*'Corr. Matrix'!M30 -> 0.001881520354 | M29: ='Corr. Matrix'!B$51*'Corr. Matrix'!B64*'Corr. Matrix'!N30 -> 0.001067193602 | N29: ='Corr. Matrix'!B$52*'Corr. Matrix'!B64*'Corr. Matrix'!O30 -> 0.002298105542 | O29: ='Corr. Matrix'!B$53*'Corr. Matrix'!B64*'Corr. Matrix'!P30 -> 0.0007768454075 | P29: ='Corr. Matrix'!B$54*'Corr. Matrix'!B64*'Corr. Matrix'!Q30 -> 0.001654510872 | Q29: ='Corr. Matrix'!B$55*'Corr. Matrix'!B64*'Corr. Matrix'!R30 -> 0.0005738882914 | R29: ='Corr. Matrix'!B$56*'Corr. Matrix'!B64*'Corr. Matrix'!S30 -> 0.002088931242 | S29: ='Corr. Matrix'!B$57*'Corr. Matrix'!B64*'Corr. Matrix'!T30 -> 0.0006014698709 | T29: ='Corr. Matrix'!B$58*'Corr. Matrix'!B64*'Corr. Matrix'!U30 -> 0.001201893781 | U29: ='Corr. Matrix'!B$59*'Corr. Matrix'!B64*'Corr. Matrix'!V30 -> 0.001697431067 | V29: ='Corr. Matrix'!B$60*'Corr. Matrix'!B64*'Corr. Matrix'!W30 -> 0.00098539594 | W29: ='Corr. Matrix'!B$61*'Corr. Matrix'!B64*'Corr. Matrix'!X30 -> 0.001305888241 | X29: ='Corr. Matrix'!B$62*'Corr. Matrix'!B64*'Corr. Matrix'!Y30 -> 0.001356861431 | Y29: ='Corr. Matrix'!B$63*'Corr. Matrix'!B64*'Corr. Matrix'!Z30 -> 0.001249337396 | Z29: ='Corr. Matrix'!B$64*'Corr. Matrix'!B64*'Corr. Matrix'!AA30 -> 0.004494425408 | AA29: =TRANSPOSE(Z30:Z34) -> 0.0007767074523 | AB29: 0.001320736792 | AC29: 0.0007237723916 | AD29: 0.001623800359 | AE29: 0.0004837168228
A30: ='Corr. Matrix'!B31 -> t | B30: ='Corr. Matrix'!B65*'Corr. Matrix'!B$40*'Corr. Matrix'!C31 -> 0.005853697333 | C30: ='Corr. Matrix'!B$41*'Corr. Matrix'!B65*'Corr. Matrix'!D31 -> 0.0004615742209 | D30: ='Corr. Matrix'!B$42*'Corr. Matrix'!B65*'Corr. Matrix'!E31 -> 0.004823757942 | E30: ='Corr. Matrix'!B$43*'Corr. Matrix'!B65*'Corr. Matrix'!F31 -> 0.003428606072 | F30: ='Corr. Matrix'!B$44*'Corr. Matrix'!B65*'Corr. Matrix'!G31 -> 0.0003681395937 | G30: ='Corr. Matrix'!B$45*'Corr. Matrix'!B65*'Corr. Matrix'!H31 -> 0.003011070532 | H30: ='Corr. Matrix'!B$46*'Corr. Matrix'!B65*'Corr. Matrix'!I31 -> 0.002522668854 | I30: ='Corr. Matrix'!B$47*'Corr. Matrix'!B65*'Corr. Matrix'!J31 -> 0.001209535131 | J30: ='Corr. Matrix'!B$48*'Corr. Matrix'!B65*'Corr. Matrix'!K31 -> 0.001384909066 | K30: ='Corr. Matrix'!B$49*'Corr. Matrix'!B65*'Corr. Matrix'!L31 -> 0.003229002052 | L30: ='Corr. Matrix'!B$50*'Corr. Matrix'!B65*'Corr. Matrix'!M31 -> 0.001545217249 | M30: ='Corr. Matrix'!B$51*'Corr. Matrix'!B65*'Corr. Matrix'!N31 -> 0.003147363032 | N30: ='Corr. Matrix'!B$52*'Corr. Matrix'!B65*'Corr. Matrix'!O31 -> 0.002360715052 | O30: ='Corr. Matrix'!B$53*'Corr. Matrix'!B65*'Corr. Matrix'!P31 -> 0.000245907241 | P30: ='Corr. Matrix'!B$54*'Corr. Matrix'!B65*'Corr. Matrix'!Q31 -> 0.001284569067 | Q30: ='Corr. Matrix'!B$55*'Corr. Matrix'!B65*'Corr. Matrix'!R31 -> 0.002369571941 | R30: ='Corr. Matrix'!B$56*'Corr. Matrix'!B65*'Corr. Matrix'!S31 -> 0.001961028298 | S30: ='Corr. Matrix'!B$57*'Corr. Matrix'!B65*'Corr. Matrix'!T31 -> 0.00286461806 | T30: ='Corr. Matrix'!B$58*'Corr. Matrix'!B65*'Corr. Matrix'!U31 -> 0.0009331837617 | U30: ='Corr. Matrix'!B$59*'Corr. Matrix'!B65*'Corr. Matrix'!V31 -> 0.001082119451 | V30: ='Corr. Matrix'!B$60*'Corr. Matrix'!B65*'Corr. Matrix'!W31 -> 0.002268755366 | W30: ='Corr. Matrix'!B$61*'Corr. Matrix'!B65*'Corr. Matrix'!X31 -> 0.002110302617 | X30: ='Corr. Matrix'!B$62*'Corr. Matrix'!B65*'Corr. Matrix'!Y31 -> 0.001861367033 | Y30: ='Corr. Matrix'!B$63*'Corr. Matrix'!B65*'Corr. Matrix'!Z31 -> 0.003108698545 | Z30: ='Corr. Matrix'!B$64*'Corr. Matrix'!B65*'Corr. Matrix'!AA31 -> 0.0007767074523 | AA30: ='Corr. Matrix'!B$65*'Corr. Matrix'!B65*'Corr. Matrix'!AB31 -> 0.004464147961 | AB30: =TRANSPOSE(AA31:AA34) -> 0.0007390253331 | AC30: 0.001913673609 | AD30: 0.0006814887213 | AE30: 0.001682174123
A31: ='Corr. Matrix'!B32 -> msft | B31: ='Corr. Matrix'!B66*'Corr. Matrix'!B$40*'Corr. Matrix'!C32 -> 0.004036200809 | C31: ='Corr. Matrix'!B$41*'Corr. Matrix'!B66*'Corr. Matrix'!D32 -> 0.006372506472 | D31: ='Corr. Matrix'!B$42*'Corr. Matrix'!B66*'Corr. Matrix'!E32 -> 0.001174346119 | E31: ='Corr. Matrix'!B$43*'Corr. Matrix'!B66*'Corr. Matrix'!F32 -> 0.003105786307 | F31: ='Corr. Matrix'!B$44*'Corr. Matrix'!B66*'Corr. Matrix'!G32 -> 0.005835252778 | G31: ='Corr. Matrix'!B$45*'Corr. Matrix'!B66*'Corr. Matrix'!H32 -> 0.001774794805 | H31: ='Corr. Matrix'!B$46*'Corr. Matrix'!B66*'Corr. Matrix'!I32 -> 0.003423589538 | I31: ='Corr. Matrix'!B$47*'Corr. Matrix'!B66*'Corr. Matrix'!J32 -> 0.004198864003 | J31: ='Corr. Matrix'!B$48*'Corr. Matrix'!B66*'Corr. Matrix'!K32 -> 0.002984358015 | K31: ='Corr. Matrix'!B$49*'Corr. Matrix'!B66*'Corr. Matrix'!L32 -> 0.0008393639329 | L31: ='Corr. Matrix'!B$50*'Corr. Matrix'!B66*'Corr. Matrix'!M32 -> 0.003947857349 | M31: ='Corr. Matrix'!B$51*'Corr. Matrix'!B66*'Corr. Matrix'!N32 -> 0.00170381412 | N31: ='Corr. Matrix'!B$52*'Corr. Matrix'!B66*'Corr. Matrix'!O32 -> 0.001273723678 | O31: ='Corr. Matrix'!B$53*'Corr. Matrix'!B66*'Corr. Matrix'!P32 -> 0.002324693828 | P31: ='Corr. Matrix'!B$54*'Corr. Matrix'!B66*'Corr. Matrix'!Q32 -> 0.003615586426 | Q31: ='Corr. Matrix'!B$55*'Corr. Matrix'!B66*'Corr. Matrix'!R32 -> 0.001509604259 | R31: ='Corr. Matrix'!B$56*'Corr. Matrix'!B66*'Corr. Matrix'!S32 -> 0.001290896924 | S31: ='Corr. Matrix'!B$57*'Corr. Matrix'!B66*'Corr. Matrix'!T32 -> 0.001987982555 | T31: ='Corr. Matrix'!B$58*'Corr. Matrix'!B66*'Corr. Matrix'!U32 -> 0.003190767193 | U31: ='Corr. Matrix'!B$59*'Corr. Matrix'!B66*'Corr. Matrix'!V32 -> 0.001110530069 | V31: ='Corr. Matrix'!B$60*'Corr. Matrix'!B66*'Corr. Matrix'!W32 -> 0.002190640586 | W31: ='Corr. Matrix'!B$61*'Corr. Matrix'!B66*'Corr. Matrix'!X32 -> 0.002051893673 | X31: ='Corr. Matrix'!B$62*'Corr. Matrix'!B66*'Corr. Matrix'!Y32 -> 0.002366687997 | Y31: ='Corr. Matrix'!B$63*'Corr. Matrix'!B66*'Corr. Matrix'!Z32 -> 0.001207476024 | Z31: ='Corr. Matrix'!B$64*'Corr. Matrix'!B66*'Corr. Matrix'!AA32 -> 0.001320736792 | AA31: ='Corr. Matrix'!B$65*'Corr. Matrix'!B66*'Corr. Matrix'!AB32 -> 0.0007390253331 | AB31: ='Corr. Matrix'!B$66*'Corr. Matrix'!B66*'Corr. Matrix'!AC32 -> 0.00400958828 | AC31: =TRANSPOSE(AB32:AB34) -> 0.00148255154 | AD31: 0.001272655508 | AE31: 0.001156994622
A32: ='Corr. Matrix'!B33 -> mcd | B32: ='Corr. Matrix'!B67*'Corr. Matrix'!B$40*'Corr. Matrix'!C33 -> 0.006248197825 | C32: ='Corr. Matrix'!B$41*'Corr. Matrix'!B67*'Corr. Matrix'!D33 -> 0.003881994266 | D32: ='Corr. Matrix'!B$42*'Corr. Matrix'!B67*'Corr. Matrix'!E33 -> 0.003485724262 | E32: ='Corr. Matrix'!B$43*'Corr. Matrix'!B67*'Corr. Matrix'!F33 -> 0.003562090522 | F32: ='Corr. Matrix'!B$44*'Corr. Matrix'!B67*'Corr. Matrix'!G33 -> 0.001243483493 | G32: ='Corr. Matrix'!B$45*'Corr. Matrix'!B67*'Corr. Matrix'!H33 -> 0.003481626813 | H32: ='Corr. Matrix'!B$46*'Corr. Matrix'!B67*'Corr. Matrix'!I33 -> 0.003570534046 | I32: ='Corr. Matrix'!B$47*'Corr. Matrix'!B67*'Corr. Matrix'!J33 -> 0.001641776889 | J32: ='Corr. Matrix'!B$48*'Corr. Matrix'!B67*'Corr. Matrix'!K33 -> 0.003066575012 | K32: ='Corr. Matrix'!B$49*'Corr. Matrix'!B67*'Corr. Matrix'!L33 -> 0.002176178892 | L32: ='Corr. Matrix'!B$50*'Corr. Matrix'!B67*'Corr. Matrix'!M33 -> 0.002688163997 | M32: ='Corr. Matrix'!B$51*'Corr. Matrix'!B67*'Corr. Matrix'!N33 -> 0.002992433124 | N32: ='Corr. Matrix'!B$52*'Corr. Matrix'!B67*'Corr. Matrix'!O33 -> 0.002199990257 | O32: ='Corr. Matrix'!B$53*'Corr. Matrix'!B67*'Corr. Matrix'!P33 -> 0.0005161318293 | P32: ='Corr. Matrix'!B$54*'Corr. Matrix'!B67*'Corr. Matrix'!Q33 -> 0.002623349498 | Q32: ='Corr. Matrix'!B$55*'Corr. Matrix'!B67*'Corr. Matrix'!R33 -> 0.002147473373 | R32: ='Corr. Matrix'!B$56*'Corr. Matrix'!B67*'Corr. Matrix'!S33 -> 0.002380768814 | S32: ='Corr. Matrix'!B$57*'Corr. Matrix'!B67*'Corr. Matrix'!T33 -> 0.003067175283 | T32: ='Corr. Matrix'!B$58*'Corr. Matrix'!B67*'Corr. Matrix'!U33 -> 0.001414113508 | U32: ='Corr. Matrix'!B$59*'Corr. Matrix'!B67*'Corr. Matrix'!V33 -> 0.001458356145 | V32: ='Corr. Matrix'!B$60*'Corr. Matrix'!B67*'Corr. Matrix'!W33 -> 0.003308330104 | W32: ='Corr. Matrix'!B$61*'Corr. Matrix'!B67*'Corr. Matrix'!X33 -> 0.001659010134 | X32: ='Corr. Matrix'!B$62*'Corr. Matrix'!B67*'Corr. Matrix'!Y33 -> 0.002787808574 | Y32: ='Corr. Matrix'!B$63*'Corr. Matrix'!B67*'Corr. Matrix'!Z33 -> 0.002468014591 | Z32: ='Corr. Matrix'!B$64*'Corr. Matrix'!B67*'Corr. Matrix'!AA33 -> 0.0007237723916 | AA32: ='Corr. Matrix'!B$65*'Corr. Matrix'!B67*'Corr. Matrix'!AB33 -> 0.001913673609 | AB32: ='Corr. Matrix'!B$66*'Corr. Matrix'!B67*'Corr. Matrix'!AC33 -> 0.00148255154 | AC32: ='Corr. Matrix'!B$67*'Corr. Matrix'!B67*'Corr. Matrix'!AD33 -> 0.003121047399 | AD32: =TRANSPOSE(AC33:AC34) -> 0.001051013281 | AE32: 0.002178869158
A33: ='Corr. Matrix'!B34 -> wmt | B33: ='Corr. Matrix'!B68*'Corr. Matrix'!B$40*'Corr. Matrix'!C34 -> 0.003795397307 | C33: ='Corr. Matrix'!B$41*'Corr. Matrix'!B68*'Corr. Matrix'!D34 -> 0.00286329858 | D33: ='Corr. Matrix'!B$42*'Corr. Matrix'!B68*'Corr. Matrix'!E34 -> 0.001748042636 | E33: ='Corr. Matrix'!B$43*'Corr. Matrix'!B68*'Corr. Matrix'!F34 -> 0.0005814639265 | F33: ='Corr. Matrix'!B$44*'Corr. Matrix'!B68*'Corr. Matrix'!G34 -> 0.002347672365 | G33: ='Corr. Matrix'!B$45*'Corr. Matrix'!B68*'Corr. Matrix'!H34 -> 0.002015606285 | H33: ='Corr. Matrix'!B$46*'Corr. Matrix'!B68*'Corr. Matrix'!I34 -> 0.001998805417 | I33: ='Corr. Matrix'!B$47*'Corr. Matrix'!B68*'Corr. Matrix'!J34 -> 0.001905642605 | J33: ='Corr. Matrix'!B$48*'Corr. Matrix'!B68*'Corr. Matrix'!K34 -> 0.001390478378 | K33: ='Corr. Matrix'!B$49*'Corr. Matrix'!B68*'Corr. Matrix'!L34 -> 0.0005233276407 | L33: ='Corr. Matrix'!B$50*'Corr. Matrix'!B68*'Corr. Matrix'!M34 -> 0.001895692015 | M33: ='Corr. Matrix'!B$51*'Corr. Matrix'!B68*'Corr. Matrix'!N34 -> 0.001696366257 | N33: ='Corr. Matrix'!B$52*'Corr. Matrix'!B68*'Corr. Matrix'!O34 -> 0.002008005553 | O33: ='Corr. Matrix'!B$53*'Corr. Matrix'!B68*'Corr. Matrix'!P34 -> 0.0009853450215 | P33: ='Corr. Matrix'!B$54*'Corr. Matrix'!B68*'Corr. Matrix'!Q34 -> 0.00192497628 | Q33: ='Corr. Matrix'!B$55*'Corr. Matrix'!B68*'Corr. Matrix'!R34 -> 0.001026795047 | R33: ='Corr. Matrix'!B$56*'Corr. Matrix'!B68*'Corr. Matrix'!S34 -> 0.001581259483 | S33: ='Corr. Matrix'!B$57*'Corr. Matrix'!B68*'Corr. Matrix'!T34 -> 0.001489736655 | T33: ='Corr. Matrix'!B$58*'Corr. Matrix'!B68*'Corr. Matrix'!U34 -> 0.0007981493987 | U33: ='Corr. Matrix'!B$59*'Corr. Matrix'!B68*'Corr. Matrix'!V34 -> 0.001067043894 | V33: ='Corr. Matrix'!B$60*'Corr. Matrix'!B68*'Corr. Matrix'!W34 -> 0.001377703249 | W33: ='Corr. Matrix'!B$61*'Corr. Matrix'!B68*'Corr. Matrix'!X34 -> 0.001400329001 | X33: ='Corr. Matrix'!B$62*'Corr. Matrix'!B68*'Corr. Matrix'!Y34 -> 0.001629128575 | Y33: ='Corr. Matrix'!B$63*'Corr. Matrix'!B68*'Corr. Matrix'!Z34 -> 0.001171278998 | Z33: ='Corr. Matrix'!B$64*'Corr. Matrix'!B68*'Corr. Matrix'!AA34 -> 0.001623800359 | AA33: ='Corr. Matrix'!B$65*'Corr. Matrix'!B68*'Corr. Matrix'!AB34 -> 0.0006814887213 | AB33: ='Corr. Matrix'!B$66*'Corr. Matrix'!B68*'Corr. Matrix'!AC34 -> 0.001272655508 | AC33: ='Corr. Matrix'!B$67*'Corr. Matrix'!B68*'Corr. Matrix'!AD34 -> 0.001051013281 | AD33: ='Corr. Matrix'!B$68*'Corr. Matrix'!B68*'Corr. Matrix'!AE34 -> 0.003118363444 | AE33: =AD34 -> 0.001057589347
A34: ='Corr. Matrix'!B35 -> ko | B34: ='Corr. Matrix'!B69*'Corr. Matrix'!B$40*'Corr. Matrix'!C35 -> 0.005263180406 | C34: ='Corr. Matrix'!B$41*'Corr. Matrix'!B69*'Corr. Matrix'!D35 -> 0.001365836981 | D34: ='Corr. Matrix'!B$42*'Corr. Matrix'!B69*'Corr. Matrix'!E35 -> 0.002661673028 | E34: ='Corr. Matrix'!B$43*'Corr. Matrix'!B69*'Corr. Matrix'!F35 -> 0.003907294199 | F34: ='Corr. Matrix'!B$44*'Corr. Matrix'!B69*'Corr. Matrix'!G35 -> 0.0003241526854 | G34: ='Corr. Matrix'!B$45*'Corr. Matrix'!B69*'Corr. Matrix'!H35 -> 0.002925596735 | H34: ='Corr. Matrix'!B$46*'Corr. Matrix'!B69*'Corr. Matrix'!I35 -> 0.002205191387 | I34: ='Corr. Matrix'!B$47*'Corr. Matrix'!B69*'Corr. Matrix'!J35 -> 0.001418621603 | J34: ='Corr. Matrix'!B$48*'Corr. Matrix'!B69*'Corr. Matrix'!K35 -> 0.001439782312 | K34: ='Corr. Matrix'!B$49*'Corr. Matrix'!B69*'Corr. Matrix'!L35 -> 0.002243295734 | L34: ='Corr. Matrix'!B$50*'Corr. Matrix'!B69*'Corr. Matrix'!M35 -> 0.001826204955 | M34: ='Corr. Matrix'!B$51*'Corr. Matrix'!B69*'Corr. Matrix'!N35 -> 0.002896994277 | N34: ='Corr. Matrix'!B$52*'Corr. Matrix'!B69*'Corr. Matrix'!O35 -> 0.00182221507 | O34: ='Corr. Matrix'!B$53*'Corr. Matrix'!B69*'Corr. Matrix'!P35 -> 0.0005519211422 | P34: ='Corr. Matrix'!B$54*'Corr. Matrix'!B69*'Corr. Matrix'!Q35 -> 0.001782433353 | Q34: ='Corr. Matrix'!B$55*'Corr. Matrix'!B69*'Corr. Matrix'!R35 -> 0.002039023085 | R34: ='Corr. Matrix'!B$56*'Corr. Matrix'!B69*'Corr. Matrix'!S35 -> 0.00221978477 | S34: ='Corr. Matrix'!B$57*'Corr. Matrix'!B69*'Corr. Matrix'!T35 -> 0.002857166585 | T34: ='Corr. Matrix'!B$58*'Corr. Matrix'!B69*'Corr. Matrix'!U35 -> 0.00131371976 | U34: ='Corr. Matrix'!B$59*'Corr. Matrix'!B69*'Corr. Matrix'!V35 -> 0.001308409996 | V34: ='Corr. Matrix'!B$60*'Corr. Matrix'!B69*'Corr. Matrix'!W35 -> 0.003030844386 | W34: ='Corr. Matrix'!B$61*'Corr. Matrix'!B69*'Corr. Matrix'!X35 -> 0.001563304298 | X34: ='Corr. Matrix'!B$62*'Corr. Matrix'!B69*'Corr. Matrix'!Y35 -> 0.001807781559 | Y34: ='Corr. Matrix'!B$63*'Corr. Matrix'!B69*'Corr. Matrix'!Z35 -> 0.002231933446 | Z34: ='Corr. Matrix'!B$64*'Corr. Matrix'!B69*'Corr. Matrix'!AA35 -> 0.0004837168228 | AA34: ='Corr. Matrix'!B$65*'Corr. Matrix'!B69*'Corr. Matrix'!AB35 -> 0.001682174123 | AB34: ='Corr. Matrix'!B$66*'Corr. Matrix'!B69*'Corr. Matrix'!AC35 -> 0.001156994622 | AC34: ='Corr. Matrix'!B$67*'Corr. Matrix'!B69*'Corr. Matrix'!AD35 -> 0.002178869158 | AD34: ='Corr. Matrix'!B$68*'Corr. Matrix'!B69*'Corr. Matrix'!AE35 -> 0.001057589347 | AE34: ='Corr. Matrix'!B69*'Corr. Matrix'!B69*'Corr. Matrix'!AF35 -> 0.003106863889
A36: Portfolio Standard Deviation
A37: N | B37: 1/N | C37: (1/N)^2 | D37: Sum | E37: Variance | F37: Stand Dev
A38: 1 | B38: =1/A38 -> 1 | C38: =B38^2 -> 1 | D38: =SUM(B5) -> 0.04370801187 | E38: =C38*D38 -> 0.04370801187 | F38: =SQRT(E38) -> 0.2090646117
A39: 2 | B39: 0.5 | C39: 0.25 | D39: =SUM(B5:C6) -> 0.1174730483 | E39: 0.02936826207 | F39: =SQRT(E39) -> 0.1713717073
A40: 3 | B40: 0.3333333333 | C40: 0.1111111111 | D40: =SUM(B5:D7) -> 0.2155394262 | E40: 0.02394882513 | F40: 0.1547540795
A41: 4 | B41: 0.25 | C41: 0.0625 | D41: =SUM(B5:E8) -> 0.3162805404 | E41: 0.01976753377 | F41: 0.1405970618
A42: 5 | B42: 0.2 | C42: 0.04 | D42: =SUM(B5:F9) -> 0.4008806108 | E42: 0.01603522443 | F42: 0.1266302667
A43: 6 | B43: 0.1666666667 | C43: 0.02777777778 | D43: =SUM(B5:G10) -> 0.5187253707 | E43: 0.01440903807 | F43: 0.1200376527
A44: 7 | B44: 0.1428571429 | C44: 0.02040816327 | D44: =SUM(B5:H11) -> 0.6675628362 | E44: 0.01362373135 | F44: 0.1167207409
A45: 8 | B45: 0.125 | C45: 0.015625 | D45: =SUM(B5:I12) -> 0.7573605662 | E45: 0.01183375885 | F45: 0.1087830816
A46: 9 | B46: 0.1111111111 | C46: 0.01234567901 | D46: =SUM(B5:J13) -> 0.8469940886 | E46: 0.01045671714 | F46: 0.1022580908
A47: 10 | B47: 0.1 | C47: 0.01 | D47: =SUM(B5:K14) -> 0.9401589812 | E47: 0.009401589812 | F47: 0.09696179563
A48: 11 | B48: 0.09090909091 | C48: 0.00826446281 | D48: =SUM(B5:L15) -> 1.054231321 | E48: 0.008712655542 | F48: 0.09334160671
A49: 12 | B49: 0.08333333333 | C49: 0.006944444444 | D49: =SUM(B5:M16) -> 1.209236267 | E49: 0.008397474074 | F49: 0.09163773281
A50: 13 | B50: 0.07692307692 | C50: 0.005917159763 | D50: =SUM(B5:N17) -> 1.337356064 | E50: 0.007913349488 | F50: 0.08895700921
A51: 14 | B51: 0.07142857143 | C51: 0.005102040816 | D51: =SUM(B5:O18) -> 1.35754425 | E51: 0.006926246171 | F51: 0.08322407206
A52: 15 | B52: 0.06666666667 | C52: 0.004444444444 | D52: =SUM(B5:P19) -> 1.490097844 | E52: 0.006622657083 | F52: 0.08137970928
A53: 16 | B53: 0.0625 | C53: 0.00390625 | D53: =SUM(B5:Q20) -> 1.645322166 | E53: 0.006427039711 | F53: 0.08016882007
A54: 17 | B54: 0.05882352941 | C54: 0.003460207612 | D54: =SUM(B5:R21) -> 1.763991712 | E54: 0.00610377755 | F54: 0.0781266763
A55: 18 | B55: 0.05555555556 | C55: 0.003086419753 | D55: =SUM(B5:S22) -> 1.91769041 | E55: 0.005918797562 | F55: 0.07693372188
A56: 19 | B56: 0.05263157895 | C56: 0.002770083102 | D56: =SUM(B5:T23) -> 2.055601217 | E56: 0.005694186198 | F56: 0.07545983168
A57: 20 | B57: 0.05 | C57: 0.0025 | D57: =SUM(B5:U24) -> 2.116141516 | E57: 0.005290353791 | F57: 0.07273481829
A58: 21 | B58: 0.04761904762 | C58: 0.002267573696 | D58: =SUM(B5:V25) -> 2.285722838 | E58: 0.005183044985 | F58: 0.07199336764
A59: 22 | B59: 0.04545454545 | C59: 0.002066115702 | D59: =SUM(B5:W26) -> 2.450436831 | E59: 0.005062886014 | F59: 0.07115395993
A60: 23 | B60: 0.04347826087 | C60: 0.001890359168 | D60: =SUM(B5:X27) -> 2.616561781 | E60: 0.004946241552 | F60: 0.0703295212
A61: 24 | B61: 0.04166666667 | C61: 0.001736111111 | D61: =SUM(B5:Y28) -> 2.738385324 | E61: 0.004754141187 | F61: 0.06895028055
A62: 25 | B62: 0.04 | C62: 0.0016 | D62: =SUM(B5:Z29) -> 2.810175199 | E62: 0.004496280318 | F62: 0.06705430872
A63: 26 | B63: 0.03846153846 | C63: 0.001479289941 | D63: =SUM(B5:AA30) -> 2.923065516 | E63: 0.004324061415 | F63: 0.06575759587
A64: 27 | B64: 0.03703703704 | C64: 0.001371742112 | D64: =SUM(B5:AB31) -> 3.058229064 | E64: 0.004195101597 | F64: 0.06476960396
A65: 28 | B65: 0.03571428571 | C65: 0.001275510204 | D65: =SUM(B5:AC32) -> 3.197728709 | E65: 0.004078735598 | F65: 0.06386497943
A66: 29 | B66: 0.03448275862 | C66: 0.001189060642 | D66: =SUM(B5:AD33) -> 3.288548077 | E66: 0.003910283088 | F66: 0.06253225638
A67: 30 | B67: 0.03333333333 | C67: 0.001111111111 | D67: =SUM(B5:AE34) -> 3.406786353 | E67: 0.00378531817 | F67: 0.06152493941

Sheet Graph
P1: Stock | R1: Average | S1: Portfolio
N2: Stocks | P2: Stand Dev | Q2: Ave Corr | R2: Stand Dev | S2: Stand Dev
N3: 1 | O3: ='Var-Cov Matrix'!A5 -> rcl | P3: ='Corr. Matrix'!B40 -> 0.2090646117 | Q3: =(AVERAGE('Corr. Matrix'!C6:AF6)-(1/30))*(30/29) -> 0.4503021789 | R3: =AVERAGE($P$3:P3) -> 0.2090646117 | S3: ='Var-Cov Matrix'!F38 -> 0.2090646117
N4: 2 | O4: ='Var-Cov Matrix'!A6 -> tsla | P4: ='Corr. Matrix'!B41 -> 0.2013596704 | Q4: =(AVERAGE('Corr. Matrix'!C7:AF7)-(1/30))*(30/29) -> 0.2872907485 | R4: =AVERAGE($P$3:P4) -> 0.205212141 | S4: ='Var-Cov Matrix'!F39 -> 0.1713717073
N5: 3 | O5: ='Var-Cov Matrix'!A7 -> ual | P5: ='Corr. Matrix'!B42 -> 0.1583676151 | Q5: =(AVERAGE('Corr. Matrix'!C8:AF8)-(1/30))*(30/29) -> 0.3522393098 | R5: =AVERAGE($P$3:P5) -> 0.1895972991 | S5: ='Var-Cov Matrix'!F40 -> 0.1547540795
N6: 4 | O6: ='Var-Cov Matrix'!A8 -> ba | P6: ='Corr. Matrix'!B43 -> 0.1440637759 | Q6: =(AVERAGE('Corr. Matrix'!C9:AF9)-(1/30))*(30/29) -> 0.3674376913 | R6: =AVERAGE($P$3:P6) -> 0.1782139183 | S6: ='Var-Cov Matrix'!F41 -> 0.1405970618
N7: 5 | O7: ='Var-Cov Matrix'!A9 -> nvda | P7: ='Corr. Matrix'!B44 -> 0.1399443734 | Q7: =(AVERAGE('Corr. Matrix'!C10:AF10)-(1/30))*(30/29) -> 0.2974094758 | R7: =AVERAGE($P$3:P7) -> 0.1705600093 | S7: ='Var-Cov Matrix'!F42 -> 0.1266302667
N8: 6 | O8: ='Var-Cov Matrix'!A10 -> hog | P8: ='Corr. Matrix'!B45 -> 0.1387695004 | Q8: =(AVERAGE('Corr. Matrix'!C11:AF11)-(1/30))*(30/29) -> 0.3843781101 | R8: =AVERAGE($P$3:P8) -> 0.1652615911 | S8: ='Var-Cov Matrix'!F43 -> 0.1200376527
N9: 7 | O9: ='Var-Cov Matrix'!A11 -> f | P9: ='Corr. Matrix'!B46 -> 0.1337944252 | Q9: =(AVERAGE('Corr. Matrix'!C12:AF12)-(1/30))*(30/29) -> 0.4096734173 | R9: =AVERAGE($P$3:P9) -> 0.1607662817 | S9: ='Var-Cov Matrix'!F44 -> 0.1167207409
N10: 8 | O10: ='Var-Cov Matrix'!A12 -> meta | P10: ='Corr. Matrix'!B47 -> 0.1221807211 | Q10: =(AVERAGE('Corr. Matrix'!C13:AF13)-(1/30))*(30/29) -> 0.2752405687 | R10: =AVERAGE($P$3:P10) -> 0.1559430866 | S10: ='Var-Cov Matrix'!F45 -> 0.1087830816
N11: 9 | O11: ='Var-Cov Matrix'!A13 -> pzza | P11: ='Corr. Matrix'!B48 -> 0.1071651776 | Q11: =(AVERAGE('Corr. Matrix'!C14:AF14)-(1/30))*(30/29) -> 0.3419315331 | R11: =AVERAGE($P$3:P11) -> 0.150523319 | S11: ='Var-Cov Matrix'!F46 -> 0.1022580908
N12: 10 | O12: ='Var-Cov Matrix'!A14 -> xom | P12: ='Corr. Matrix'!B49 -> 0.09740510199 | Q12: =(AVERAGE('Corr. Matrix'!C15:AF15)-(1/30))*(30/29) -> 0.3271760375 | R12: =AVERAGE($P$3:P12) -> 0.1452114973 | S12: ='Var-Cov Matrix'!F47 -> 0.09696179563
N13: 11 | O13: ='Var-Cov Matrix'!A15 -> cmg | P13: ='Corr. Matrix'!B50 -> 0.09514188002 | Q13: =(AVERAGE('Corr. Matrix'!C16:AF16)-(1/30))*(30/29) -> 0.3892588603 | R13: =AVERAGE($P$3:P13) -> 0.1406597139 | S13: ='Var-Cov Matrix'!F48 -> 0.09334160671
N14: 12 | O14: ='Var-Cov Matrix'!A16 -> pru | P14: ='Corr. Matrix'!B51 -> 0.09146510909 | Q14: =(AVERAGE('Corr. Matrix'!C17:AF17)-(1/30))*(30/29) -> 0.4934975228 | R14: =AVERAGE($P$3:P14) -> 0.1365601635 | S14: ='Var-Cov Matrix'!F49 -> 0.09163773281
N15: 13 | O15: ='Var-Cov Matrix'!A17 -> cat | P15: ='Corr. Matrix'!B52 -> 0.09050963729 | Q15: =(AVERAGE('Corr. Matrix'!C18:AF18)-(1/30))*(30/29) -> 0.3990721731 | R15: =AVERAGE($P$3:P15) -> 0.1330178153 | S15: ='Var-Cov Matrix'!F50 -> 0.08895700921
N16: 14 | O16: ='Var-Cov Matrix'!A18 -> lly | P16: ='Corr. Matrix'!B53 -> 0.08677015508 | Q16: =(AVERAGE('Corr. Matrix'!C19:AF19)-(1/30))*(30/29) -> 0.1060469893 | R16: =AVERAGE($P$3:P16) -> 0.129714411 | S16: ='Var-Cov Matrix'!F51 -> 0.08322407206
N17: 15 | O17: ='Var-Cov Matrix'!A19 -> aapl | P17: ='Corr. Matrix'!B54 -> 0.08166660149 | Q17: =(AVERAGE('Corr. Matrix'!C20:AF20)-(1/30))*(30/29) -> 0.4228999172 | R17: =AVERAGE($P$3:P17) -> 0.1265112237 | S17: ='Var-Cov Matrix'!F52 -> 0.08137970928
N18: 16 | O18: ='Var-Cov Matrix'!A20 -> jpm | P18: ='Corr. Matrix'!B55 -> 0.07997568739 | Q18: =(AVERAGE('Corr. Matrix'!C21:AF21)-(1/30))*(30/29) -> 0.4558186193 | R18: =AVERAGE($P$3:P18) -> 0.1236027527 | S18: ='Var-Cov Matrix'!F53 -> 0.08016882007
N19: 17 | O19: ='Var-Cov Matrix'!A21 -> mmm | P19: ='Corr. Matrix'!B56 -> 0.07873708008 | Q19: =(AVERAGE('Corr. Matrix'!C22:AF22)-(1/30))*(30/29) -> 0.4001042051 | R19: =AVERAGE($P$3:P19) -> 0.1209635955 | S19: ='Var-Cov Matrix'!F54 -> 0.0781266763
N20: 18 | O20: ='Var-Cov Matrix'!A22 -> ma | P20: ='Corr. Matrix'!B57 -> 0.07817400957 | Q20: =(AVERAGE('Corr. Matrix'!C23:AF23)-(1/30))*(30/29) -> 0.4660633369 | R20: =AVERAGE($P$3:P20) -> 0.1185863963 | S20: ='Var-Cov Matrix'!F55 -> 0.07693372188
N21: 19 | O21: ='Var-Cov Matrix'!A23 -> googl | P21: ='Corr. Matrix'!B58 -> 0.0779325314 | Q21: =(AVERAGE('Corr. Matrix'!C24:AF24)-(1/30))*(30/29) -> 0.3681316237 | R21: =AVERAGE($P$3:P21) -> 0.1164467192 | S21: ='Var-Cov Matrix'!F56 -> 0.07545983168
N22: 20 | O22: ='Var-Cov Matrix'!A24 -> pfe | P22: ='Corr. Matrix'!B59 -> 0.07768658333 | Q22: =(AVERAGE('Corr. Matrix'!C25:AF25)-(1/30))*(30/29) -> 0.2294952463 | R22: =AVERAGE($P$3:P22) -> 0.1145087124 | S22: ='Var-Cov Matrix'!F57 -> 0.07273481829
N23: 21 | O23: ='Var-Cov Matrix'!A25 -> yum | P23: ='Corr. Matrix'!B60 -> 0.07555083398 | Q23: =(AVERAGE('Corr. Matrix'!C26:AF26)-(1/30))*(30/29) -> 0.495104861 | R23: =AVERAGE($P$3:P23) -> 0.1126535753 | S23: ='Var-Cov Matrix'!F58 -> 0.07199336764
N24: 22 | O24: ='Var-Cov Matrix'!A26 -> grmn | P24: ='Corr. Matrix'!B61 -> 0.07489918687 | Q24: =(AVERAGE('Corr. Matrix'!C27:AF27)-(1/30))*(30/29) -> 0.4325500232 | R24: =AVERAGE($P$3:P24) -> 0.1109374667 | S24: ='Var-Cov Matrix'!F59 -> 0.07115395993
N25: 23 | O25: ='Var-Cov Matrix'!A27 -> hd | P25: ='Corr. Matrix'!B62 -> 0.07433971652 | Q25: =(AVERAGE('Corr. Matrix'!C28:AF28)-(1/30))*(30/29) -> 0.4510317457 | R25: =AVERAGE($P$3:P25) -> 0.1093462602 | S25: ='Var-Cov Matrix'!F60 -> 0.0703295212
N26: 24 | O26: ='Var-Cov Matrix'!A28 -> ibm | P26: ='Corr. Matrix'!B63 -> 0.06898899802 | Q26: =(AVERAGE('Corr. Matrix'!C29:AF29)-(1/30))*(30/29) -> 0.3761602512 | R26: =AVERAGE($P$3:P26) -> 0.1076647076 | S26: ='Var-Cov Matrix'!F61 -> 0.06895028055
N27: 25 | O27: ='Var-Cov Matrix'!A29 -> kr | P27: ='Corr. Matrix'!B64 -> 0.06704047589 | Q27: =(AVERAGE('Corr. Matrix'!C30:AF30)-(1/30))*(30/29) -> 0.2168235663 | R27: =AVERAGE($P$3:P27) -> 0.1060397384 | S27: ='Var-Cov Matrix'!F62 -> 0.06705430872
N28: 26 | O28: ='Var-Cov Matrix'!A30 -> t | P28: ='Corr. Matrix'!B65 -> 0.06681427962 | Q28: =(AVERAGE('Corr. Matrix'!C31:AF31)-(1/30))*(30/29) -> 0.322192879 | R28: =AVERAGE($P$3:P28) -> 0.1045310669 | S28: ='Var-Cov Matrix'!F63 -> 0.06575759587
N29: 27 | O29: ='Var-Cov Matrix'!A31 -> msft | P29: ='Corr. Matrix'!B66 -> 0.06332130984 | Q29: =(AVERAGE('Corr. Matrix'!C32:AF32)-(1/30))*(30/29) -> 0.3804391796 | R29: =AVERAGE($P$3:P29) -> 0.1030047796 | S29: ='Var-Cov Matrix'!F64 -> 0.06476960396
N30: 28 | O30: ='Var-Cov Matrix'!A32 -> mcd | P30: ='Corr. Matrix'!B67 -> 0.05586633512 | Q30: =(AVERAGE('Corr. Matrix'!C33:AF33)-(1/30))*(30/29) -> 0.4552269169 | R30: =AVERAGE($P$3:P30) -> 0.1013212637 | S30: ='Var-Cov Matrix'!F65 -> 0.06386497943
N31: 29 | O31: ='Var-Cov Matrix'!A33 -> wmt | P31: ='Corr. Matrix'!B68 -> 0.05584230872 | Q31: =(AVERAGE('Corr. Matrix'!C34:AF34)-(1/30))*(30/29) -> 0.2885601174 | R31: =AVERAGE($P$3:P31) -> 0.09975302387 | S31: ='Var-Cov Matrix'!F66 -> 0.06253225638
N32: 30 | O32: ='Var-Cov Matrix'!A34 -> ko | P32: ='Corr. Matrix'!B69 -> 0.05573924909 | Q32: =(AVERAGE('Corr. Matrix'!C35:AF35)-(1/30))*(30/29) -> 0.3793711758 | R32: =AVERAGE($P$3:P32) -> 0.09828589804 | S32: ='Var-Cov Matrix'!F67 -> 0.06152493941
